Department Family,Entity,Date of Payment,Expense Type,Expense Area,Supplier,Voluntary & Community Sector,SME Class,Sole Trader,D-U-N-S Number,Transaction number,PSPES Level 2,Narrative,Postal Code,Amount in Sterling,Grant?
Communities & Local Government,DCLG,02/11/2015,Current (non AEF) Grants to Local Authorities,Neighbourhoods,CUMBRIA COUNTY COUNCIL,,Public Bodies,,211316542,2100258809,,Refund of Pensions Liabilities 15/16,CA3 8NA,"4,201.59",Yes
Communities & Local Government,DCLG,02/11/2015,Current (non AEF) Grants to Local Authorities,Neighbourhoods,DERBYSHIRE COUNTY COUNCIL,,,,232152967,2100258811,,Refund of Pensions Liabilities 15/16,DE4 3AH,"4,890.80",Yes
Communities & Local Government,DCLG,02/11/2015,Current (non AEF) Grants to Local Authorities,Neighbourhoods,NORTHUMBERLAND CC,,Large,,228141644,2100258810,,Refund of Pensions Liabilities 15/16,NE61 2EF,"11,353.38",Yes
Communities & Local Government,DCLG,02/11/2015,Current Grants to Non Profit Bodies,Localism,CFOA (NATIONAL RESILIANCE) LTD,,Small,,211512993,2100258806,,ESMCP,GL56 0RH,"80,235.56",Yes
Communities & Local Government,DCLG,02/11/2015,Current Grants to Non Profit Bodies,Neighbourhoods,IMPROVEMENT & DEVELOPMENT AGENCY,Yes,Public Bodies,,236810359,2100258807,,Planning Advisory Service,EC1M 5LG,"392,671.07",Yes
Communities & Local Government,DCLG,02/11/2015,Legal Fees,Finance & Corporate Services,DAVITT JONES BOULD LTD (CLIENT ACC),,Medium,,,5106216693,Legal,Legal Advice,TA1 4EB,"2,850.00",
Communities & Local Government,DCLG,02/11/2015,Miscellaneous Legal Costs,Neighbourhoods,ADUR DC,,,,227472891,5000311637,,PROPERTY SEARCHES NEW BURDENS PAYMENT,BN11 1HA,"32,845.00",
Communities & Local Government,DCLG,02/11/2015,Miscellaneous Legal Costs,Neighbourhoods,ALLERDALE BOROUGH COUNCIL,,,,218146780,5000311638,,PROPERTY SEARCHES NEW BURDENS PAYMENT,CA14 3YJ,"98,514.00",
Communities & Local Government,DCLG,02/11/2015,Miscellaneous Legal Costs,Neighbourhoods,AMBER VALLEY BC,,,,,5000311639,,PROPERTY SEARCHES NEW BURDENS PAYMENT,DE5 3BT,"61,332.00",
Communities & Local Government,DCLG,02/11/2015,Miscellaneous Legal Costs,Neighbourhoods,ARUN DC,,,,211217668,5000311493,,PROPERTY SEARCHES NEW BURDENS PAYMENT,BN17 5LF,"89,347.00",
Communities & Local Government,DCLG,02/11/2015,Miscellaneous Legal Costs,Neighbourhoods,ASHFIELD DC,,,,235415296,5000311640,,PROPERTY SEARCHES NEW BURDENS PAYMENT,NG17 8DA,"62,962.00",
Communities & Local Government,DCLG,02/11/2015,Miscellaneous Legal Costs,Neighbourhoods,ASHFORD BC,,,,229467071,5000311494,,PROPERTY SEARCHES NEW BURDENS PAYMENT,TN23 1PL,"68,950.00",
Communities & Local Government,DCLG,02/11/2015,Miscellaneous Legal Costs,Neighbourhoods,AYLESBURY VALE DC(HSG),,,,396710709,5000311495,,PROPERTY SEARCHES NEW BURDENS PAYMENT,HP19 8FF,"142,102.00",
Communities & Local Government,DCLG,02/11/2015,Miscellaneous Legal Costs,Neighbourhoods,BABERGH DC,,,,232618405,5000311496,,PROPERTY SEARCHES NEW BURDENS PAYMENT,IP7 6SJ,"49,818.00",
Communities & Local Government,DCLG,02/11/2015,Miscellaneous Legal Costs,Neighbourhoods,BARKING & DAGENHAM LB (HSG),,,,217142293,5000311497,,PROPERTY SEARCHES NEW BURDENS PAYMENT,RM10 7BY,"97,637.00",
Communities & Local Government,DCLG,02/11/2015,Miscellaneous Legal Costs,Neighbourhoods,BARNSLEY MBC,,,,211178595,5000311642,,PROPERTY SEARCHES NEW BURDENS PAYMENT,S70 2AQ,"68,630.00",
Communities & Local Government,DCLG,02/11/2015,Miscellaneous Legal Costs,Neighbourhoods,BARROW BC,,,,295632913,5000311643,,PROPERTY SEARCHES NEW BURDENS PAYMENT,LA14 2LD,"60,563.00",
Communities & Local Government,DCLG,02/11/2015,Miscellaneous Legal Costs,Neighbourhoods,BASILDON BOROUGH COUNCIL,,,,,5000311644,,PROPERTY SEARCHES NEW BURDENS PAYMENT,SS14 0DF,"143,494.00",
Communities & Local Government,DCLG,02/11/2015,Miscellaneous Legal Costs,Neighbourhoods,BASINGSTOKE & DEANE BC,,,,228328506,5000311645,,PROPERTY SEARCHES NEW BURDENS PAYMENT,RG21 2AJ,"99,637.00",
Communities & Local Government,DCLG,02/11/2015,Miscellaneous Legal Costs,Neighbourhoods,BASSETLAW DC (HSG),,,,,5000311498,,PROPERTY SEARCHES NEW BURDENS PAYMENT,S80 2AH,"36,996.00",
Communities & Local Government,DCLG,02/11/2015,Miscellaneous Legal Costs,Neighbourhoods,BATH & NE SOMERSET DC (HSG),,,,214502499,5000311499,,PROPERTY SEARCHES NEW BURDENS PAYMENT,BA1 5AW,"127,354.00",
Communities & Local Government,DCLG,02/11/2015,Miscellaneous Legal Costs,Neighbourhoods,BEDFORD UNITARY AUTHORITY,,,,225682160,5000311836,,PROPERTY SEARCHES NEW BURDENS PAYMENT,MK40 1SJ,"111,247.00",
Communities & Local Government,DCLG,02/11/2015,Miscellaneous Legal Costs,Neighbourhoods,BEXLEY LB (HSG),,,,,5000311500,,PROPERTY SEARCHES NEW BURDENS PAYMENT,DA8 1TL,"137,438.00",
Communities & Local Government,DCLG,02/11/2015,Miscellaneous Legal Costs,Neighbourhoods,BIRMINGHAM CITY CNCL,,,,213780559,5000311646,,PROPERTY SEARCHES NEW BURDENS PAYMENT,B2 2AJ,"259,820.00",
Communities & Local Government,DCLG,02/11/2015,Miscellaneous Legal Costs,Neighbourhoods,BLABY DC (HSG),,,,,5000311501,,PROPERTY SEARCHES NEW BURDENS PAYMENT,LE9 5EP,"62,103.00",
Communities & Local Government,DCLG,02/11/2015,Miscellaneous Legal Costs,Neighbourhoods,BLACKBURN WITH DARWEN BC,,,,,5000311647,,PROPERTY SEARCHES NEW BURDENS PAYMENT,BB1 7DY,"75,692.00",
Communities & Local Government,DCLG,02/11/2015,Miscellaneous Legal Costs,Neighbourhoods,BLACKPOOL BC,,,,,5000311648,,PROPERTY SEARCHES NEW BURDENS PAYMENT,FY1 1NA,"102,795.00",
Communities & Local Government,DCLG,02/11/2015,Miscellaneous Legal Costs,Neighbourhoods,BOLSOVER DC,,,,235516523,5000311649,,PROPERTY SEARCHES NEW BURDENS PAYMENT,S43 4JY,"34,048.00",
Communities & Local Government,DCLG,02/11/2015,Miscellaneous Legal Costs,Neighbourhoods,BOLTON MBC,,,,,5000311650,,PROPERTY SEARCHES NEW BURDENS PAYMENT,BL1 1RU,"117,109.00",
Communities & Local Government,DCLG,02/11/2015,Miscellaneous Legal Costs,Neighbourhoods,BOSTON BC,,,,236417713,5000311502,,PROPERTY SEARCHES NEW BURDENS PAYMENT,PE21 8QR,"74,770.00",
Communities & Local Government,DCLG,02/11/2015,Miscellaneous Legal Costs,Neighbourhoods,BOURNEMOUTH DC,,,,,5000311651,,PROPERTY SEARCHES NEW BURDENS PAYMENT,BH2 6EB,"146,553.00",
Communities & Local Government,DCLG,02/11/2015,Miscellaneous Legal Costs,Neighbourhoods,BRACKNELL FOREST DC,,,,236184867,5000311652,,PROPERTY SEARCHES NEW BURDENS PAYMENT,RG12 1AQ,"79,822.00",
Communities & Local Government,DCLG,02/11/2015,Miscellaneous Legal Costs,Neighbourhoods,BRADFORD MBC,,,,,5000311653,,PROPERTY SEARCHES NEW BURDENS PAYMENT,BD1 1HX,"414,683.00",
Communities & Local Government,DCLG,02/11/2015,Miscellaneous Legal Costs,Neighbourhoods,BRAINTREE DC,,,,226941730,5000311503,,PROPERTY SEARCHES NEW BURDENS PAYMENT,CM7 6HB,"101,017.00",
Communities & Local Government,DCLG,02/11/2015,Miscellaneous Legal Costs,Neighbourhoods,BRECKLAND DC,,,,232611384,5000311504,,PROPERTY SEARCHES NEW BURDENS PAYMENT,NR19 1EE,"69,793.00",
Communities & Local Government,DCLG,02/11/2015,Miscellaneous Legal Costs,Neighbourhoods,BRENT LB (HSG),,,,,5000311505,,PROPERTY SEARCHES NEW BURDENS PAYMENT,HA9 9HD,"62,087.00",
Communities & Local Government,DCLG,02/11/2015,Miscellaneous Legal Costs,Neighbourhoods,BRENTWOOD BC,,,,227473188,5000311654,,PROPERTY SEARCHES NEW BURDENS PAYMENT,CM15 8AY,"53,845.00",
Communities & Local Government,DCLG,02/11/2015,Miscellaneous Legal Costs,Neighbourhoods,BRIGHTON & HOVE CITY COUNCIL,,Large,,228455218,5000311655,,PROPERTY SEARCHES NEW BURDENS PAYMENT,BN3 2LS,"179,781.00",
Communities & Local Government,DCLG,02/11/2015,Miscellaneous Legal Costs,Neighbourhoods,BRISTOL CITY CNCL (HSG),,,,211103882,5000311506,,PROPERTY SEARCHES NEW BURDENS PAYMENT,BS99 7BL,"257,247.00",
Communities & Local Government,DCLG,02/11/2015,Miscellaneous Legal Costs,Neighbourhoods,BROADLAND DC,,Large,,219737785,5000311507,,PROPERTY SEARCHES NEW BURDENS PAYMENT,NR7 0DU,"64,353.00",
Communities & Local Government,DCLG,02/11/2015,Miscellaneous Legal Costs,Neighbourhoods,BROMSGROVE DC,,,,236654745,5000311508,,PROPERTY SEARCHES NEW BURDENS PAYMENT,B60 1AA,"73,770.00",
Communities & Local Government,DCLG,02/11/2015,Miscellaneous Legal Costs,Neighbourhoods,BROXBOURNE BC,,Public Bodies,,239931918,5000311656,,PROPERTY SEARCHES NEW BURDENS PAYMENT,EN8 9XG,"75,408.00",
Communities & Local Government,DCLG,02/11/2015,Miscellaneous Legal Costs,Neighbourhoods,BROXTOWE BC,,,,239877640,5000311657,,PROPERTY SEARCHES NEW BURDENS PAYMENT,NG9 1AB,"49,460.00",
Communities & Local Government,DCLG,02/11/2015,Miscellaneous Legal Costs,Neighbourhoods,BUCKINGHAMSHIRE CC,,,,293750923,5000311658,,PROPERTY SEARCHES NEW BURDENS PAYMENT,HP20 1UD,"7,879.00",
Communities & Local Government,DCLG,02/11/2015,Miscellaneous Legal Costs,Neighbourhoods,BURNLEY BC,,,,229413281,5000311659,,PROPERTY SEARCHES NEW BURDENS PAYMENT,BB11 1JA,"39,859.00",
Communities & Local Government,DCLG,02/11/2015,Miscellaneous Legal Costs,Neighbourhoods,BURY MBC,,,,,5000311660,,PROPERTY SEARCHES NEW BURDENS PAYMENT,BL9 0SW,"70,285.00",
Communities & Local Government,DCLG,02/11/2015,Miscellaneous Legal Costs,Neighbourhoods,CALDERDALE MBC,,,,,5000311661,,PROPERTY SEARCHES NEW BURDENS PAYMENT,HX1 1YP,"163,160.00",
Communities & Local Government,DCLG,02/11/2015,Miscellaneous Legal Costs,Neighbourhoods,CAMBRIDGE CITY COUNCIL,,,,210357534,5000311662,,PROPERTY SEARCHES NEW BURDENS PAYMENT,CB2 3NA,"76,128.00",
Communities & Local Government,DCLG,02/11/2015,Miscellaneous Legal Costs,Neighbourhoods,CAMBRIDGESHIRE COUNTY CNCL,,,,219047347,5000311663,,PROPERTY SEARCHES NEW BURDENS PAYMENT,CB3 0AP,"13,914.00",
Communities & Local Government,DCLG,02/11/2015,Miscellaneous Legal Costs,Neighbourhoods,CAMDEN LB,,,,211651836,5000311664,,PROPERTY SEARCHES NEW BURDENS PAYMENT,WC1H 8NG,"95,367.00",
Communities & Local Government,DCLG,02/11/2015,Miscellaneous Legal Costs,Neighbourhoods,CANNOCK CHASE DC,,,,215064770,5000311665,,PROPERTY SEARCHES NEW BURDENS PAYMENT,WS11 1BG,"59,134.00",
Communities & Local Government,DCLG,02/11/2015,Miscellaneous Legal Costs,Neighbourhoods,CANTERBURY CITY CNCL,,,,,5000311509,,PROPERTY SEARCHES NEW BURDENS PAYMENT,CT1 1YW,"79,957.00",
Communities & Local Government,DCLG,02/11/2015,Miscellaneous Legal Costs,Neighbourhoods,CARLISLE CITY CNCL,,,,227471059,5000311510,,PROPERTY SEARCHES NEW BURDENS PAYMENT,CA3 8QG,"104,046.00",
Communities & Local Government,DCLG,02/11/2015,Miscellaneous Legal Costs,Neighbourhoods,CASTLE POINT BC,,Public Bodies,,228217931,5000311666,,PROPERTY SEARCHES NEW BURDENS PAYMENT,SS7 1TF,"62,332.00",
Communities & Local Government,DCLG,02/11/2015,Miscellaneous Legal Costs,Neighbourhoods,CENTRAL BEDFORDSHIRE COUNCIL,,,,232624882,5000311833,,PROPERTY SEARCHES NEW BURDENS PAYMENT,SG17 5TQ,"239,723.00",
Communities & Local Government,DCLG,02/11/2015,Miscellaneous Legal Costs,Neighbourhoods,CHARNWOOD BC,,,,,5000311667,,PROPERTY SEARCHES NEW BURDENS PAYMENT,LE11 2TU,"80,743.00",
Communities & Local Government,DCLG,02/11/2015,Miscellaneous Legal Costs,Neighbourhoods,CHELMSFORD BC,,,,,5000311668,,PROPERTY SEARCHES NEW BURDENS PAYMENT,CM1 1JE,"90,604.00",
Communities & Local Government,DCLG,02/11/2015,Miscellaneous Legal Costs,Neighbourhoods,CHELTENHAM BC,,,,,5000311669,,PROPERTY SEARCHES NEW BURDENS PAYMENT,GL50 1PW,"111,929.00",
Communities & Local Government,DCLG,02/11/2015,Miscellaneous Legal Costs,Neighbourhoods,CHERWELL DC,,,,,5000311511,,PROPERTY SEARCHES NEW BURDENS PAYMENT,OX15 4AA,"115,833.00",
Communities & Local Government,DCLG,02/11/2015,Miscellaneous Legal Costs,Neighbourhoods,CHESHIRE EAST COUNCIL,,Large,,,5000311834,,PROPERTY SEARCHES NEW BURDENS PAYMENT,CW11 1HZ,"254,512.00",
Communities & Local Government,DCLG,02/11/2015,Miscellaneous Legal Costs,Neighbourhoods,CHESHIRE WEST & CHESTER UA,,Large,,215584383,5000311835,,PROPERTY SEARCHES NEW BURDENS PAYMENT,CH1 2NP,"222,367.00",
Communities & Local Government,DCLG,02/11/2015,Miscellaneous Legal Costs,Neighbourhoods,CHESTERFIELD BC,,,,232102301,5000311670,,PROPERTY SEARCHES NEW BURDENS PAYMENT,S40 1LP,"34,415.00",
Communities & Local Government,DCLG,02/11/2015,Miscellaneous Legal Costs,Neighbourhoods,CHICHESTER DC,,,,739800998,5000311512,,PROPERTY SEARCHES NEW BURDENS PAYMENT,PO19 1TY,"95,748.00",
Communities & Local Government,DCLG,02/11/2015,Miscellaneous Legal Costs,Neighbourhoods,CHILTERN DC (HSG),,,,,5000311513,,PROPERTY SEARCHES NEW BURDENS PAYMENT,HP6 5AW,"72,366.00",
Communities & Local Government,DCLG,02/11/2015,Miscellaneous Legal Costs,Neighbourhoods,CHORLEY BOROUGH COUNCIL,,,,236415576,5000311671,,PROPERTY SEARCHES NEW BURDENS PAYMENT,PR7 1DP,"104,381.00",
Communities & Local Government,DCLG,02/11/2015,Miscellaneous Legal Costs,Neighbourhoods,CHRISTCHURCH BC (HSG),,,,227415213,5000311514,,PROPERTY SEARCHES NEW BURDENS PAYMENT,BH23 1AZ,"36,408.00",
Communities & Local Government,DCLG,02/11/2015,Miscellaneous Legal Costs,Neighbourhoods,CITY OF LINCOLN COUNCIL,,,,,5000311732,,PROPERTY SEARCHES NEW BURDENS PAYMENT,LN1 1DB,"66,835.00",
Communities & Local Government,DCLG,02/11/2015,Miscellaneous Legal Costs,Neighbourhoods,CITY OF LONDON (HSG),,,,217471460,5000311515,,PROPERTY SEARCHES NEW BURDENS PAYMENT,EC2P 2EJ,"19,852.00",
Communities & Local Government,DCLG,02/11/2015,Miscellaneous Legal Costs,Neighbourhoods,CITY OF SUNDERLAND (HSG),,,,215599312,5000311516,,PROPERTY SEARCHES NEW BURDENS PAYMENT,SR2 7DN,"181,692.00",
Communities & Local Government,DCLG,02/11/2015,Miscellaneous Legal Costs,Neighbourhoods,CITY OF WAKEFIELD MDC,,,,,5000311808,,PROPERTY SEARCHES NEW BURDENS PAYMENT,WF1 2QW,"142,669.00",
Communities & Local Government,DCLG,02/11/2015,Miscellaneous Legal Costs,Neighbourhoods,COLCHESTER BC,,,,,5000311672,,PROPERTY SEARCHES NEW BURDENS PAYMENT,CO3 3WG,"88,520.00",
Communities & Local Government,DCLG,02/11/2015,Miscellaneous Legal Costs,Neighbourhoods,COPELAND BC,,,,236414827,5000311517,,PROPERTY SEARCHES NEW BURDENS PAYMENT,CA28 7NY,"72,878.00",
Communities & Local Government,DCLG,02/11/2015,Miscellaneous Legal Costs,Neighbourhoods,CORBY BC,,,,,5000311518,,PROPERTY SEARCHES NEW BURDENS PAYMENT,NN17 1GD,"55,702.00",
Communities & Local Government,DCLG,02/11/2015,Miscellaneous Legal Costs,Neighbourhoods,CORNWALL UNITARY AUTHORITY,,,,211334404,5000311838,,PROPERTY SEARCHES NEW BURDENS PAYMENT,TR1 3AY,"573,004.00",
Communities & Local Government,DCLG,02/11/2015,Miscellaneous Legal Costs,Neighbourhoods,COTSWOLD DC,,,,232462085,5000311519,,PROPERTY SEARCHES NEW BURDENS PAYMENT,GL7 1PX,"76,215.00",
Communities & Local Government,DCLG,02/11/2015,Miscellaneous Legal Costs,Neighbourhoods,COVENTRY CITY CNCL,,,,210384802,5000311673,,PROPERTY SEARCHES NEW BURDENS PAYMENT,CV1 2QL,"282,281.00",
Communities & Local Government,DCLG,02/11/2015,Miscellaneous Legal Costs,Neighbourhoods,CRAVEN DC (HSG),,,,,5000311520,,PROPERTY SEARCHES NEW BURDENS PAYMENT,BD23 1FJ,"38,264.00",
Communities & Local Government,DCLG,02/11/2015,Miscellaneous Legal Costs,Neighbourhoods,CRAWLEY BC,,,,211222500,5000311521,,PROPERTY SEARCHES NEW BURDENS PAYMENT,RH10 1UZ,"88,259.00",
Communities & Local Government,DCLG,02/11/2015,Miscellaneous Legal Costs,Neighbourhoods,CROYDON LB,,,,212419973,5000311674,,PROPERTY SEARCHES NEW BURDENS PAYMENT,CR9 3JS,"227,224.00",
Communities & Local Government,DCLG,02/11/2015,Miscellaneous Legal Costs,Neighbourhoods,CUMBRIA COUNTY CNCL,,,,211316542,5000311675,,PROPERTY SEARCHES NEW BURDENS PAYMENT,CA3 8NA,"8,360.00",
Communities & Local Government,DCLG,02/11/2015,Miscellaneous Legal Costs,Neighbourhoods,DACORUM BC,,,,236448643,5000311676,,PROPERTY SEARCHES NEW BURDENS PAYMENT,HP1 1HH,"129,767.00",
Communities & Local Government,DCLG,02/11/2015,Miscellaneous Legal Costs,Neighbourhoods,DARLINGTON BC,,,,,5000311677,,PROPERTY SEARCHES NEW BURDENS PAYMENT,TS19 1JA,"111,847.00",
Communities & Local Government,DCLG,02/11/2015,Miscellaneous Legal Costs,Neighbourhoods,DARTFORD BC,,,,225694942,5000311522,,PROPERTY SEARCHES NEW BURDENS PAYMENT,DA1 1DR,"69,604.00",
Communities & Local Government,DCLG,02/11/2015,Miscellaneous Legal Costs,Neighbourhoods,DAVENTRY DC,,,,239859333,5000311523,,PROPERTY SEARCHES NEW BURDENS PAYMENT,NN11 5AF,"70,265.00",
Communities & Local Government,DCLG,02/11/2015,Miscellaneous Legal Costs,Neighbourhoods,DERBY CITY CNCL,,,,229641378,5000311678,,PROPERTY SEARCHES NEW BURDENS PAYMENT,DE1 2FS,"144,898.00",
Communities & Local Government,DCLG,02/11/2015,Miscellaneous Legal Costs,Neighbourhoods,DERBYSHIRE COUNTYCOUNCIL,,,,232152967,5000311679,,PROPERTY SEARCHES NEW BURDENS PAYMENT,DE4 3AG,"9,426.00",
Communities & Local Government,DCLG,02/11/2015,Miscellaneous Legal Costs,Neighbourhoods,DERBYSHIRE DALES DC,,,,,5000311524,,PROPERTY SEARCHES NEW BURDENS PAYMENT,DE4 3NN,"36,180.00",
Communities & Local Government,DCLG,02/11/2015,Miscellaneous Legal Costs,Neighbourhoods,DEVON COUNTY CNCL,,,,213754018,5000311680,,PROPERTY SEARCHES NEW BURDENS PAYMENT,EX2 4QJ,"8,120.00",
Communities & Local Government,DCLG,02/11/2015,Miscellaneous Legal Costs,Neighbourhoods,DONCASTER MBC,,,,,5000311681,,PROPERTY SEARCHES NEW BURDENS PAYMENT,DN1 3QA,"77,643.00",
Communities & Local Government,DCLG,02/11/2015,Miscellaneous Legal Costs,Neighbourhoods,DOVER DC,,,,,5000311525,,PROPERTY SEARCHES NEW BURDENS PAYMENT,CT16 3PD,"58,709.00",
Communities & Local Government,DCLG,02/11/2015,Miscellaneous Legal Costs,Neighbourhoods,DUDLEY MBC,,,,,5000311682,,PROPERTY SEARCHES NEW BURDENS PAYMENT,DY1 1HF,"163,826.00",
Communities & Local Government,DCLG,02/11/2015,Miscellaneous Legal Costs,Neighbourhoods,DURHAM COUNTY COUNCIL,,,,224004882,5000311839,,PROPERTY SEARCHES NEW BURDENS PAYMENT,DH1 5UE,"444,647.00",
Communities & Local Government,DCLG,02/11/2015,Miscellaneous Legal Costs,Neighbourhoods,EALING LB,,,,,5000311683,,PROPERTY SEARCHES NEW BURDENS PAYMENT,W5 2HL,"119,315.00",
Communities & Local Government,DCLG,02/11/2015,Miscellaneous Legal Costs,Neighbourhoods,EAST CAMBRIDGESHIRE DC,,,,236472023,5000311526,,PROPERTY SEARCHES NEW BURDENS PAYMENT,CB7 4PL,"68,152.00",
Communities & Local Government,DCLG,02/11/2015,Miscellaneous Legal Costs,Neighbourhoods,EAST DEVON DC,,,,,5000311527,,PROPERTY SEARCHES NEW BURDENS PAYMENT,EX10 8HL,"94,595.00",
Communities & Local Government,DCLG,02/11/2015,Miscellaneous Legal Costs,Neighbourhoods,EAST DORSET DC,,,,228470456,5000311684,,PROPERTY SEARCHES NEW BURDENS PAYMENT,BH21 4HN,"63,215.00",
Communities & Local Government,DCLG,02/11/2015,Miscellaneous Legal Costs,Neighbourhoods,EAST HAMPSHIRE DC,,,,,5000311528,,PROPERTY SEARCHES NEW BURDENS PAYMENT,GU31 4EX,"98,764.00",
Communities & Local Government,DCLG,02/11/2015,Miscellaneous Legal Costs,Neighbourhoods,EAST HERTFORDSHIRE DC,,,,236176954,5000311529,,PROPERTY SEARCHES NEW BURDENS PAYMENT,SG13 8EQ,"110,043.00",
Communities & Local Government,DCLG,02/11/2015,Miscellaneous Legal Costs,Neighbourhoods,EAST LINDSEY DC,,,,,5000311530,,PROPERTY SEARCHES NEW BURDENS PAYMENT,LN11 8UP,"109,583.00",
Communities & Local Government,DCLG,02/11/2015,Miscellaneous Legal Costs,Neighbourhoods,EAST NORTHAMPTONSHIRE COUNCIL,,,,227475290,5000311531,,PROPERTY SEARCHES NEW BURDENS PAYMENT,NN14 4LZ,"97,678.00",
Communities & Local Government,DCLG,02/11/2015,Miscellaneous Legal Costs,Neighbourhoods,EAST RIDING OF YORKS (HSG),,,,423159987,5000311532,,PROPERTY SEARCHES NEW BURDENS PAYMENT,HU17 9BA,"277,329.00",
Communities & Local Government,DCLG,02/11/2015,Miscellaneous Legal Costs,Neighbourhoods,EAST STAFFORDSHIRE BC,,,,226778033,5000311533,,PROPERTY SEARCHES NEW BURDENS PAYMENT,DE14 2EB,"111,879.00",
Communities & Local Government,DCLG,02/11/2015,Miscellaneous Legal Costs,Neighbourhoods,EAST SUSSEX COUNTY CNCL,,,,,5000311685,,PROPERTY SEARCHES NEW BURDENS PAYMENT,BN7 1SF,"7,836.00",
Communities & Local Government,DCLG,02/11/2015,Miscellaneous Legal Costs,Neighbourhoods,EASTBOURNE BC,,,,229896428,5000311686,,PROPERTY SEARCHES NEW BURDENS PAYMENT,BN21 4TW,"39,581.00",
Communities & Local Government,DCLG,02/11/2015,Miscellaneous Legal Costs,Neighbourhoods,EASTLEIGH BOROUGH COUNCIL,,,,232669911,5000311687,,PROPERTY SEARCHES NEW BURDENS PAYMENT,SO5 9YN,"113,242.00",
Communities & Local Government,DCLG,02/11/2015,Miscellaneous Legal Costs,Neighbourhoods,EDEN DC (HSG),,,,,5000311534,,PROPERTY SEARCHES NEW BURDENS PAYMENT,CA11 7QF,"47,927.00",
Communities & Local Government,DCLG,02/11/2015,Miscellaneous Legal Costs,Neighbourhoods,ELMBRIDGE BC (HSG),,,,,5000311535,,PROPERTY SEARCHES NEW BURDENS PAYMENT,KT10 9SD,"98,660.00",
Communities & Local Government,DCLG,02/11/2015,Miscellaneous Legal Costs,Neighbourhoods,ENFIELD LB,,,,,5000311688,,PROPERTY SEARCHES NEW BURDENS PAYMENT,EN1 3XF,"96,275.00",
Communities & Local Government,DCLG,02/11/2015,Miscellaneous Legal Costs,Neighbourhoods,EPPING FOREST DC,,,,775876360,5000311689,,PROPERTY SEARCHES NEW BURDENS PAYMENT,CM16 4BZ,"102,587.00",
Communities & Local Government,DCLG,02/11/2015,Miscellaneous Legal Costs,Neighbourhoods,EPSOM & EWELL BC,,,,225423094,5000311690,,PROPERTY SEARCHES NEW BURDENS PAYMENT,KT18 5BY,"60,430.00",
Communities & Local Government,DCLG,02/11/2015,Miscellaneous Legal Costs,Neighbourhoods,EREWASH BC,,,,211209762,5000311691,,PROPERTY SEARCHES NEW BURDENS PAYMENT,DE7 5RP,"48,628.00",
Communities & Local Government,DCLG,02/11/2015,Miscellaneous Legal Costs,Neighbourhoods,ESSEX COUNTY CNCL,,,,233572986,5000311692,,PROPERTY SEARCHES NEW BURDENS PAYMENT,CM1 1JZ,"8,626.00",
Communities & Local Government,DCLG,02/11/2015,Miscellaneous Legal Costs,Neighbourhoods,EXETER CITY COUNCIL,,,,,5000311693,,PROPERTY SEARCHES NEW BURDENS PAYMENT,EX1 1JW,"60,537.00",
Communities & Local Government,DCLG,02/11/2015,Miscellaneous Legal Costs,Neighbourhoods,FAREHAM BC,,,,228474144,5000311536,,PROPERTY SEARCHES NEW BURDENS PAYMENT,PO16 7PU,"105,393.00",
Communities & Local Government,DCLG,02/11/2015,Miscellaneous Legal Costs,Neighbourhoods,FENLAND DC,,,,227476348,5000311537,,PROPERTY SEARCHES NEW BURDENS PAYMENT,PE15 8NQ,"68,847.00",
Communities & Local Government,DCLG,02/11/2015,Miscellaneous Legal Costs,Neighbourhoods,FOREST HEATH DISTRICT COUNCIL,,,,236678116,5000311538,,PROPERTY SEARCHES NEW BURDENS PAYMENT,IP28 7EY,"50,656.00",
Communities & Local Government,DCLG,02/11/2015,Miscellaneous Legal Costs,Neighbourhoods,FOREST OF DEAN DC,,,,211278890,5000311539,,PROPERTY SEARCHES NEW BURDENS PAYMENT,GL16 8HG,"50,846.00",
Communities & Local Government,DCLG,02/11/2015,Miscellaneous Legal Costs,Neighbourhoods,FYLDE BC,,,,227479912,5000311694,,PROPERTY SEARCHES NEW BURDENS PAYMENT,FY8 1LW,"74,548.00",
Communities & Local Government,DCLG,02/11/2015,Miscellaneous Legal Costs,Neighbourhoods,GATESHEAD COUNCIL,,,,216116041,5000311695,,PROPERTY SEARCHES NEW BURDENS PAYMENT,NE8 1HH,"192,058.00",
Communities & Local Government,DCLG,02/11/2015,Miscellaneous Legal Costs,Neighbourhoods,GEDLING BC,,,,236180337,5000311696,,PROPERTY SEARCHES NEW BURDENS PAYMENT,NG5 6LU,"55,000.00",
Communities & Local Government,DCLG,02/11/2015,Miscellaneous Legal Costs,Neighbourhoods,GLOUCESTER CITY CNCL,,,,230841392,5000311697,,PROPERTY SEARCHES NEW BURDENS PAYMENT,GL1 2EQ,"103,359.00",
Communities & Local Government,DCLG,02/11/2015,Miscellaneous Legal Costs,Neighbourhoods,GLOUCESTERSHIRE COUNTY CNCL,,,,211272067,5000311698,,PROPERTY SEARCHES NEW BURDENS PAYMENT,GL1 2TG,"7,467.00",
Communities & Local Government,DCLG,02/11/2015,Miscellaneous Legal Costs,Neighbourhoods,GOSPORT BOROUGH COUNCIL,,,,239825078,5000311699,,PROPERTY SEARCHES NEW BURDENS PAYMENT,PO12 1ED,"62,638.00",
Communities & Local Government,DCLG,02/11/2015,Miscellaneous Legal Costs,Neighbourhoods,GRAVESHAM BC,,,,236178612,5000311700,,PROPERTY SEARCHES NEW BURDENS PAYMENT,DA12 1AU,"61,012.00",
Communities & Local Government,DCLG,02/11/2015,Miscellaneous Legal Costs,Neighbourhoods,GREAT YARMOUTH BC,,,,292697372,5000311701,,PROPERTY SEARCHES NEW BURDENS PAYMENT,NR30 2QG,"53,397.00",
Communities & Local Government,DCLG,02/11/2015,Miscellaneous Legal Costs,Neighbourhoods,GREENWICH LB,,,,,5000311702,,PROPERTY SEARCHES NEW BURDENS PAYMENT,SE18 6HQ,"113,560.00",
Communities & Local Government,DCLG,02/11/2015,Miscellaneous Legal Costs,Neighbourhoods,GUILDFORD BC,,,,236663720,5000311540,,PROPERTY SEARCHES NEW BURDENS PAYMENT,GU2 5BB,"102,405.00",
Communities & Local Government,DCLG,02/11/2015,Miscellaneous Legal Costs,Neighbourhoods,HALTON BC (HSG),,,,,5000311541,,PROPERTY SEARCHES NEW BURDENS PAYMENT,WA8 7QF,"90,475.00",
Communities & Local Government,DCLG,02/11/2015,Miscellaneous Legal Costs,Neighbourhoods,HAMBLETON DC (HSG),,,,503481319,5000311542,,PROPERTY SEARCHES NEW BURDENS PAYMENT,DL6 2UU,"44,294.00",
Communities & Local Government,DCLG,02/11/2015,Miscellaneous Legal Costs,Neighbourhoods,HAMMERSMITH & FULHAM LB,,,,216929489,5000311704,,PROPERTY SEARCHES NEW BURDENS PAYMENT,W6 9JU,"93,992.00",
Communities & Local Government,DCLG,02/11/2015,Miscellaneous Legal Costs,Neighbourhoods,HAMPSHIRE COUNTY COUNCIL,,,,211325832,5000311705,,PROPERTY SEARCHES NEW BURDENS PAYMENT,SO23 8UB,"12,267.00",
Communities & Local Government,DCLG,02/11/2015,Miscellaneous Legal Costs,Neighbourhoods,HARBOROUGH DC (HSG),,,,212935774,5000311543,,PROPERTY SEARCHES NEW BURDENS PAYMENT,LE16 7AG,"52,076.00",
Communities & Local Government,DCLG,02/11/2015,Miscellaneous Legal Costs,Neighbourhoods,HARINGEY LB,,,,217471767,5000311706,,PROPERTY SEARCHES NEW BURDENS PAYMENT,N22 4TR,"94,164.00",
Communities & Local Government,DCLG,02/11/2015,Miscellaneous Legal Costs,Neighbourhoods,HARLOW DISTRICT COUNCIL,,Large,,239999055,5000311707,,PROPERTY SEARCHES NEW BURDENS PAYMENT,CM20 1WG,"70,628.00",
Communities & Local Government,DCLG,02/11/2015,Miscellaneous Legal Costs,Neighbourhoods,HARROGATE BC,,,,236660031,5000311544,,PROPERTY SEARCHES NEW BURDENS PAYMENT,HG1 2SG,"106,470.00",
Communities & Local Government,DCLG,02/11/2015,Miscellaneous Legal Costs,Neighbourhoods,HARROW LB,,,,,5000311708,,PROPERTY SEARCHES NEW BURDENS PAYMENT,HA1 2UZ,"103,561.00",
Communities & Local Government,DCLG,02/11/2015,Miscellaneous Legal Costs,Neighbourhoods,HART DC,,,,229723895,5000311709,,PROPERTY SEARCHES NEW BURDENS PAYMENT,GU13 8AE,"72,806.00",
Communities & Local Government,DCLG,02/11/2015,Miscellaneous Legal Costs,Neighbourhoods,HARTLEPOOL BOROUGH COUNCIL,,,,424291797,5000311710,,PROPERTY SEARCHES NEW BURDENS PAYMENT,TS24 8AY,"74,022.00",
Communities & Local Government,DCLG,02/11/2015,Miscellaneous Legal Costs,Neighbourhoods,HASTINGS BC,,,,,5000311711,,PROPERTY SEARCHES NEW BURDENS PAYMENT,TN34 3WN,"60,901.00",
Communities & Local Government,DCLG,02/11/2015,Miscellaneous Legal Costs,Neighbourhoods,HAVANT BC,,,,211047543,5000311712,,PROPERTY SEARCHES NEW BURDENS PAYMENT,PO9 2AX,"94,555.00",
Communities & Local Government,DCLG,02/11/2015,Miscellaneous Legal Costs,Neighbourhoods,HAVERING LB,,,,211209770,5000311713,,PROPERTY SEARCHES NEW BURDENS PAYMENT,RM1 3BB,"145,112.00",
Communities & Local Government,DCLG,02/11/2015,Miscellaneous Legal Costs,Neighbourhoods,HEREFORDSHIRE COUNCIL,,,,,5000311545,,PROPERTY SEARCHES NEW BURDENS PAYMENT,HR4 0XH,"187,575.00",
Communities & Local Government,DCLG,02/11/2015,Miscellaneous Legal Costs,Neighbourhoods,HERTFORDSHIRE COUNTY CNCL,,,,210659897,5000311714,,PROPERTY SEARCHES NEW BURDENS PAYMENT,SG13 8DQ,"8,408.00",
Communities & Local Government,DCLG,02/11/2015,Miscellaneous Legal Costs,Neighbourhoods,HERTSMERE BC,,,,237549253,5000311715,,PROPERTY SEARCHES NEW BURDENS PAYMENT,WD6 1WA,"55,666.00",
Communities & Local Government,DCLG,02/11/2015,Miscellaneous Legal Costs,Neighbourhoods,HIGH PEAK BC,,,,239967771,5000311546,,PROPERTY SEARCHES NEW BURDENS PAYMENT,SK17 6EL,"64,558.00",
Communities & Local Government,DCLG,02/11/2015,Miscellaneous Legal Costs,Neighbourhoods,HILLINGDON LB,,,,211198585,5000311716,,PROPERTY SEARCHES NEW BURDENS PAYMENT,UB8 1UW,"73,096.00",
Communities & Local Government,DCLG,02/11/2015,Miscellaneous Legal Costs,Neighbourhoods,HINCKLEY & BOSWORTH BC,,,,211176144,5000311547,,PROPERTY SEARCHES NEW BURDENS PAYMENT,LE10 1BZ,"139,286.00",
Communities & Local Government,DCLG,02/11/2015,Miscellaneous Legal Costs,Neighbourhoods,HORSHAM DC,,,,229776588,5000311548,,PROPERTY SEARCHES NEW BURDENS PAYMENT,RH12 1RL,"127,202.00",
Communities & Local Government,DCLG,02/11/2015,Miscellaneous Legal Costs,Neighbourhoods,HOUNSLOW LB,,Public Bodies,,210388999,5000311717,,PROPERTY SEARCHES NEW BURDENS PAYMENT,TW3 4DN,"93,429.00",
Communities & Local Government,DCLG,02/11/2015,Miscellaneous Legal Costs,Neighbourhoods,HULL CITY COUNCIL,,,,217460984,5000311725,,PROPERTY SEARCHES NEW BURDENS PAYMENT,HU1 2AA,"183,228.00",
Communities & Local Government,DCLG,02/11/2015,Miscellaneous Legal Costs,Neighbourhoods,HUNTINGDONSHIRE DC,,,,235999216,5000311549,,PROPERTY SEARCHES NEW BURDENS PAYMENT,PE18 6TN,"137,452.00",
Communities & Local Government,DCLG,02/11/2015,Miscellaneous Legal Costs,Neighbourhoods,HYNDBURN BC,,,,,5000311718,,PROPERTY SEARCHES NEW BURDENS PAYMENT,BB5 1EZ,"47,950.00",
Communities & Local Government,DCLG,02/11/2015,Miscellaneous Legal Costs,Neighbourhoods,IPSWICH BC,,,,226861391,5000311719,,PROPERTY SEARCHES NEW BURDENS PAYMENT,IP1 2DE,"69,941.00",
Communities & Local Government,DCLG,02/11/2015,Miscellaneous Legal Costs,Neighbourhoods,ISLE OF WIGHT CNCL,,,,236431730,5000311720,,PROPERTY SEARCHES NEW BURDENS PAYMENT,PO30 1UD,"113,239.00",
Communities & Local Government,DCLG,02/11/2015,Miscellaneous Legal Costs,Neighbourhoods,ISLINGTON LB,,,,225716729,5000311721,,PROPERTY SEARCHES NEW BURDENS PAYMENT,N1 1XR,"96,104.00",
Communities & Local Government,DCLG,02/11/2015,Miscellaneous Legal Costs,Neighbourhoods,KENT COUNTY CNCL,,,,211334420,5000311723,,PROPERTY SEARCHES NEW BURDENS PAYMENT,ME14 1RF,"8,337.00",
Communities & Local Government,DCLG,02/11/2015,Miscellaneous Legal Costs,Neighbourhoods,KETTERING BC,,,,211271796,5000311724,,PROPERTY SEARCHES NEW BURDENS PAYMENT,NN15 7QX,"64,832.00",
Communities & Local Government,DCLG,02/11/2015,Miscellaneous Legal Costs,Neighbourhoods,KINGS LYNN & WEST NORFOLK BC,,,,236417671,5000311550,,PROPERTY SEARCHES NEW BURDENS PAYMENT,PE30 1EX,"70,069.00",
Communities & Local Government,DCLG,02/11/2015,Miscellaneous Legal Costs,Neighbourhoods,KINGSTON UPON THAMES  (HSG),,,,211379941,5000311551,,PROPERTY SEARCHES NEW BURDENS PAYMENT,KT1 1EU,"81,624.00",
Communities & Local Government,DCLG,02/11/2015,Miscellaneous Legal Costs,Neighbourhoods,KIRKLEES COUNCIL (HSG),,,,,5000311552,,PROPERTY SEARCHES NEW BURDENS PAYMENT,HD1 2YU,"297,977.00",
Communities & Local Government,DCLG,02/11/2015,Miscellaneous Legal Costs,Neighbourhoods,KNOWSLEY MBC,,,,,5000311726,,PROPERTY SEARCHES NEW BURDENS PAYMENT,L36 9YZ,"120,042.00",
Communities & Local Government,DCLG,02/11/2015,Miscellaneous Legal Costs,Neighbourhoods,LANCASHIRE COUNTY CNCL,,,,233136584,5000311728,,PROPERTY SEARCHES NEW BURDENS PAYMENT,PR1 8RD,"11,250.00",
Communities & Local Government,DCLG,02/11/2015,Miscellaneous Legal Costs,Neighbourhoods,LANCASTER CITY COUNCIL,,,,228669990,5000311553,,PROPERTY SEARCHES NEW BURDENS PAYMENT,LA1 1PJ,"147,506.00",
Communities & Local Government,DCLG,02/11/2015,Miscellaneous Legal Costs,Neighbourhoods,LEEDS CITY CNCL,,Micro,,,5000311729,,PROPERTY SEARCHES NEW BURDENS PAYMENT,LS1 1JF,"488,547.00",
Communities & Local Government,DCLG,02/11/2015,Miscellaneous Legal Costs,Neighbourhoods,LEICESTER CITY CNCL,,,,228219960,5000311554,,PROPERTY SEARCHES NEW BURDENS PAYMENT,LE1 1FZ,"110,195.00",
Communities & Local Government,DCLG,02/11/2015,Miscellaneous Legal Costs,Neighbourhoods,LEICESTERSHIRE COUNTY CNCL,,,,423679836,5000311730,,PROPERTY SEARCHES NEW BURDENS PAYMENT,LE3 8RB,"10,514.00",
Communities & Local Government,DCLG,02/11/2015,Miscellaneous Legal Costs,Neighbourhoods,LEWES DC,,,,213090082,5000311555,,PROPERTY SEARCHES NEW BURDENS PAYMENT,BN7 1AB,"62,775.00",
Communities & Local Government,DCLG,02/11/2015,Miscellaneous Legal Costs,Neighbourhoods,LEWISHAM LB (HSG),,Large,,235653300,5000311556,,PROPERTY SEARCHES NEW BURDENS PAYMENT,SE6 4RU,"114,255.00",
Communities & Local Government,DCLG,02/11/2015,Miscellaneous Legal Costs,Neighbourhoods,LICHFIELD DC,,,,236780086,5000311731,,PROPERTY SEARCHES NEW BURDENS PAYMENT,WS13 6YX,"79,445.00",
Communities & Local Government,DCLG,02/11/2015,Miscellaneous Legal Costs,Neighbourhoods,LINCOLNSHIRE COUNTY COUNCIL,,,,,5000311733,,PROPERTY SEARCHES NEW BURDENS PAYMENT,LN1 1YT,"10,357.00",
Communities & Local Government,DCLG,02/11/2015,Miscellaneous Legal Costs,Neighbourhoods,LIVERPOOL CITY COUNCIL,,,,,5000311734,,PROPERTY SEARCHES NEW BURDENS PAYMENT,L2 2DH,"414,051.00",
Communities & Local Government,DCLG,02/11/2015,Miscellaneous Legal Costs,Neighbourhoods,LONDON BOROUGH OF BARNET,,,,211049507,5000311641,,PROPERTY SEARCHES NEW BURDENS PAYMENT,NN1 1NP,"122,559.00",
Communities & Local Government,DCLG,02/11/2015,Miscellaneous Legal Costs,Neighbourhoods,LONDON BOROUGH OF HACKNEY,,,,225221597,5000311703,,PROPERTY SEARCHES NEW BURDENS PAYMENT,E8 4RU,"75,833.00",
Communities & Local Government,DCLG,02/11/2015,Miscellaneous Legal Costs,Neighbourhoods,LONDON BOROUGH OF LAMBETH,,,,228216479,5000311727,,PROPERTY SEARCHES NEW BURDENS PAYMENT,SW2 1RL,"138,273.00",
Communities & Local Government,DCLG,02/11/2015,Miscellaneous Legal Costs,Neighbourhoods,LONDON BOROUGH OF NEWHAM,,,,211381004,5000311743,,PROPERTY SEARCHES NEW BURDENS PAYMENT,E16 2QU,"77,517.00",
Communities & Local Government,DCLG,02/11/2015,Miscellaneous Legal Costs,Neighbourhoods,LONDON BOROUGH OF REDBRIDGE,,,,211341417,5000311765,,PROPERTY SEARCHES NEW BURDENS PAYMENT,IG1 1NN,"129,661.00",
Communities & Local Government,DCLG,02/11/2015,Miscellaneous Legal Costs,Neighbourhoods,LUTON BC,,,,365112155,5000311735,,PROPERTY SEARCHES NEW BURDENS PAYMENT,LU1 2BQ,"154,704.00",
Communities & Local Government,DCLG,02/11/2015,Miscellaneous Legal Costs,Neighbourhoods,MAIDSTONE BC,,Public Bodies,,293004214,5000311557,,PROPERTY SEARCHES NEW BURDENS PAYMENT,ME15 6JQ,"94,980.00",
Communities & Local Government,DCLG,02/11/2015,Miscellaneous Legal Costs,Neighbourhoods,MALDON DC,,,,424668663,5000311558,,PROPERTY SEARCHES NEW BURDENS PAYMENT,CM9 7DL,"49,377.00",
Communities & Local Government,DCLG,02/11/2015,Miscellaneous Legal Costs,Neighbourhoods,MALVERN HILLS DC,,,,227470424,5000311736,,PROPERTY SEARCHES NEW BURDENS PAYMENT,WR14 3AF,"67,565.00",
Communities & Local Government,DCLG,02/11/2015,Miscellaneous Legal Costs,Neighbourhoods,MANCHESTER CITY CNCL (HSG),,,,211241393,5000311559,,PROPERTY SEARCHES NEW BURDENS PAYMENT,M60 2JR,"245,493.00",
Communities & Local Government,DCLG,02/11/2015,Miscellaneous Legal Costs,Neighbourhoods,MANSFIELD DC,,,,237922968,5000311737,,PROPERTY SEARCHES NEW BURDENS PAYMENT,NG19 7BH,"47,064.00",
Communities & Local Government,DCLG,02/11/2015,Miscellaneous Legal Costs,Neighbourhoods,MEDWAY TOWNS D C (HSG),,,,,5000311560,,PROPERTY SEARCHES NEW BURDENS PAYMENT,ME4 4TR,"131,073.00",
Communities & Local Government,DCLG,02/11/2015,Miscellaneous Legal Costs,Neighbourhoods,MELTON BC,,,,346268340,5000311561,,PROPERTY SEARCHES NEW BURDENS PAYMENT,LE13 0UL,"28,409.00",
Communities & Local Government,DCLG,02/11/2015,Miscellaneous Legal Costs,Neighbourhoods,MENDIP DISTRICT COUNCIL,,,,,5000311562,,PROPERTY SEARCHES NEW BURDENS PAYMENT,BA4 5BA,"64,811.00",
Communities & Local Government,DCLG,02/11/2015,Miscellaneous Legal Costs,Neighbourhoods,MERTON LB,,,,,5000311738,,PROPERTY SEARCHES NEW BURDENS PAYMENT,SM4 5DX,"121,159.00",
Communities & Local Government,DCLG,02/11/2015,Miscellaneous Legal Costs,Neighbourhoods,MID DEVON DC,,,,213241137,5000311563,,PROPERTY SEARCHES NEW BURDENS PAYMENT,EX16 6PP,"56,840.00",
Communities & Local Government,DCLG,02/11/2015,Miscellaneous Legal Costs,Neighbourhoods,MID SUFFOLK DISTRICK COUNCIL,,,,223387239,5000311564,,PROPERTY SEARCHES NEW BURDENS PAYMENT,IP6 8DL,"47,209.00",
Communities & Local Government,DCLG,02/11/2015,Miscellaneous Legal Costs,Neighbourhoods,MID SUSSEX DC,,,,236675989,5000311565,,PROPERTY SEARCHES NEW BURDENS PAYMENT,RH16 1SS,"99,292.00",
Communities & Local Government,DCLG,02/11/2015,Miscellaneous Legal Costs,Neighbourhoods,MIDDLESBROUGH BC,,,,,5000311739,,PROPERTY SEARCHES NEW BURDENS PAYMENT,TS1 2QQ,"117,746.00",
Communities & Local Government,DCLG,02/11/2015,Miscellaneous Legal Costs,Neighbourhoods,MILTON KEYNES BC,,,,,5000311740,,PROPERTY SEARCHES NEW BURDENS PAYMENT,MK9 3WJ,"269,082.00",
Communities & Local Government,DCLG,02/11/2015,Miscellaneous Legal Costs,Neighbourhoods,MOLE VALLEY DC,,,,225385772,5000311566,,PROPERTY SEARCHES NEW BURDENS PAYMENT,RH4 1SJ,"65,989.00",
Communities & Local Government,DCLG,02/11/2015,Miscellaneous Legal Costs,Neighbourhoods,NEW FOREST DC,,Public Bodies,,,5000311567,,PROPERTY SEARCHES NEW BURDENS PAYMENT,SO41 9ZG,"124,217.00",
Communities & Local Government,DCLG,02/11/2015,Miscellaneous Legal Costs,Neighbourhoods,NEWARK & SHERWOOD DC (HSG),,,,236186755,5000311568,,PROPERTY SEARCHES NEW BURDENS PAYMENT,NG23 5QX,"52,128.00",
Communities & Local Government,DCLG,02/11/2015,Miscellaneous Legal Costs,Neighbourhoods,NEWCASTLE UNDER LYME BC,,,,229894373,5000311741,,PROPERTY SEARCHES NEW BURDENS PAYMENT,ST5 2AG,"85,228.00",
Communities & Local Government,DCLG,02/11/2015,Miscellaneous Legal Costs,Neighbourhoods,NEWCASTLE UPON TYNE DC,,,,239154040,5000311742,,PROPERTY SEARCHES NEW BURDENS PAYMENT,NE99 2BN,"197,724.00",
Communities & Local Government,DCLG,02/11/2015,Miscellaneous Legal Costs,Neighbourhoods,NORFOLK COUNTY COUNCIL,,,,232602789,5000311744,,PROPERTY SEARCHES NEW BURDENS PAYMENT,NR1 2DW,"8,427.00",
Communities & Local Government,DCLG,02/11/2015,Miscellaneous Legal Costs,Neighbourhoods,NORTH DEVON DC,,,,,5000311569,,PROPERTY SEARCHES NEW BURDENS PAYMENT,EX31 1EA,"44,951.00",
Communities & Local Government,DCLG,02/11/2015,Miscellaneous Legal Costs,Neighbourhoods,NORTH DORSET DC,,,,236185005,5000311570,,PROPERTY SEARCHES NEW BURDENS PAYMENT,DT11 7LL,"43,381.00",
Communities & Local Government,DCLG,02/11/2015,Miscellaneous Legal Costs,Neighbourhoods,NORTH EAST DERBYSHIRE DC,,,,238879308,5000311745,,PROPERTY SEARCHES NEW BURDENS PAYMENT,S40 1LF,"35,865.00",
Communities & Local Government,DCLG,02/11/2015,Miscellaneous Legal Costs,Neighbourhoods,NORTH EAST LINCOLN DC (HSG),,,,211242737,5000311571,,PROPERTY SEARCHES NEW BURDENS PAYMENT,DN35 8LN,"192,613.00",
Communities & Local Government,DCLG,02/11/2015,Miscellaneous Legal Costs,Neighbourhoods,NORTH HERTS DC (HOUSING) (HSG),,,,233593917,5000311572,,PROPERTY SEARCHES NEW BURDENS PAYMENT,SG6 3JF,"118,728.00",
Communities & Local Government,DCLG,02/11/2015,Miscellaneous Legal Costs,Neighbourhoods,NORTH KESTEVEN DC,,,,,5000311746,,PROPERTY SEARCHES NEW BURDENS PAYMENT,NG34 7EF,"95,156.00",
Communities & Local Government,DCLG,02/11/2015,Miscellaneous Legal Costs,Neighbourhoods,NORTH LINCOLNSHIRE DC (HSG),,Public Bodies,,424005502,5000311573,,PROPERTY SEARCHES NEW BURDENS PAYMENT,DN16 1AB,"87,165.00",
Communities & Local Government,DCLG,02/11/2015,Miscellaneous Legal Costs,Neighbourhoods,NORTH NORFOLK DC,,,,239975964,5000311574,,PROPERTY SEARCHES NEW BURDENS PAYMENT,NR27 9EJ,"61,941.00",
Communities & Local Government,DCLG,02/11/2015,Miscellaneous Legal Costs,Neighbourhoods,NORTH SOMERSET COUNCIL,,Large,,,5000311747,,PROPERTY SEARCHES NEW BURDENS PAYMENT,BS23 1UJ,"137,570.00",
Communities & Local Government,DCLG,02/11/2015,Miscellaneous Legal Costs,Neighbourhoods,NORTH TYNESIDE MBC,,,,,5000311748,,PROPERTY SEARCHES NEW BURDENS PAYMENT,NE27 0BY,"144,992.00",
Communities & Local Government,DCLG,02/11/2015,Miscellaneous Legal Costs,Neighbourhoods,NORTH WARWICKSHIRE BC,,Large,,,5000311575,,PROPERTY SEARCHES NEW BURDENS PAYMENT,CV9 1DE,"53,525.00",
Communities & Local Government,DCLG,02/11/2015,Miscellaneous Legal Costs,Neighbourhoods,NORTH WEST LEICESTERSHIRE DC,,,,232605782,5000311576,,PROPERTY SEARCHES NEW BURDENS PAYMENT,LE67 9SH,"71,882.00",
Communities & Local Government,DCLG,02/11/2015,Miscellaneous Legal Costs,Neighbourhoods,NORTH YORKSHIRE CC (DL7 8AL),,,,,5000311749,,PROPERTY SEARCHES NEW BURDENS PAYMENT,DL7 8AL,"15,111.00",
Communities & Local Government,DCLG,02/11/2015,Miscellaneous Legal Costs,Neighbourhoods,NORTHAMPTON BOROUGH COUNCIL,,,,228310017,5000311750,,PROPERTY SEARCHES NEW BURDENS PAYMENT,NN4 4FF,"218,914.00",
Communities & Local Government,DCLG,02/11/2015,Miscellaneous Legal Costs,Neighbourhoods,NORTHAMPTONSHIRE COUNTY COUNCIL,,,,,5000311751,,PROPERTY SEARCHES NEW BURDENS PAYMENT,CB3 0AP,"9,128.00",
Communities & Local Government,DCLG,02/11/2015,Miscellaneous Legal Costs,Neighbourhoods,NORTHUMBERLAND COUNTY COUNCIL,,,,210308905,5000311832,,PROPERTY SEARCHES NEW BURDENS PAYMENT,NE61 2EF,"248,506.00",
Communities & Local Government,DCLG,02/11/2015,Miscellaneous Legal Costs,Neighbourhoods,NORWICH CITY CNCL,,,,235981297,5000311752,,PROPERTY SEARCHES NEW BURDENS PAYMENT,NR2 1NH,"66,726.00",
Communities & Local Government,DCLG,02/11/2015,Miscellaneous Legal Costs,Neighbourhoods,NOTTINGHAM CITY COUNCIL,,,,214495447,5000311753,,PROPERTY SEARCHES NEW BURDENS PAYMENT,NG2 3NG,"110,267.00",
Communities & Local Government,DCLG,02/11/2015,Miscellaneous Legal Costs,Neighbourhoods,NOTTINGHAMSHIRE COUNTY CNCL,,,,,5000311754,,PROPERTY SEARCHES NEW BURDENS PAYMENT,NG1 4BU,"2,836.00",
Communities & Local Government,DCLG,02/11/2015,Miscellaneous Legal Costs,Neighbourhoods,NUNEATON & BEDWORTH BC,,Large,,,5000311755,,PROPERTY SEARCHES NEW BURDENS PAYMENT,CV11 5AA,"136,982.00",
Communities & Local Government,DCLG,02/11/2015,Miscellaneous Legal Costs,Neighbourhoods,OADBY & WIGSTON BC (HSG),,,,239831878,5000311577,,PROPERTY SEARCHES NEW BURDENS PAYMENT,LE8 2DR,"33,050.00",
Communities & Local Government,DCLG,02/11/2015,Miscellaneous Legal Costs,Neighbourhoods,OLDHAM MBC,,,,213015574,5000311756,,PROPERTY SEARCHES NEW BURDENS PAYMENT,OL1 1UH,"111,769.00",
Communities & Local Government,DCLG,02/11/2015,Miscellaneous Legal Costs,Neighbourhoods,OXFORD CITY COUNCIL,,,,212437417,5000311757,,PROPERTY SEARCHES NEW BURDENS PAYMENT,OX1 1DS,"103,753.00",
Communities & Local Government,DCLG,02/11/2015,Miscellaneous Legal Costs,Neighbourhoods,OXFORDSHIRE CC,,,,228216438,5000311758,,PROPERTY SEARCHES NEW BURDENS PAYMENT,OX1 1TH,"8,765.00",
Communities & Local Government,DCLG,02/11/2015,Miscellaneous Legal Costs,Neighbourhoods,PENDLE BC,,,,548605328,5000311759,,PROPERTY SEARCHES NEW BURDENS PAYMENT,BB9 7LG,"44,084.00",
Communities & Local Government,DCLG,02/11/2015,Miscellaneous Legal Costs,Neighbourhoods,PETERBOROUGH CITY CNCL,,,,,5000311760,,PROPERTY SEARCHES NEW BURDENS PAYMENT,PE1 1HG,"95,655.00",
Communities & Local Government,DCLG,02/11/2015,Miscellaneous Legal Costs,Neighbourhoods,PLYMOUTH CITY CNCL,,Public Bodies,,236416095,5000311761,,PROPERTY SEARCHES NEW BURDENS PAYMENT,PL1 2AA,"130,257.00",
Communities & Local Government,DCLG,02/11/2015,Miscellaneous Legal Costs,Neighbourhoods,POOLE BC (HSG),,,,,5000311578,,PROPERTY SEARCHES NEW BURDENS PAYMENT,BH15 2RU,"110,063.00",
Communities & Local Government,DCLG,02/11/2015,Miscellaneous Legal Costs,Neighbourhoods,PORTSMOUTH CITY COUNCIL,,Large,,211183082,5000311762,,PROPERTY SEARCHES NEW BURDENS PAYMENT,PO1 2AR,"102,724.00",
Communities & Local Government,DCLG,02/11/2015,Miscellaneous Legal Costs,Neighbourhoods,PRESTON BC,,,,232604124,5000311763,,PROPERTY SEARCHES NEW BURDENS PAYMENT,PR1 2RL,"154,346.00",
Communities & Local Government,DCLG,02/11/2015,Miscellaneous Legal Costs,Neighbourhoods,PURBECK DC,,,,,5000311579,,PROPERTY SEARCHES NEW BURDENS PAYMENT,BH20 4PP,"34,499.00",
Communities & Local Government,DCLG,02/11/2015,Miscellaneous Legal Costs,Neighbourhoods,READING BC,,,,210220399,5000311764,,PROPERTY SEARCHES NEW BURDENS PAYMENT,RG1 7TD,"125,865.00",
Communities & Local Government,DCLG,02/11/2015,Miscellaneous Legal Costs,Neighbourhoods,REDCAR & CLEVELAND BOROUGH COUNCIL,,,,215175196,5000311766,,PROPERTY SEARCHES NEW BURDENS PAYMENT,TS10 1RT,"126,353.00",
Communities & Local Government,DCLG,02/11/2015,Miscellaneous Legal Costs,Neighbourhoods,REDDITCH BC,,,,231421491,5000311767,,PROPERTY SEARCHES NEW BURDENS PAYMENT,B98 8AH,"60,884.00",
Communities & Local Government,DCLG,02/11/2015,Miscellaneous Legal Costs,Neighbourhoods,REIGATE & BANSTEAD BC,,,,211313515,5000311768,,PROPERTY SEARCHES NEW BURDENS PAYMENT,RH2 OSH,"88,987.00",
Communities & Local Government,DCLG,02/11/2015,Miscellaneous Legal Costs,Neighbourhoods,RIBBLE VALLEY BC,,,,232617894,5000311580,,PROPERTY SEARCHES NEW BURDENS PAYMENT,BB7 2RA,"27,883.00",
Communities & Local Government,DCLG,02/11/2015,Miscellaneous Legal Costs,Neighbourhoods,RICHMOND UPON THAMES LB,,,,228868535,5000311769,,PROPERTY SEARCHES NEW BURDENS PAYMENT,TW1 3BZ,"132,587.00",
Communities & Local Government,DCLG,02/11/2015,Miscellaneous Legal Costs,Neighbourhoods,RICHMONDSHIRE DC,,,,232245142,5000311581,,PROPERTY SEARCHES NEW BURDENS PAYMENT,DL10 4JX,"36,175.00",
Communities & Local Government,DCLG,02/11/2015,Miscellaneous Legal Costs,Neighbourhoods,ROCHDALE MBC,,,,,5000311770,,PROPERTY SEARCHES NEW BURDENS PAYMENT,OL16 1YG,"84,810.00",
Communities & Local Government,DCLG,02/11/2015,Miscellaneous Legal Costs,Neighbourhoods,ROCHFORD DISTRICT COUNCIL,,,,387828767,5000311771,,PROPERTY SEARCHES NEW BURDENS PAYMENT,SS4 1BW,"72,008.00",
Communities & Local Government,DCLG,02/11/2015,Miscellaneous Legal Costs,Neighbourhoods,ROSSENDALE BC,,,,237654020,5000311772,,PROPERTY SEARCHES NEW BURDENS PAYMENT,OL13 0BB,"33,847.00",
Communities & Local Government,DCLG,02/11/2015,Miscellaneous Legal Costs,Neighbourhoods,ROTHER DC (HSG),,,,,5000311582,,PROPERTY SEARCHES NEW BURDENS PAYMENT,TN39 3JX,"72,839.00",
Communities & Local Government,DCLG,02/11/2015,Miscellaneous Legal Costs,Neighbourhoods,ROTHERHAM MBC,,,,211266937,5000311773,,PROPERTY SEARCHES NEW BURDENS PAYMENT,S60 1AE,"70,846.00",
Communities & Local Government,DCLG,02/11/2015,Miscellaneous Legal Costs,Neighbourhoods,ROYAL BOROUGH OF KENSINGTON & CHELS,,,,211124466,5000311722,,PROPERTY SEARCHES NEW BURDENS PAYMENT,W8 7NX,"113,676.00",
Communities & Local Government,DCLG,02/11/2015,Miscellaneous Legal Costs,Neighbourhoods,RUGBY BOROUGH COUNCIL,,,,,5000311774,,PROPERTY SEARCHES NEW BURDENS PAYMENT,CV21 2RR,"70,290.00",
Communities & Local Government,DCLG,02/11/2015,Miscellaneous Legal Costs,Neighbourhoods,RUNNYMEDE BOROUGH COUNCIL,,,,232225722,5000311775,,PROPERTY SEARCHES NEW BURDENS PAYMENT,KT15 2AH,"49,528.00",
Communities & Local Government,DCLG,02/11/2015,Miscellaneous Legal Costs,Neighbourhoods,RUSHCLIFFE BOROUGH COUNCIL,,,,,5000311583,,PROPERTY SEARCHES NEW BURDENS PAYMENT,NG2 5FE,"54,960.00",
Communities & Local Government,DCLG,02/11/2015,Miscellaneous Legal Costs,Neighbourhoods,RUSHMOOR BC,,,,232607606,5000311776,,PROPERTY SEARCHES NEW BURDENS PAYMENT,GU14 7JU,"85,553.00",
Communities & Local Government,DCLG,02/11/2015,Miscellaneous Legal Costs,Neighbourhoods,RUTLAND CC,,,,,5000311777,,PROPERTY SEARCHES NEW BURDENS PAYMENT,LE15 6HP,"19,269.00",
Communities & Local Government,DCLG,02/11/2015,Miscellaneous Legal Costs,Neighbourhoods,RYEDALE DC,,,,,5000311584,,PROPERTY SEARCHES NEW BURDENS PAYMENT,YO17 0HH,"34,202.00",
Communities & Local Government,DCLG,02/11/2015,Miscellaneous Legal Costs,Neighbourhoods,SALFORD CITY CNCL,,,,213180073,5000311778,,PROPERTY SEARCHES NEW BURDENS PAYMENT,M27 5AW,"127,138.00",
Communities & Local Government,DCLG,02/11/2015,Miscellaneous Legal Costs,Neighbourhoods,SANDWELL MBC,,,,,5000311779,,PROPERTY SEARCHES NEW BURDENS PAYMENT,B69 3BS,"102,066.00",
Communities & Local Government,DCLG,02/11/2015,Miscellaneous Legal Costs,Neighbourhoods,SCARBOROUGH BC,,Large,,,5000311585,,PROPERTY SEARCHES NEW BURDENS PAYMENT,YO11 2HG,"128,992.00",
Communities & Local Government,DCLG,02/11/2015,Miscellaneous Legal Costs,Neighbourhoods,SEDGEMOOR DC,,,,211204011,5000311586,,PROPERTY SEARCHES NEW BURDENS PAYMENT,TA6 3AR,"67,984.00",
Communities & Local Government,DCLG,02/11/2015,Miscellaneous Legal Costs,Neighbourhoods,SEFTON MBC,,Public Bodies,,232936125,5000311780,,PROPERTY SEARCHES NEW BURDENS PAYMENT,L20 3NJ,"289,559.00",
Communities & Local Government,DCLG,02/11/2015,Miscellaneous Legal Costs,Neighbourhoods,SELBY DC,,,,239816721,5000311587,,PROPERTY SEARCHES NEW BURDENS PAYMENT,YO8 9FT,"80,278.00",
Communities & Local Government,DCLG,02/11/2015,Miscellaneous Legal Costs,Neighbourhoods,SEVENOAKS DC,,,,236100913,5000311588,,PROPERTY SEARCHES NEW BURDENS PAYMENT,TN13 1HG,"64,956.00",
Communities & Local Government,DCLG,02/11/2015,Miscellaneous Legal Costs,Neighbourhoods,SHEPWAY DISTRICT COUNCIL,,,,235550878,5000311589,,PROPERTY SEARCHES NEW BURDENS PAYMENT,CT20 2QY,"72,880.00",
Communities & Local Government,DCLG,02/11/2015,Miscellaneous Legal Costs,Neighbourhoods,SHROPSHIRE UNITARY AUTHORITY,,,,217036490,5000311837,,PROPERTY SEARCHES NEW BURDENS PAYMENT,SY2 6ND,"144,719.00",
Communities & Local Government,DCLG,02/11/2015,Miscellaneous Legal Costs,Neighbourhoods,SLOUGH BOROUGH COUNCIL,,,,211027123,5000311781,,PROPERTY SEARCHES NEW BURDENS PAYMENT,SL1 3UF,"81,760.00",
Communities & Local Government,DCLG,02/11/2015,Miscellaneous Legal Costs,Neighbourhoods,SOLIHULL MBC,,,,,5000311782,,PROPERTY SEARCHES NEW BURDENS PAYMENT,B91 3QR,"80,733.00",
Communities & Local Government,DCLG,02/11/2015,Miscellaneous Legal Costs,Neighbourhoods,SOMERSET COUNTY CNCL,,,,211229406,5000311783,,PROPERTY SEARCHES NEW BURDENS PAYMENT,TA1 4DY,"8,015.00",
Communities & Local Government,DCLG,02/11/2015,Miscellaneous Legal Costs,Neighbourhoods,SOUTH BUCKS DC (HSG),,,,,5000311590,,PROPERTY SEARCHES NEW BURDENS PAYMENT,UB9 4LH,"49,409.00",
Communities & Local Government,DCLG,02/11/2015,Miscellaneous Legal Costs,Neighbourhoods,SOUTH CAMBRIDGESHIRE DC,,,,236369484,5000311591,,PROPERTY SEARCHES NEW BURDENS PAYMENT,CB23 6EA,"122,685.00",
Communities & Local Government,DCLG,02/11/2015,Miscellaneous Legal Costs,Neighbourhoods,SOUTH DERBYSHIRE DC,,Public Bodies,,232612416,5000311592,,PROPERTY SEARCHES NEW BURDENS PAYMENT,DE11 0AH,"105,177.00",
Communities & Local Government,DCLG,02/11/2015,Miscellaneous Legal Costs,Neighbourhoods,SOUTH GLOUCESTERSHIRE DC (HSG),,,,,5000311593,,PROPERTY SEARCHES NEW BURDENS PAYMENT,BS15 2TR,"144,657.00",
Communities & Local Government,DCLG,02/11/2015,Miscellaneous Legal Costs,Neighbourhoods,SOUTH HAMS DC,,,,236445342,5000311594,,PROPERTY SEARCHES NEW BURDENS PAYMENT,TQ9 5NE,"97,133.00",
Communities & Local Government,DCLG,02/11/2015,Miscellaneous Legal Costs,Neighbourhoods,SOUTH HOLLAND,,,,236445383,5000311595,,PROPERTY SEARCHES NEW BURDENS PAYMENT,PE11 2XE,"56,637.00",
Communities & Local Government,DCLG,02/11/2015,Miscellaneous Legal Costs,Neighbourhoods,SOUTH KESTEVEN DC (HSG),,,,227470747,5000311596,,PROPERTY SEARCHES NEW BURDENS PAYMENT,NG31 6PZ,"84,243.00",
Communities & Local Government,DCLG,02/11/2015,Miscellaneous Legal Costs,Neighbourhoods,SOUTH LAKELAND DC,,,,236445466,5000311597,,PROPERTY SEARCHES NEW BURDENS PAYMENT,LA49 4DQ,"80,767.00",
Communities & Local Government,DCLG,02/11/2015,Miscellaneous Legal Costs,Neighbourhoods,SOUTH NORFOLK DC,,,,232605717,5000311598,,PROPERTY SEARCHES NEW BURDENS PAYMENT,NR15 2XE,"70,681.00",
Communities & Local Government,DCLG,02/11/2015,Miscellaneous Legal Costs,Neighbourhoods,SOUTH NORTHAMPTONSHIRE DC,,,,,5000311599,,PROPERTY SEARCHES NEW BURDENS PAYMENT,NN12 7AE,"95,488.00",
Communities & Local Government,DCLG,02/11/2015,Miscellaneous Legal Costs,Neighbourhoods,SOUTH OXFORDSHIRE DC,,,,212296766,5000311600,,PROPERTY SEARCHES NEW BURDENS PAYMENT,OX10 8HQ,"103,039.00",
Communities & Local Government,DCLG,02/11/2015,Miscellaneous Legal Costs,Neighbourhoods,SOUTH RIBBLE BC,,Public Bodies,,,5000311784,,PROPERTY SEARCHES NEW BURDENS PAYMENT,PR5 1DH,"126,635.00",
Communities & Local Government,DCLG,02/11/2015,Miscellaneous Legal Costs,Neighbourhoods,SOUTH SOMERSET DC,,,,239850811,5000311601,,PROPERTY SEARCHES NEW BURDENS PAYMENT,BA20 2DS,"117,620.00",
Communities & Local Government,DCLG,02/11/2015,Miscellaneous Legal Costs,Neighbourhoods,SOUTH STAFFORDSHIRE DC,,,,210305155,5000311602,,PROPERTY SEARCHES NEW BURDENS PAYMENT,WV8 1PX,"48,865.00",
Communities & Local Government,DCLG,02/11/2015,Miscellaneous Legal Costs,Neighbourhoods,SOUTH TYNESIDE COUNCIL,,,,345736438,5000311785,,PROPERTY SEARCHES NEW BURDENS PAYMENT,NE33 2RL,"124,887.00",
Communities & Local Government,DCLG,02/11/2015,Miscellaneous Legal Costs,Neighbourhoods,SOUTHAMPTON CITY CNCL,,,,216927475,5000311786,,PROPERTY SEARCHES NEW BURDENS PAYMENT,SO14 7LY,"173,007.00",
Communities & Local Government,DCLG,02/11/2015,Miscellaneous Legal Costs,Neighbourhoods,SOUTHEND ON SEA BC,,,,217067263,5000311787,,PROPERTY SEARCHES NEW BURDENS PAYMENT,SS2 6EP,"159,032.00",
Communities & Local Government,DCLG,02/11/2015,Miscellaneous Legal Costs,Neighbourhoods,SOUTHWARK LB,,,,,5000311788,,PROPERTY SEARCHES NEW BURDENS PAYMENT,SE1 2QH,"122,256.00",
Communities & Local Government,DCLG,02/11/2015,Miscellaneous Legal Costs,Neighbourhoods,SPELTHORNE BOROUGH COUNCIL,,,,211177332,5000311603,,PROPERTY SEARCHES NEW BURDENS PAYMENT,TW18 1XB,"52,340.00",
Communities & Local Government,DCLG,02/11/2015,Miscellaneous Legal Costs,Neighbourhoods,ST ALBANS CITY COUNCIL,,,,218692510,5000311789,,PROPERTY SEARCHES NEW BURDENS PAYMENT,AL1 3JE,"148,846.00",
Communities & Local Government,DCLG,02/11/2015,Miscellaneous Legal Costs,Neighbourhoods,ST EDMUNDSBURY BOROUGH COUNCIL,,,,212503653,5000311604,,PROPERTY SEARCHES NEW BURDENS PAYMENT,IP33 3YU,"63,994.00",
Communities & Local Government,DCLG,02/11/2015,Miscellaneous Legal Costs,Neighbourhoods,ST HELENS MBC,,,,,5000311790,,PROPERTY SEARCHES NEW BURDENS PAYMENT,WA10 1HP,"125,240.00",
Communities & Local Government,DCLG,02/11/2015,Miscellaneous Legal Costs,Neighbourhoods,STAFFORD BC,,,,227476934,5000311791,,PROPERTY SEARCHES NEW BURDENS PAYMENT,ST16 3AQ,"95,460.00",
Communities & Local Government,DCLG,02/11/2015,Miscellaneous Legal Costs,Neighbourhoods,STAFFORDSHIRE COUNTY CNCL,,Public Bodies,,,5000311792,,PROPERTY SEARCHES NEW BURDENS PAYMENT,ST16 2DH,"21,414.00",
Communities & Local Government,DCLG,02/11/2015,Miscellaneous Legal Costs,Neighbourhoods,STAFFORDSHIRE MOORLANDS DC,,,,232749775,5000311605,,PROPERTY SEARCHES NEW BURDENS PAYMENT,ST13 6HQ,"79,284.00",
Communities & Local Government,DCLG,02/11/2015,Miscellaneous Legal Costs,Neighbourhoods,STEVENAGE BC,,,,236440186,5000311793,,PROPERTY SEARCHES NEW BURDENS PAYMENT,SG1 1HN,"69,448.00",
Communities & Local Government,DCLG,02/11/2015,Miscellaneous Legal Costs,Neighbourhoods,STOCKPORT MBC,,,,228706248,5000311794,,PROPERTY SEARCHES NEW BURDENS PAYMENT,SK1 3XE,"209,515.00",
Communities & Local Government,DCLG,02/11/2015,Miscellaneous Legal Costs,Neighbourhoods,STOCKTON-ON-TEES BC (HSG),,,,,5000311606,,PROPERTY SEARCHES NEW BURDENS PAYMENT,TS23 2YS,"182,202.00",
Communities & Local Government,DCLG,02/11/2015,Miscellaneous Legal Costs,Neighbourhoods,STOKE ON TRENT CITY COUNCIL,,,,216037890,5000311795,,PROPERTY SEARCHES NEW BURDENS PAYMENT,ST4 1HH,"179,667.00",
Communities & Local Government,DCLG,02/11/2015,Miscellaneous Legal Costs,Neighbourhoods,STRATFORD ON AVON DC,,,,227473881,5000311796,,PROPERTY SEARCHES NEW BURDENS PAYMENT,CV37 6HX,"77,863.00",
Communities & Local Government,DCLG,02/11/2015,Miscellaneous Legal Costs,Neighbourhoods,STROUD DC (HSG),,,,,5000311607,,PROPERTY SEARCHES NEW BURDENS PAYMENT,GL5 4UB,"94,341.00",
Communities & Local Government,DCLG,02/11/2015,Miscellaneous Legal Costs,Neighbourhoods,SUFFOLK CC (SOCIAL CARE SERV) (H,,,,385614821,5000311608,,PROPERTY SEARCHES NEW BURDENS PAYMENT,IP4 1LH,"8,074.00",
Communities & Local Government,DCLG,02/11/2015,Miscellaneous Legal Costs,Neighbourhoods,SUFFOLK COASTAL DC (HSG),,,,239933203,5000311609,,PROPERTY SEARCHES NEW BURDENS PAYMENT,IP12 1AU,"82,365.00",
Communities & Local Government,DCLG,02/11/2015,Miscellaneous Legal Costs,Neighbourhoods,SURREY HEATH BC,,,,236445441,5000311797,,PROPERTY SEARCHES NEW BURDENS PAYMENT,GU15 3HD,"64,509.00",
Communities & Local Government,DCLG,02/11/2015,Miscellaneous Legal Costs,Neighbourhoods,SUTTON LB,,,,,5000311798,,PROPERTY SEARCHES NEW BURDENS PAYMENT,SM1 1EA,"151,052.00",
Communities & Local Government,DCLG,02/11/2015,Miscellaneous Legal Costs,Neighbourhoods,SWALE BC,,,,239842768,5000311799,,PROPERTY SEARCHES NEW BURDENS PAYMENT,ME10 3HT,"69,202.00",
Communities & Local Government,DCLG,02/11/2015,Miscellaneous Legal Costs,Neighbourhoods,SWINDON BC,,,,458639697,5000311800,,PROPERTY SEARCHES NEW BURDENS PAYMENT,SN1 2JH,"202,533.00",
Communities & Local Government,DCLG,02/11/2015,Miscellaneous Legal Costs,Neighbourhoods,TAMESIDE MBC,,,,212635875,5000311801,,PROPERTY SEARCHES NEW BURDENS PAYMENT,OL6 6DL,"146,078.00",
Communities & Local Government,DCLG,02/11/2015,Miscellaneous Legal Costs,Neighbourhoods,TAMWORTH BOROUGH COUNCIL,,,,232612457,5000311802,,PROPERTY SEARCHES NEW BURDENS PAYMENT,B79 7BZ,"67,221.00",
Communities & Local Government,DCLG,02/11/2015,Miscellaneous Legal Costs,Neighbourhoods,TANDRIDGE DC,,,,225481076,5000311610,,PROPERTY SEARCHES NEW BURDENS PAYMENT,RH8 0BT,"65,646.00",
Communities & Local Government,DCLG,02/11/2015,Miscellaneous Legal Costs,Neighbourhoods,TAUNTON DEANE BC,,,,236185294,5000311611,,PROPERTY SEARCHES NEW BURDENS PAYMENT,TA1 1HE,"81,293.00",
Communities & Local Government,DCLG,02/11/2015,Miscellaneous Legal Costs,Neighbourhoods,TEIGNBRIDGE DC,,,,236440475,5000311612,,PROPERTY SEARCHES NEW BURDENS PAYMENT,TQ12 4XX,"101,769.00",
Communities & Local Government,DCLG,02/11/2015,Miscellaneous Legal Costs,Neighbourhoods,TELFORD & WREKIN COUNCIL,,,,230235801,5000311803,,PROPERTY SEARCHES NEW BURDENS PAYMENT,TF3 4NT,"136,849.00",
Communities & Local Government,DCLG,02/11/2015,Miscellaneous Legal Costs,Neighbourhoods,TENDRING DC,,,,,5000311613,,PROPERTY SEARCHES NEW BURDENS PAYMENT,CO15 1SE,"85,745.00",
Communities & Local Government,DCLG,02/11/2015,Miscellaneous Legal Costs,Neighbourhoods,TEST VALLEY BC,,,,225442698,5000311614,,PROPERTY SEARCHES NEW BURDENS PAYMENT,SP10 3AJ,"81,329.00",
Communities & Local Government,DCLG,02/11/2015,Miscellaneous Legal Costs,Neighbourhoods,TEWKESBURY BC,,,,232740399,5000311615,,PROPERTY SEARCHES NEW BURDENS PAYMENT,GL20 5TT,"68,455.00",
Communities & Local Government,DCLG,02/11/2015,Miscellaneous Legal Costs,Neighbourhoods,THANET DC,,,,232309369,5000311616,,PROPERTY SEARCHES NEW BURDENS PAYMENT,CT8 1XZ,"119,810.00",
Communities & Local Government,DCLG,02/11/2015,Miscellaneous Legal Costs,Neighbourhoods,THREE RIVERS DC,,,,,5000311804,,PROPERTY SEARCHES NEW BURDENS PAYMENT,WD3 1RL,"73,595.00",
Communities & Local Government,DCLG,02/11/2015,Miscellaneous Legal Costs,Neighbourhoods,THURROCK  BOROUGH COUNCIL,,,,,5000311805,,PROPERTY SEARCHES NEW BURDENS PAYMENT,RM17 6SL,"127,208.00",
Communities & Local Government,DCLG,02/11/2015,Miscellaneous Legal Costs,Neighbourhoods,TONBRIDGE & MALLING BC,,,,,5000311617,,PROPERTY SEARCHES NEW BURDENS PAYMENT,ME19 6LZ,"73,123.00",
Communities & Local Government,DCLG,02/11/2015,Miscellaneous Legal Costs,Neighbourhoods,TORBAY BC,,,,,5000311806,,PROPERTY SEARCHES NEW BURDENS PAYMENT,TQ1 3DR,"138,793.00",
Communities & Local Government,DCLG,02/11/2015,Miscellaneous Legal Costs,Neighbourhoods,TORRIDGE DC,,,,,5000311618,,PROPERTY SEARCHES NEW BURDENS PAYMENT,EX39 2QG,"34,264.00",
Communities & Local Government,DCLG,02/11/2015,Miscellaneous Legal Costs,Neighbourhoods,TOWER HAMLETS LB (HSG),,,,231315144,5000311619,,PROPERTY SEARCHES NEW BURDENS PAYMENT,E14 2BG,"97,542.00",
Communities & Local Government,DCLG,02/11/2015,Miscellaneous Legal Costs,Neighbourhoods,TRAFFORD MBC,,,,,5000311807,,PROPERTY SEARCHES NEW BURDENS PAYMENT,M32 0TH,"180,849.00",
Communities & Local Government,DCLG,02/11/2015,Miscellaneous Legal Costs,Neighbourhoods,TUNBRIDGE WELLS BC,,,,775221013,5000311620,,PROPERTY SEARCHES NEW BURDENS PAYMENT,TN1 1RS,"67,323.00",
Communities & Local Government,DCLG,02/11/2015,Miscellaneous Legal Costs,Neighbourhoods,UTTLESFORD DC,,,,424423242,5000311621,,PROPERTY SEARCHES NEW BURDENS PAYMENT,CB11 4ER,"55,965.00",
Communities & Local Government,DCLG,02/11/2015,Miscellaneous Legal Costs,Neighbourhoods,VALE OF WHITE HORSE DC,,,,,5000311622,,PROPERTY SEARCHES NEW BURDENS PAYMENT,OX14 3JE,"92,299.00",
Communities & Local Government,DCLG,02/11/2015,Miscellaneous Legal Costs,Neighbourhoods,WALSALL MBC,,,,212515585,5000311809,,PROPERTY SEARCHES NEW BURDENS PAYMENT,WS1 1TW,"91,898.00",
Communities & Local Government,DCLG,02/11/2015,Miscellaneous Legal Costs,Neighbourhoods,WALTHAM FOREST LB,,,,,5000311810,,PROPERTY SEARCHES NEW BURDENS PAYMENT,E17 4JA,"88,300.00",
Communities & Local Government,DCLG,02/11/2015,Miscellaneous Legal Costs,Neighbourhoods,WARRINGTON BC,,,,,5000311811,,PROPERTY SEARCHES NEW BURDENS PAYMENT,WA1 1BN,"94,569.00",
Communities & Local Government,DCLG,02/11/2015,Miscellaneous Legal Costs,Neighbourhoods,WARWICK,,,,,5000311812,,PROPERTY SEARCHES NEW BURDENS PAYMENT,CV32 4NW,"127,608.00",
Communities & Local Government,DCLG,02/11/2015,Miscellaneous Legal Costs,Neighbourhoods,WARWICKSHIRE COUNTY CNCL,,,,210396290,5000311813,,PROPERTY SEARCHES NEW BURDENS PAYMENT,CV34 4RH,"10,516.00",
Communities & Local Government,DCLG,02/11/2015,Miscellaneous Legal Costs,Neighbourhoods,WATFORD COUNCIL,,,,215498572,5000311814,,PROPERTY SEARCHES NEW BURDENS PAYMENT,WD17 3EX,"78,873.00",
Communities & Local Government,DCLG,02/11/2015,Miscellaneous Legal Costs,Neighbourhoods,WAVENEY DISTRICT COUNCIL,,Large,,229740980,5000311623,,PROPERTY SEARCHES NEW BURDENS PAYMENT,NR32 1HS,"70,369.00",
Communities & Local Government,DCLG,02/11/2015,Miscellaneous Legal Costs,Neighbourhoods,WAVERLEY BC V177,,,,,5000311624,,PROPERTY SEARCHES NEW BURDENS PAYMENT,GU7 1HR,"100,654.00",
Communities & Local Government,DCLG,02/11/2015,Miscellaneous Legal Costs,Neighbourhoods,WEALDEN DC,,,,232688697,5000311625,,PROPERTY SEARCHES NEW BURDENS PAYMENT,BN22 9LN,"86,312.00",
Communities & Local Government,DCLG,02/11/2015,Miscellaneous Legal Costs,Neighbourhoods,WELLINGBOROUGH BOROUGH COUNCIL,,Large,,230851581,5000311815,,PROPERTY SEARCHES NEW BURDENS PAYMENT,NN8 1BN,"84,433.00",
Communities & Local Government,DCLG,02/11/2015,Miscellaneous Legal Costs,Neighbourhoods,WELWYN HATFIELD COUNCIL,,,,210360804,5000311626,,PROPERTY SEARCHES NEW BURDENS PAYMENT,AL8 6AE,"84,062.00",
Communities & Local Government,DCLG,02/11/2015,Miscellaneous Legal Costs,Neighbourhoods,WEST BERKSHIRE COUNCIL,,,,364809181,5000311816,,PROPERTY SEARCHES NEW BURDENS PAYMENT,RG14 2AF,"110,448.00",
Communities & Local Government,DCLG,02/11/2015,Miscellaneous Legal Costs,Neighbourhoods,WEST DEVON BC,,,,234002095,5000311627,,PROPERTY SEARCHES NEW BURDENS PAYMENT,PL19 0BZ,"45,901.00",
Communities & Local Government,DCLG,02/11/2015,Miscellaneous Legal Costs,Neighbourhoods,WEST DORSET DC,,,,424295350,5000311628,,PROPERTY SEARCHES NEW BURDENS PAYMENT,DT1 1UZ,"64,146.00",
Communities & Local Government,DCLG,02/11/2015,Miscellaneous Legal Costs,Neighbourhoods,WEST LANCASHIRE BC,,,,232240978,5000311817,,PROPERTY SEARCHES NEW BURDENS PAYMENT,L39 2DF,"94,903.00",
Communities & Local Government,DCLG,02/11/2015,Miscellaneous Legal Costs,Neighbourhoods,WEST LINDSEY DC,,,,227471026,5000311629,,PROPERTY SEARCHES NEW BURDENS PAYMENT,DN21 2NA,"52,574.00",
Communities & Local Government,DCLG,02/11/2015,Miscellaneous Legal Costs,Neighbourhoods,WEST OXFORDSHIRE DC,,,,210401379,5000311630,,PROPERTY SEARCHES NEW BURDENS PAYMENT,OX28 1NB,"92,216.00",
Communities & Local Government,DCLG,02/11/2015,Miscellaneous Legal Costs,Neighbourhoods,WEST SOMERSET DC,,,,216015144,5000311631,,PROPERTY SEARCHES NEW BURDENS PAYMENT,TA4 4QA,"31,593.00",
Communities & Local Government,DCLG,02/11/2015,Miscellaneous Legal Costs,Neighbourhoods,WEST SUSSEX CC,,Public Bodies,,232198762,5000311818,,PROPERTY SEARCHES NEW BURDENS PAYMENT,PO19 1RG,"10,579.00",
Communities & Local Government,DCLG,02/11/2015,Miscellaneous Legal Costs,Neighbourhoods,WESTMINSTER CITY CNCL,,,,229845706,5000311819,,PROPERTY SEARCHES NEW BURDENS PAYMENT,SW1E 6QP,"98,720.00",
Communities & Local Government,DCLG,02/11/2015,Miscellaneous Legal Costs,Neighbourhoods,WEYMOUTH & PORTLAND BC,,,,735157948,5000311820,,PROPERTY SEARCHES NEW BURDENS PAYMENT,DT4 8TA,"33,678.00",
Communities & Local Government,DCLG,02/11/2015,Miscellaneous Legal Costs,Neighbourhoods,WIGAN MBC,,Public Bodies,,,5000311821,,PROPERTY SEARCHES NEW BURDENS PAYMENT,WN1 1AZ,"114,487.00",
Communities & Local Government,DCLG,02/11/2015,Miscellaneous Legal Costs,Neighbourhoods,WILTSHIRE COUNCIL,,,,211341656,5000311831,,PROPERTY SEARCHES NEW BURDENS PAYMENT,BA14 4DS,"331,988.00",
Communities & Local Government,DCLG,02/11/2015,Miscellaneous Legal Costs,Neighbourhoods,WINCHESTER CITY CNCL,,,,228838280,5000311632,,PROPERTY SEARCHES NEW BURDENS PAYMENT,SO23 9LJ,"88,402.00",
Communities & Local Government,DCLG,02/11/2015,Miscellaneous Legal Costs,Neighbourhoods,WINDSOR & MAIDENHEAD (HSG),,,,227411998,5000311633,,PROPERTY SEARCHES NEW BURDENS PAYMENT,SL6 1RF,"91,172.00",
Communities & Local Government,DCLG,02/11/2015,Miscellaneous Legal Costs,Neighbourhoods,WIRRAL MBC,,,,211222602,5000311822,,PROPERTY SEARCHES NEW BURDENS PAYMENT,CH41 6BU,"212,929.00",
Communities & Local Government,DCLG,02/11/2015,Miscellaneous Legal Costs,Neighbourhoods,WOKING BC,,,,211163449,5000311823,,PROPERTY SEARCHES NEW BURDENS PAYMENT,GU21 1YL,"61,447.00",
Communities & Local Government,DCLG,02/11/2015,Miscellaneous Legal Costs,Neighbourhoods,WOKINGHAM DC,,,,,5000311824,,PROPERTY SEARCHES NEW BURDENS PAYMENT,RG11 1WJ,"121,297.00",
Communities & Local Government,DCLG,02/11/2015,Miscellaneous Legal Costs,Neighbourhoods,WOLVERHAMPTON MBC,,,,229895453,5000311825,,PROPERTY SEARCHES NEW BURDENS PAYMENT,WV1 1RL,"79,599.00",
Communities & Local Government,DCLG,02/11/2015,Miscellaneous Legal Costs,Neighbourhoods,WORCESTER CITY CNCL,,,,227419751,5000311826,,PROPERTY SEARCHES NEW BURDENS PAYMENT,WR1 2EZ,"63,472.00",
Communities & Local Government,DCLG,02/11/2015,Miscellaneous Legal Costs,Neighbourhoods,WORCESTERSHIRE COUNTY COUNCIL,,,,230359643,5000311827,,PROPERTY SEARCHES NEW BURDENS PAYMENT,WR5 2NP,"16,567.00",
Communities & Local Government,DCLG,02/11/2015,Miscellaneous Legal Costs,Neighbourhoods,WORTHING BC,,,,236429734,5000311828,,PROPERTY SEARCHES NEW BURDENS PAYMENT,BN11 1HA,"53,760.00",
Communities & Local Government,DCLG,02/11/2015,Miscellaneous Legal Costs,Neighbourhoods,WYCHAVON DISTRICT COUNCIL,,,,232257139,5000311634,,PROPERTY SEARCHES NEW BURDENS PAYMENT,WR10 1PT,"72,602.00",
Communities & Local Government,DCLG,02/11/2015,Miscellaneous Legal Costs,Neighbourhoods,WYCOMBE DC,,Medium,,232683771,5000311635,,PROPERTY SEARCHES NEW BURDENS PAYMENT,HP11 1BB,"102,983.00",
Communities & Local Government,DCLG,02/11/2015,Miscellaneous Legal Costs,Neighbourhoods,WYRE BC,,,,236646493,5000311636,,PROPERTY SEARCHES NEW BURDENS PAYMENT,FY6 7PU,"121,435.00",
Communities & Local Government,DCLG,02/11/2015,Miscellaneous Legal Costs,Neighbourhoods,WYRE FOREST DISTRICT COUNCIL,,,,,5000311829,,PROPERTY SEARCHES NEW BURDENS PAYMENT,DY11 7WF,"55,224.00",
Communities & Local Government,DCLG,02/11/2015,Miscellaneous Legal Costs,Neighbourhoods,YORK CITY CNCL,,,,,5000311830,,PROPERTY SEARCHES NEW BURDENS PAYMENT,YO1 0EG,"137,090.00",
Communities & Local Government,DCLG,02/11/2015,Research,Localism,INVESTMENT PROPERTY DATABANK,,Medium,,769318809,5106216698,Research,Research - Residential & Commercial property value data,EC1M 4BL,"16,000.00",
Communities & Local Government,DCLG,02/11/2015,Training,Finance & Corporate Services,CAPITA BUS. SERV. LTD (CSL),,Large,,215580993,5106216705,Development and Training,Briefings and Submissions,DL1 9HB,213,
Communities & Local Government,DCLG,02/11/2015,Training,Finance & Corporate Services,ICSA SERVICES LIMITED,,Micro,,,5106216694,Development and Training,Non-Executive Directors  Programme,EC1N 8TS,500,
Communities & Local Government,DCLG,02/11/2015,Water,Finance & Corporate Services,WESSEX WATER SERVICES,,Large,,213753903,5106216702,Operation of Water Supplies and Distribution,SW RCC Water Supply 2015-16,BS48 1WW,"1,023.61",
Communities & Local Government,DCLG,02/11/2015,Work In Progress Pre-Cert 40373 Spend,Decentralisation and Local Growth,CREATIVE ART HOUSE,,Small,,,7600014143,,Revenue Grant To Be Paid,WF1 2TE,"3,708.58",Yes
Communities & Local Government,DCLG,02/11/2015,Work In Progress Pre-Cert 40373 Spend,Decentralisation and Local Growth,GOODWIN DEVELOPMENT TRUST LTD,,,,,7600014140,,Revenue Grant To Be Paid,HU3 2HQ,"58,078.24",Yes
Communities & Local Government,DCLG,02/11/2015,Work In Progress Pre-Cert 40373 Spend,Decentralisation and Local Growth,GOODWIN DEVELOPMENT TRUST LTD,,,,,7600014145,,Revenue Grant To Be Paid,HU3 2HQ,860.34,Yes
Communities & Local Government,DCLG,02/11/2015,Work In Progress Pre-Cert 40373 Spend,Decentralisation and Local Growth,GOODWIN DEVELOPMENT TRUST LTD,,,,,7600014149,,Revenue Grant To Be Paid,HU3 2HQ,"54,209.30",Yes
Communities & Local Government,DCLG,02/11/2015,Work In Progress Pre-Cert 40373 Spend,Decentralisation and Local Growth,GWE BUSINESS WEST LTD,,,,,7600014138,,Revenue Grant To Be Paid,BS8 3RA,"36,016.31",Yes
Communities & Local Government,DCLG,02/11/2015,Work In Progress Pre-Cert 40373 Spend,Decentralisation and Local Growth,GWE BUSINESS WEST LTD,,,,,7600014144,,Revenue Grant To Be Paid,BS8 3RA,"16,707.90",Yes
Communities & Local Government,DCLG,02/11/2015,Work In Progress Pre-Cert 40373 Spend,Decentralisation and Local Growth,IFM EDUCATION & CONSULTANCY SERVICE,,Small,,,7600014133,,Revenue Grant Clawback Offset,CB3 0FS,-121.56,Yes
Communities & Local Government,DCLG,02/11/2015,Work In Progress Pre-Cert 40373 Spend,Decentralisation and Local Growth,IFM EDUCATION & CONSULTANCY SERVICE,,Small,,,7600014133,,Revenue Grant To Be Paid,CB3 0FS,"89,908.38",Yes
Communities & Local Government,DCLG,02/11/2015,Work In Progress Pre-Cert 40373 Spend,Decentralisation and Local Growth,LINCONSHIRE COUNTY COUNCIL,,Large,,,7600014127,,Revenue Grant To Be Paid,LN1 1YT,"36,800.04",Yes
Communities & Local Government,DCLG,02/11/2015,Work In Progress Pre-Cert 40373 Spend,Decentralisation and Local Growth,LINCONSHIRE COUNTY COUNCIL,,Large,,,7600014148,,Revenue Grant To Be Paid,LN1 1YT,"19,891.16",Yes
Communities & Local Government,DCLG,02/11/2015,Work In Progress Pre-Cert 40373 Spend,Decentralisation and Local Growth,NEWCASTLE CITY COUNCIL,,,,,7600014142,,Revenue Grant To Be Paid,NE1 8QN,"2,280.82",Yes
Communities & Local Government,DCLG,02/11/2015,Work In Progress Pre-Cert 40373 Spend,Decentralisation and Local Growth,NORTH EAST BUSINESS & INNOV CENTRE,,Small,,,7600014129,,Revenue Grant Clawback Offset,SR5 2TA,"-5,621.39",Yes
Communities & Local Government,DCLG,02/11/2015,Work In Progress Pre-Cert 40373 Spend,Decentralisation and Local Growth,NORTH EAST BUSINESS & INNOV CENTRE,,Small,,,7600014129,,Revenue Grant To Be Paid,SR5 2TA,"28,342.23",Yes
Communities & Local Government,DCLG,02/11/2015,Work In Progress Pre-Cert 40373 Spend,Decentralisation and Local Growth,ONE EAST MIDLANDS,,,,,7600014141,,Revenue Grant To Be Paid,NG1 3FB,"6,248.18",Yes
Communities & Local Government,DCLG,02/11/2015,Work In Progress Pre-Cert 40373 Spend,Decentralisation and Local Growth,PRINCES TRUST,,Large,,,7600014131,,Revenue Grant To Be Paid,LS2 8NG,"16,890.71",Yes
Communities & Local Government,DCLG,02/11/2015,Work In Progress Pre-Cert 40373 Spend,Decentralisation and Local Growth,PRINCES TRUST,,Large,,,7600014132,,Revenue Grant To Be Paid,LS2 8NG,"13,248.20",Yes
Communities & Local Government,DCLG,02/11/2015,Work In Progress Pre-Cert 40373 Spend,Decentralisation and Local Growth,PRINCES TRUST,,Large,,,7600014134,,Revenue Grant To Be Paid,LS2 8NG,"16,761.89",Yes
Communities & Local Government,DCLG,02/11/2015,Work In Progress Pre-Cert 40373 Spend,Decentralisation and Local Growth,PRINCES TRUST,,Large,,,7600014135,,Revenue Grant Clawback Offset,LS2 8NG,-27.3,Yes
Communities & Local Government,DCLG,02/11/2015,Work In Progress Pre-Cert 40373 Spend,Decentralisation and Local Growth,PRINCES TRUST,,Large,,,7600014135,,Revenue Grant To Be Paid,LS2 8NG,"29,257.20",Yes
Communities & Local Government,DCLG,02/11/2015,Work In Progress Pre-Cert 40373 Spend,Decentralisation and Local Growth,PRINCES TRUST,,Large,,,7600014136,,Revenue Grant To Be Paid,LS2 8NG,"53,626.90",Yes
Communities & Local Government,DCLG,02/11/2015,Work In Progress Pre-Cert 40373 Spend,Decentralisation and Local Growth,SHEFFIELD HALLAM UNIVERSITY,,,,,7600014146,,Revenue Grant To Be Paid,S1 1WB,"50,294.22",Yes
Communities & Local Government,DCLG,02/11/2015,Work In Progress Pre-Cert 40373 Spend,Decentralisation and Local Growth,SHEFFIELD HALLAM UNIVERSITY,,,,,7600014147,,Revenue Grant To Be Paid,S1 1WB,"31,103.70",Yes
Communities & Local Government,DCLG,02/11/2015,Work In Progress Pre-Cert 40373 Spend,Decentralisation and Local Growth,SHEFFIELD HALLAM UNIVERSITY,,,,,7600014150,,Revenue Grant To Be Paid,S1 1WB,"28,568.36",Yes
Communities & Local Government,DCLG,02/11/2015,Work In Progress Pre-Cert 40373 Spend,Decentralisation and Local Growth,UNIVERSITY OF WARWICK,,Large,,,7600014126,,Revenue Grant To Be Paid,CV4 8UW,"129,300.30",Yes
Communities & Local Government,DCLG,02/11/2015,Work In Progress Pre-Cert 40373 Spend,Decentralisation and Local Growth,UNIVERSITY OF WOLVERHAMPTON,,Large,,,7600014128,,Revenue Grant To Be Paid,WV1 1SB,"43,920.68",Yes
Communities & Local Government,DCLG,02/11/2015,Work In Progress Pre-Cert 40373 Spend,Decentralisation and Local Growth,YTKO LIMITED,,,,,7600014139,,Revenue Grant Clawback Offset,CB4 2QH,-21.78,Yes
Communities & Local Government,DCLG,02/11/2015,Work In Progress Pre-Cert 40373 Spend,Decentralisation and Local Growth,YTKO LIMITED,,,,,7600014139,,Revenue Grant To Be Paid,CB4 2QH,"1,874.00",Yes
Communities & Local Government,DCLG,02/11/2015,Work In Progress Pre-Cert 40373 Spend,Decentralisation and Local Growth,YTKO LIMITED,,,,,7600014152,,Revenue Grant To Be Paid,CB4 2QH,"14,366.88",Yes
Communities & Local Government,DCLG,02/11/2015,Work In Progress Pre-Cert 40467 Spend,Decentralisation and Local Growth,CREATIVE ART HOUSE,,Small,,,7600014143,,Capital Grant Clawback Offset,WF1 2TE,"-2,431.56",Yes
Communities & Local Government,DCLG,02/11/2015,Work In Progress Pre-Cert 40467 Spend,Decentralisation and Local Growth,CREATIVE ART HOUSE,,Small,,,7600014143,,Capital Grant To Be Paid,WF1 2TE,"2,481.87",Yes
Communities & Local Government,DCLG,02/11/2015,Work In Progress Pre-Cert 40467 Spend,Decentralisation and Local Growth,HENDRA TOURING CARAVAN & CAMPING PA,,Medium,,,7600014137,,Capital Grant Clawback Offset,TR8 4NY,"-10,621.92",Yes
Communities & Local Government,DCLG,02/11/2015,Work In Progress Pre-Cert 40467 Spend,Decentralisation and Local Growth,HENDRA TOURING CARAVAN & CAMPING PA,,Medium,,,7600014137,,Capital Grant To Be Paid,TR8 4NY,"13,784.74",Yes
Communities & Local Government,DCLG,02/11/2015,Work In Progress Pre-Cert 40467 Spend,Decentralisation and Local Growth,HENDRA TOURING CARAVAN & CAMPING PA,,Medium,,,7600014151,,Capital Grant To Be Paid,TR8 4NY,"12,201.59",Yes
Communities & Local Government,DCLG,02/11/2015,Work In Progress Pre-Cert 40467 Spend,Decentralisation and Local Growth,NEWCASTLE CITY COUNCIL,,,,,7600014142,,Capital Grant Clawback Offset,NE1 8QN,-908.03,Yes
Communities & Local Government,DCLG,02/11/2015,Work In Progress Pre-Cert 40467 Spend,Decentralisation and Local Growth,NEWCASTLE CITY COUNCIL,,,,,7600014142,,Capital Grant To Be Paid,NE1 8QN,"351,945.59",Yes
Communities & Local Government,DCLG,02/11/2015,Work In Progress Pre-Cert 40467 Spend,Decentralisation and Local Growth,NORTH EAST BUSINESS & INNOV CENTRE,,Small,,,7600014129,,Capital Grant To Be Paid,SR5 2TA,283.17,Yes
Communities & Local Government,DCLG,02/11/2015,Work In Progress Pre-Cert 40467 Spend,Decentralisation and Local Growth,NOTTINGHAMSHIRE COUNTY COUNCIL,,Large,,,7600014130,,Capital Grant To Be Paid,NG2 7QP,"666,739.10",Yes
Communities & Local Government,DCLG,03/11/2015,Current (non AEF) Grants to Local Authorities,Localism,NAT ASSOC LOCAL COUNCILS,,,,580214963,2100258867,,Transparency Fund grants to smaller authorities & NALC admin,WC1B 3LD,"173,722.05",Yes
Communities & Local Government,DCLG,03/11/2015,Fixed Maintenance,Finance & Corporate Services,BABCOCK CIVIL INFRASTRUCTURE LTD,,Large,,233110530,5106216719,Property Occupation,EM Castle Donnington Fixed Maint 2015-16,NG15 0DR,"10,396.39",
Communities & Local Government,DCLG,03/11/2015,Fixed Maintenance,Finance & Corporate Services,BABCOCK CIVIL INFRASTRUCTURE LTD,,Large,,233110530,5106216723,Property Occupation,Y&H Wakefield Fixed Maintenance 2015-16,NG15 0DR,"10,396.39",
Communities & Local Government,DCLG,03/11/2015,Fixed Maintenance,Finance & Corporate Services,BABCOCK CIVIL INFRASTRUCTURE LTD,,Large,,233110530,5106216726,Property Occupation,SW Taunton Fixed Maintenance 2015-16,NG15 0DR,"10,396.39",
Communities & Local Government,DCLG,03/11/2015,Fixed Maintenance,Finance & Corporate Services,BABCOCK CIVIL INFRASTRUCTURE LTD,,Large,,233110530,5106216742,Property Occupation,EoE Waterbeach Fixed Maintenance 2015-16,NG15 0DR,"10,396.39",
Communities & Local Government,DCLG,03/11/2015,IT - Service Contracts,Finance & Corporate Services,FUJITSU SERVICES LTD,,Large,,423375062,5106216734,IT Managed / Outsourced Services,FY15-16 SAN Licensing LIVELINK App.,WA3 6GD,"1,626.71",
Communities & Local Government,DCLG,03/11/2015,IT - Service Contracts,Finance & Corporate Services,FUJITSU SERVICES LTD,,Large,,423375062,5106216736,IT Managed / Outsourced Services,"FY15/16 DRP Charges ""DRP1Table Charges",WA3 6GD,"16,449.97",
Communities & Local Government,DCLG,03/11/2015,IT - Service Contracts,Finance & Corporate Services,FUJITSU SERVICES LTD,,Large,,423375062,5106216738,IT Managed / Outsourced Services,"FY15/16 LOBA Charges""LoBA MatrixCharges""",WA3 6GD,"27,622.78",
Communities & Local Government,DCLG,03/11/2015,IT - Service Contracts,Finance & Corporate Services,FUJITSU SERVICES LTD,,Large,,423375062,5106216739,IT Managed / Outsourced Services,"SIAM Charges (""M""Table Charges)",WA3 6GD,"43,686.46",
Communities & Local Government,DCLG,03/11/2015,IT - Service Contracts,Finance & Corporate Services,FUJITSU SERVICES LTD,,Large,,423375062,5106216740,IT Managed / Outsourced Services,"FY15/16 Storage Charges (""S""TableCharge)",WA3 6GD,"18,906.24",
Communities & Local Government,DCLG,03/11/2015,IT - Service Contracts,Finance & Corporate Services,FUJITSU SERVICES LTD,,Large,,423375062,5106216741,IT Managed / Outsourced Services,"FY15/16WAN Management Charges(""W""Tables)",WA3 6GD,"2,640.12",
Communities & Local Government,DCLG,03/11/2015,IT - Service Contracts,Finance & Corporate Services,FUJITSU SERVICES LTD,,Large,,423375062,5106216743,IT Managed / Outsourced Services,CNFJDCLG017 Y2 Horizon Service Charges,WA3 6GD,"7,772.90",
Communities & Local Government,DCLG,03/11/2015,IT - Service Contracts,Finance & Corporate Services,VERIZON UK LTD,,Large,,346786171,5106216733,IT Managed / Outsourced Services,FY15-16 TESA Common Hosting 10125855,RG2 6DA,"19,629.96",
Communities & Local Government,DCLG,03/11/2015,IT - Service Contracts,Localism,VERIZON UK LTD,,Large,,346786171,5106216733,IT Managed / Outsourced Services,FY15-16 IRS Common Hosting 10126249,RG2 6DA,"18,860.16",
Communities & Local Government,DCLG,03/11/2015,Legal Fees,Neighbourhoods,ASHFORDS LLP,,Large,,,5106216728,Legal,Legal Advice,EX1 3LH,"1,057.82",
Communities & Local Government,DCLG,03/11/2015,Services provided by other Govt Orgs,Neighbourhoods,VALUATION OFFICE AGENCY,,Public Bodies,,215253886,5106216732,Financial,VOA FEES for RTB revaluations  15-16,W1B 5BU,"123,943.39",Yes
Communities & Local Government,DCLG,03/11/2015,Software Licences,Troubled Families,STATIONERY OFFICE LTD,,Large,,779375633,5106216724,Software,Alpha Phase Wks TF System Dev. 10125925,NR3 1PD,"92,220.00",
Communities & Local Government,DCLG,03/11/2015,Steady State Service Provision,Finance & Corporate Services,CGI IT UK LIMITED,,Large,,239881618,5106216744,Business Process Outsourcing Services,Payroll Services & Licences  14/15,CF31 9AP,"8,032.54",
Communities & Local Government,DCLG,03/11/2015,Training,Finance & Corporate Services,CAPITA BUS. SERV. LTD (CSL),,Large,,215580993,5106216712,Development and Training,Managing Change: Implementing Change,DL1 9HB,"1,332.00",
Communities & Local Government,DCLG,03/11/2015,Training,Finance & Corporate Services,TRAINING BYTE SIZE LTD,,Small,,210079743,5106216720,Development and Training,Better Business Cases Foundation course,CW5 5RH,"1,342.00",
Communities & Local Government,DCLG,03/11/2015,Training,Finance & Corporate Services,TRAINING BYTE SIZE LTD,,Small,,210079743,5106216720,Development and Training,Better Business Cases Foundation exam,CW5 5RH,550,
Communities & Local Government,DCLG,03/11/2015,Web Services,"Strategy, Communications and Private Office",DEXTROUS WEB LTD,,Micro,,211267270,5106216729,ICT Services,DCLG Intranet Hosting & Support,N1 7NG,874.18,
Communities & Local Government,DCLG,04/11/2015,Current (non AEF) Grants to Local Authorities,Finance & Corporate Services, CO DURHAM & DARLINGTON FIRE RESCUE,,Public Bodies,,211684266,2100258902,,Regional Control Centre Grant,DH1 1TW,"91,924.75",Yes
Communities & Local Government,DCLG,04/11/2015,Current (non AEF) Grants to Local Authorities,Finance & Corporate Services,GREATER LONDON AUTHORITY,,Large,,225353416,2100258901,,Regional Control Centre Grant,SE10 1AP,"160,743.58",Yes
Communities & Local Government,DCLG,04/11/2015,Current (non AEF) Grants to Local Authorities,Finance & Corporate Services,GREATER MANCHESTER FIRE & RESCUE,,Public Bodies,,424873172,2100258900,,Regional Control Centre Grant,M27 8US,"87,383.00",Yes
Communities & Local Government,DCLG,04/11/2015,Current (non AEF) Grants to Local Authorities,Localism,NORTHAMPTONSHIRE CC,,,,,5000301852,,Overpayment of Grant recovered by Exchequer,CB3 0AP,"-443,181.00",Yes
Communities & Local Government,DCLG,04/11/2015,Current Grants to Non Profit Bodies,Neighbourhoods,CEL GROUP,,Medium,,394794614,5106216752,Technical Services,Home Improvement Agency,WA2 0YL,"76,564.63",Yes
Communities & Local Government,DCLG,04/11/2015,Current Grants to Non Profit Bodies,Neighbourhoods,IMPROVEMENT & DEVELOPMENT AGENCY,Yes,Public Bodies,,236810359,2100258899,,To cover cost of administering PAS - LDO Project,EC1M 5LG,"30,000.00",Yes
Communities & Local Government,DCLG,04/11/2015,IT - Service Contracts,Finance & Corporate Services,FUJITSU SERVICES LTD,,Large,,423375062,5106216791,IT Managed / Outsourced Services,"FY15/16 Desktop Charges ""D""Table Charges",WA3 6GD,"7,000.57",
Communities & Local Government,DCLG,04/11/2015,IT - Service Contracts,Finance & Corporate Services,FUJITSU SERVICES LTD,,Large,,423375062,5106216792,IT Managed / Outsourced Services,"FY15/16 Desktop Charges ""D""Table Charges",WA3 6GD,"1,546.11",
Communities & Local Government,DCLG,04/11/2015,IT - Service Contracts,Finance & Corporate Services,FUJITSU SERVICES LTD,,Large,,423375062,5106216793,IT Managed / Outsourced Services,"FY15/16 Desktop Charges ""D""Table Charges",WA3 6GD,"46,030.47",
Communities & Local Government,DCLG,04/11/2015,IT - Service Contracts,Finance & Corporate Services,FUJITSU SERVICES LTD,,Large,,423375062,5106216794,IT Managed / Outsourced Services,"FY15/16 Desktop Charges ""D""Table Charges",WA3 6GD,"4,306.85",
Communities & Local Government,DCLG,04/11/2015,IT - Service Contracts,Finance & Corporate Services,FUJITSU SERVICES LTD,,Large,,423375062,5106216796,IT Managed / Outsourced Services,"FY15/16 Desktop Charges ""D""Table Charges",WA3 6GD,"185,613.92",
Communities & Local Government,DCLG,04/11/2015,IT - Service Contracts,Finance & Corporate Services,FUJITSU SERVICES LTD,,Large,,423375062,5106216797,IT Managed / Outsourced Services,"FY15/16 Desktop Charges ""D""Table Charges",WA3 6GD,311.72,
Communities & Local Government,DCLG,04/11/2015,IT - Service Contracts,Finance & Corporate Services,FUJITSU SERVICES LTD,,Large,,423375062,5106216798,IT Managed / Outsourced Services,"FY15/16 Desktop Charges ""D""Table Charges",WA3 6GD,"1,862.16",
Communities & Local Government,DCLG,04/11/2015,IT - Service Contracts,Finance & Corporate Services,FUJITSU SERVICES LTD,,Large,,423375062,5106216799,IT Managed / Outsourced Services,CNFJDCLG017 Y2 Horizon Service Charges,WA3 6GD,"2,759.74",
Communities & Local Government,DCLG,04/11/2015,IT - Service Contracts,Finance & Corporate Services,VERIZON UK LTD,,Large,,346786171,5106216624,IT Managed / Outsourced Services,FY15-16 TESA Common Hosting 10125855,RG2 6DA,"3,411.07",
Communities & Local Government,DCLG,04/11/2015,IT - Software Maintenance,Neighbourhoods,LANDMARK INFORMATION GROUP LTD,,Large,,578397671,5106216774,IT Managed / Outsourced Services,Payment of VAT on lodgement fees.,EX2 7HY,779.43,
Communities & Local Government,DCLG,04/11/2015,IT - Software Maintenance,Neighbourhoods,LANDMARK INFORMATION GROUP LTD,,Large,,578397671,5106216776,IT Managed / Outsourced Services,Payment of VAT on lodgement fees.,EX2 7HY,"3,699.62",
Communities & Local Government,DCLG,04/11/2015,Medals,Localism,ROYAL MINT,,Public Bodies,,211722976,5106216754,Learning and Development Materials,FireFighter Medals for LS  Good Conduct,CF72 8YT,730.8,
Communities & Local Government,DCLG,04/11/2015,Medals,Localism,ROYAL MINT,,Public Bodies,,211722976,5106216784,Learning and Development Materials,FireFighter Medals for LS  Good Conduct,CF72 8YT,579.6,
Communities & Local Government,DCLG,04/11/2015,Research,Troubled Families,MARKET & OPINION RESEARCH INT LTD,,Large,,227257185,5106216782,Research,Conduct Fieldwork,E1W 1YW,"67,419.00",
Communities & Local Government,DCLG,04/11/2015,Travel and Subsistence Account,Neighbourhoods,MR KEITH HOLLAND,,,,,2100258905,Business Travel,Local plans Inspector visits L Authorities,,448.1,
Communities & Local Government,DCLG,04/11/2015,Work In Progress Pre-Cert 40373 Spend,Decentralisation and Local Growth,COVENTRY UNIVERSITY ENTERPRISES LTD,,Medium,,,7600014170,,Revenue Grant To Be Paid,CV1 2TT,"123,162.01",Yes
Communities & Local Government,DCLG,04/11/2015,Work In Progress Pre-Cert 40373 Spend,Decentralisation and Local Growth,CUMBRIA COUNTY COUNCIL,,Public Bodies,,,7600014155,,Revenue Grant To Be Paid,CA3 8NA,"61,435.20",Yes
Communities & Local Government,DCLG,04/11/2015,Work In Progress Pre-Cert 40373 Spend,Decentralisation and Local Growth,DERBY CITY COUNCIL,,Large,,,7600014156,,Revenue Grant To Be Paid,DE1 2FE,"20,993.40",Yes
Communities & Local Government,DCLG,04/11/2015,Work In Progress Pre-Cert 40373 Spend,Decentralisation and Local Growth,DERBY CITY COUNCIL,,Large,,,7600014166,,Revenue Grant To Be Paid,DE1 2FE,"21,553.41",Yes
Communities & Local Government,DCLG,04/11/2015,Work In Progress Pre-Cert 40373 Spend,Decentralisation and Local Growth,DUDLEY CANAL TRUST TRIPS LTD,,Small,,,7600014171,,Revenue Grant To Be Paid,DY1 4SB,"16,830.52",Yes
Communities & Local Government,DCLG,04/11/2015,Work In Progress Pre-Cert 40373 Spend,Decentralisation and Local Growth,EXPERIENCE NOTTINGHAMSHIRE LTD,,Small,,,7600014168,,Revenue Grant To Be Paid,NG1 1JU,"6,560.77",Yes
Communities & Local Government,DCLG,04/11/2015,Work In Progress Pre-Cert 40373 Spend,Decentralisation and Local Growth,GOODWIN DEVELOPMENT TRUST LTD,,,,,2300002074,,Recovery of payment,HU3 2HQ,"-22,397.23",Yes
Communities & Local Government,DCLG,04/11/2015,Work In Progress Pre-Cert 40373 Spend,Decentralisation and Local Growth,GOODWIN DEVELOPMENT TRUST LTD,,,,,2300002074,,Recovery of payment,HU3 2HQ,"-87,533.49",Yes
Communities & Local Government,DCLG,04/11/2015,Work In Progress Pre-Cert 40373 Spend,Decentralisation and Local Growth,HEART OF ENGLAND NHS FOUNDATION TRU,,Large,,,7600014154,,Revenue Grant To Be Paid,B9 5SS,"134,608.02",Yes
Communities & Local Government,DCLG,04/11/2015,Work In Progress Pre-Cert 40373 Spend,Decentralisation and Local Growth,LANCASTER UNIVERISTY,,,,,7600014158,,Revenue Grant To Be Paid,LA1 4YW,"194,740.75",Yes
Communities & Local Government,DCLG,04/11/2015,Work In Progress Pre-Cert 40373 Spend,Decentralisation and Local Growth,LIVERPOOL CITY COUNCIL,,,,,7600014162,,Revenue Grant Clawback Offset,L2 2DH,"-40,886.22",Yes
Communities & Local Government,DCLG,04/11/2015,Work In Progress Pre-Cert 40373 Spend,Decentralisation and Local Growth,LIVERPOOL CITY COUNCIL,,,,,7600014162,,Revenue Grant To Be Paid,L2 2DH,"821,796.41",Yes
Communities & Local Government,DCLG,04/11/2015,Work In Progress Pre-Cert 40373 Spend,Decentralisation and Local Growth,LIVERPOOL UNIVERSITY,,,,,7600014167,,Revenue Grant To Be Paid,L69 7ZX,"9,486.36",Yes
Communities & Local Government,DCLG,04/11/2015,Work In Progress Pre-Cert 40373 Spend,Decentralisation and Local Growth,WORCESTERSHIRE COUNTY COUNCIL,,Public Bodies,,,7600014157,,Revenue Grant To Be Paid,WR5 2NP,"83,121.43",Yes
Communities & Local Government,DCLG,04/11/2015,Work In Progress Pre-Cert 40373 Spend,Decentralisation and Local Growth,WORCESTERSHIRE COUNTY COUNCIL,,Public Bodies,,,7600014160,,Revenue Grant Clawback Offset,WR5 2NP,"99,871.12",Yes
Communities & Local Government,DCLG,04/11/2015,Work In Progress Pre-Cert 40373 Spend,Decentralisation and Local Growth,WORCESTERSHIRE COUNTY COUNCIL,,Public Bodies,,,7600014160,,Revenue Grant To Be Paid,WR5 2NP,"67,588.23",Yes
Communities & Local Government,DCLG,04/11/2015,Work In Progress Pre-Cert 40373 Spend,Decentralisation and Local Growth,WORCESTERSHIRE COUNTY COUNCIL,,Public Bodies,,,7600014161,,Revenue Grant To Be Paid,WR5 2NP,"100,254.59",Yes
Communities & Local Government,DCLG,04/11/2015,Work In Progress Pre-Cert 40467 Spend,Decentralisation and Local Growth,CHESHIRE WEST & CHESTER COUNCIL,,,,,7600014165,,Capital Grant To Be Paid,CH1 2NP,"295,682.27",Yes
Communities & Local Government,DCLG,04/11/2015,Work In Progress Pre-Cert 40467 Spend,Decentralisation and Local Growth,CUMBRIA COUNTY COUNCIL,,Public Bodies,,,7600014155,,Capital Grant To Be Paid,CA3 8NA,"1,373,147.36",Yes
Communities & Local Government,DCLG,04/11/2015,Work In Progress Pre-Cert 40467 Spend,Decentralisation and Local Growth,DERBY CITY COUNCIL,,Large,,,7600014166,,Capital Grant Clawback Offset,DE1 2FE,"-25,741.67",Yes
Communities & Local Government,DCLG,04/11/2015,Work In Progress Pre-Cert 40467 Spend,Decentralisation and Local Growth,DERBY CITY COUNCIL,,Large,,,7600014166,,Capital Grant To Be Paid,DE1 2FE,"116,933.71",Yes
Communities & Local Government,DCLG,04/11/2015,Work In Progress Pre-Cert 40467 Spend,Decentralisation and Local Growth,DUDLEY CANAL TRUST TRIPS LTD,,Small,,,7600014171,,Capital Grant To Be Paid,DY1 4SB,"220,511.49",Yes
Communities & Local Government,DCLG,04/11/2015,Work In Progress Pre-Cert 40467 Spend,Decentralisation and Local Growth,LIVERPOOL UNIVERSITY,,,,,7600014167,,Capital Grant To Be Paid,L69 7ZX,"202,189.61",Yes
Communities & Local Government,DCLG,04/11/2015,Work In Progress Pre-Cert 40467 Spend,Decentralisation and Local Growth,NOTTINGHAMSHIRE COUNTY COUNCIL,,Large,,,7600014153,,Capital Grant Clawback Offset,NG2 7QP,"-3,421.44",Yes
Communities & Local Government,DCLG,04/11/2015,Work In Progress Pre-Cert 40467 Spend,Decentralisation and Local Growth,NOTTINGHAMSHIRE COUNTY COUNCIL,,Large,,,7600014153,,Capital Grant To Be Paid,NG2 7QP,"171,072.00",Yes
Communities & Local Government,DCLG,04/11/2015,Work In Progress Pre-Cert 40467 Spend,Decentralisation and Local Growth,WORCESTERSHIRE COUNTY COUNCIL,,Public Bodies,,,7600014160,,Capital Grant Clawback Offset,WR5 2NP,"-100,000.00",Yes
Communities & Local Government,DCLG,04/11/2015,Work In Progress Pre-Cert 40467 Spend,Decentralisation and Local Growth,WORCESTERSHIRE COUNTY COUNCIL,,Public Bodies,,,7600014160,,Capital Grant To Be Paid,WR5 2NP,"100,237.50",Yes
Communities & Local Government,DCLG,04/11/2015,Work In Progress Pre-Cert 40467 Spend,Decentralisation and Local Growth,WORCESTERSHIRE COUNTY COUNCIL,,Public Bodies,,,7600014161,,Capital Grant To Be Paid,WR5 2NP,"94,966.58",Yes
Communities & Local Government,DCLG,05/11/2015,Advertising,"Strategy, Communications and Private Office",CABINET OFFICE,,Public Bodies,,349606306,5106216597,Advertising,Fire Kills Filler Marketing,FY5 3TA,"47,904.00",
Communities & Local Government,DCLG,05/11/2015,Courier Services,Finance & Corporate Services,INTERSERVE (FACILITIES MANAGEMENT),,Large,,364834825,5106216807,Office Solutions,Rivergate Mail 2015-16,BS32 4NH,"1,519.43",
Communities & Local Government,DCLG,05/11/2015,Domestic Services,Finance & Corporate Services,INTERSERVE (FACILITIES MANAGEMENT),,Large,,364834825,5106216807,Building Operation,TQH Cleaning 2015-16,BS32 4NH,"9,032.52",
Communities & Local Government,DCLG,05/11/2015,Domestic Services,Finance & Corporate Services,INTERSERVE (FACILITIES MANAGEMENT),,Large,,364834825,5106216807,Building Operation,Rivergate Cleaning 2015-16,BS32 4NH,"5,167.99",
Communities & Local Government,DCLG,05/11/2015,Domestic Services,Finance & Corporate Services,INTERSERVE (FACILITIES MANAGEMENT),,Large,,364834825,5106216807,Building Operation,Citygate Cleaning 2015-16,BS32 4NH,"3,090.56",
Communities & Local Government,DCLG,05/11/2015,Domestic Services,Finance & Corporate Services,INTERSERVE (FACILITIES MANAGEMENT),,Large,,364834825,5106216807,Building Operation,5SSP Cleaning 2015-16,BS32 4NH,"6,906.82",
Communities & Local Government,DCLG,05/11/2015,Facilities Management (ISD use only),Finance & Corporate Services,INTERSERVE (FACILITIES MANAGEMENT),,Large,,364834825,5106216807,Property Occupation,PQ Offsite Man fee subject to recalc,BS32 4NH,"2,419.39",
Communities & Local Government,DCLG,05/11/2015,Facilities Management (ISD use only),Finance & Corporate Services,INTERSERVE (FACILITIES MANAGEMENT),,Large,,364834825,5106216807,Property Occupation,TQH Off Site Management 2015-16,BS32 4NH,"11,380.58",
Communities & Local Government,DCLG,05/11/2015,Facilities Management (ISD use only),Finance & Corporate Services,INTERSERVE (FACILITIES MANAGEMENT),,Large,,364834825,5106216807,Property Occupation,TQH On Site Management,BS32 4NH,"3,181.33",
Communities & Local Government,DCLG,05/11/2015,Facilities Management (ISD use only),Finance & Corporate Services,INTERSERVE (FACILITIES MANAGEMENT),,Large,,364834825,5106216807,Property Occupation,TQH Reception 2015-16,BS32 4NH,"1,663.29",
Communities & Local Government,DCLG,05/11/2015,Facilities Management (ISD use only),Finance & Corporate Services,INTERSERVE (FACILITIES MANAGEMENT),,Large,,364834825,5106216807,Property Occupation,Rivergate Off Site Mange 2015-16,BS32 4NH,"5,188.36",
Communities & Local Government,DCLG,05/11/2015,Facilities Management (ISD use only),Finance & Corporate Services,INTERSERVE (FACILITIES MANAGEMENT),,Large,,364834825,5106216807,Property Occupation,Rivergate Reception 2015-16,BS32 4NH,"1,653.74",
Communities & Local Government,DCLG,05/11/2015,Facilities Management (ISD use only),Finance & Corporate Services,INTERSERVE (FACILITIES MANAGEMENT),,Large,,364834825,5106216807,Property Occupation,Citygate Off Site Management 2015-16,BS32 4NH,"4,257.85",
Communities & Local Government,DCLG,05/11/2015,Facilities Management (ISD use only),Finance & Corporate Services,INTERSERVE (FACILITIES MANAGEMENT),,Large,,364834825,5106216807,Property Occupation,Citygate On Site Management 2015-16,BS32 4NH,"2,529.53",
Communities & Local Government,DCLG,05/11/2015,Facilities Management (ISD use only),Finance & Corporate Services,INTERSERVE (FACILITIES MANAGEMENT),,Large,,364834825,5106216807,Property Occupation,Citygate Reception 2015-16,BS32 4NH,"1,612.33",
Communities & Local Government,DCLG,05/11/2015,Facilities Management (ISD use only),Finance & Corporate Services,INTERSERVE (FACILITIES MANAGEMENT),,Large,,364834825,5106216807,Property Occupation,5SPP Reception 2015-16,BS32 4NH,"2,854.01",
Communities & Local Government,DCLG,05/11/2015,Facilities Management (ISD use only),Finance & Corporate Services,INTERSERVE (FACILITIES MANAGEMENT),,Large,,364834825,5106216807,Property Occupation,5SSP Off Site Management 2015-16,BS32 4NH,"4,208.25",
Communities & Local Government,DCLG,05/11/2015,Facilities Management (ISD use only),Finance & Corporate Services,INTERSERVE (FACILITIES MANAGEMENT),,Large,,364834825,5106216807,Property Occupation,5SSP On Site Management 2015-16,BS32 4NH,"3,032.33",
Communities & Local Government,DCLG,05/11/2015,Fixed Maintenance,Finance & Corporate Services,INTERSERVE (FACILITIES MANAGEMENT),,Large,,364834825,5106216807,Property Occupation,TQH Maintenance 2015-16,BS32 4NH,"6,027.81",
Communities & Local Government,DCLG,05/11/2015,Fixed Maintenance,Finance & Corporate Services,INTERSERVE (FACILITIES MANAGEMENT),,Large,,364834825,5106216807,Property Occupation,Rivergate Maintenance 2015-16,BS32 4NH,"3,840.85",
Communities & Local Government,DCLG,05/11/2015,Fixed Maintenance,Finance & Corporate Services,INTERSERVE (FACILITIES MANAGEMENT),,Large,,364834825,5106216807,Property Occupation,Citygate Maintenance 2015-16,BS32 4NH,"3,637.07",
Communities & Local Government,DCLG,05/11/2015,Fixed Maintenance,Finance & Corporate Services,INTERSERVE (FACILITIES MANAGEMENT),,Large,,364834825,5106216807,Property Occupation,5SSP Maintenance 2015-16,BS32 4NH,"10,952.47",
Communities & Local Government,DCLG,05/11/2015,IT - Software Maintenance,Localism,ESRI (UK) LIMITED,,Large,,226271518,5106216809,IT Managed / Outsourced Services,Service Charge,HP21 7QG,"5,700.00",
Communities & Local Government,DCLG,05/11/2015,IT Maintenance,Finance & Corporate Services,COMPUTACENTER (UK) LTD,,Large,,226023463,5106216811,ICT Services,SE T2000 annual hardware support,AL10 9TW,"3,426.91",
Communities & Local Government,DCLG,05/11/2015,Photocopying,Finance & Corporate Services,INTERSERVE (FACILITIES MANAGEMENT),,Large,,364834825,5106216807,Business Support,TQH Repro 2015-16,BS32 4NH,"6,529.09",
Communities & Local Government,DCLG,05/11/2015,Photocopying,Finance & Corporate Services,INTERSERVE (FACILITIES MANAGEMENT),,Large,,364834825,5106216807,Business Support,5SSP Repro 2015-16,BS32 4NH,353.08,
Communities & Local Government,DCLG,05/11/2015,Professional services,Finance & Corporate Services,ARCADIS LLP,,Large,,,5106216801,Construction Service Providers,PAMU Com 157 Transformation Phase 3,N1 9AB,"17,706.00",
Communities & Local Government,DCLG,05/11/2015,Publications,Neighbourhoods,HAYMARKET PUBLISHING SERVS LTD,,Large,,516858800,5106216802,Learning and Development Materials,Minerals and Waste Planning,TW11 9BE,570,
Communities & Local Government,DCLG,05/11/2015,Repayments of Private Sect Grant (Cap),Decentralisation and Local Growth,LUCITE INTERNATIONAL UK LTD,,,,,2300002323,,Recovery of payment,BB3 1QB,"-81,061.16",
Communities & Local Government,DCLG,05/11/2015,Research,Localism,GLENIGAN,,Large,,218633327,5106216816,Research,Research - Planning application & Development pipeline data,BH8 8AQ,"12,500.00",
Communities & Local Government,DCLG,05/11/2015,Security,Finance & Corporate Services,INTERSERVE (FACILITIES MANAGEMENT),,Large,,364834825,5106216807,Security,TQH Security 2015-16,BS32 4NH,"9,286.58",
Communities & Local Government,DCLG,05/11/2015,Security,Finance & Corporate Services,INTERSERVE (FACILITIES MANAGEMENT),,Large,,364834825,5106216807,Security,Rivergate Security 2015-16,BS32 4NH,"6,764.25",
Communities & Local Government,DCLG,05/11/2015,Security,Finance & Corporate Services,INTERSERVE (FACILITIES MANAGEMENT),,Large,,364834825,5106216807,Security,Citygate Security 2015-16,BS32 4NH,"2,546.81",
Communities & Local Government,DCLG,05/11/2015,Security,Finance & Corporate Services,INTERSERVE (FACILITIES MANAGEMENT),,Large,,364834825,5106216807,Security,5SSP Security 2015-16,BS32 4NH,"4,816.46",
Communities & Local Government,DCLG,05/11/2015,Steady State Service Provision,Finance & Corporate Services,ALLPAY LIMITED,,Medium,,738359918,5106216806,Business Process Outsourcing Services,DC/DC Transaction Charges,HR1 3SE,411.15,
Communities & Local Government,DCLG,05/11/2015,Steady State Service Provision,Finance & Corporate Services,ALLPAY LIMITED,,Medium,,738359918,5106216806,Business Process Outsourcing Services,Monthly Management Fee Payments,HR1 3SE,500,
Communities & Local Government,DCLG,05/11/2015,Steady State Service Provision,Localism,VODAFONE LTD FORMELY CABLE  & WIREL,,Large,,239869688,5106216625,Business Process Outsourcing Services,Managed Internet Access Line,MK3 5JP,582.58,
Communities & Local Government,DCLG,05/11/2015,Steady State Service Provision,Neighbourhoods,LOCALITY,,Medium,,347998312,5106216813,Business Process Outsourcing Services,Neighbourhood Planning & CRTB,N1 6DR,"44,035.87",
Communities & Local Government,DCLG,05/11/2015,Training,Finance & Corporate Services,DODS PARLIAMENTARY COMM  LTD,,Large,,290673748,5106216810,Development and Training,BME into Leadership Conference 2015,SW1H 9BP,295,
Communities & Local Government,DCLG,05/11/2015,Training,Localism,SOUTHAMPTON UNIVERSITY,,Large,,225595503,5106216769,Development and Training,Bursary - MSc in Official Statistics,SO17 1BJ,"1,800.00",
Communities & Local Government,DCLG,05/11/2015,Waste Disposal and pest control,Finance & Corporate Services,INTERSERVE (FACILITIES MANAGEMENT),,Large,,364834825,5106216807,Waste Management Services,TQH Waste 2015-16,BS32 4NH,"1,301.76",
Communities & Local Government,DCLG,05/11/2015,Waste Disposal and pest control,Finance & Corporate Services,INTERSERVE (FACILITIES MANAGEMENT),,Large,,364834825,5106216807,Waste Management Services,Rivergate Waste 2015-16,BS32 4NH,917.18,
Communities & Local Government,DCLG,05/11/2015,Waste Disposal and pest control,Finance & Corporate Services,INTERSERVE (FACILITIES MANAGEMENT),,Large,,364834825,5106216807,Waste Management Services,Citygate Waste 2015-16,BS32 4NH,881.29,
Communities & Local Government,DCLG,05/11/2015,Waste Disposal and pest control,Finance & Corporate Services,INTERSERVE (FACILITIES MANAGEMENT),,Large,,364834825,5106216807,Waste Management Services,5SSP Waste 2015-16,BS32 4NH,871.17,
Communities & Local Government,DCLG,05/11/2015,Work In Progress Pre-Cert 40373 Spend,Decentralisation and Local Growth,BIRMINGHAM CITY COUNCIL (NOT RATES),,Large,,,7600014176,,Revenue Grant To Be Paid,B1 1BB,"619,597.98",Yes
Communities & Local Government,DCLG,05/11/2015,Work In Progress Pre-Cert 40373 Spend,Decentralisation and Local Growth,BIRMINGHAM CITY COUNCIL (NOT RATES),,Large,,,7600014181,,Revenue Grant To Be Paid,B1 1BB,"11,052.87",Yes
Communities & Local Government,DCLG,05/11/2015,Work In Progress Pre-Cert 40373 Spend,Decentralisation and Local Growth,BUSINESS IN THE COMMUNITY EAST MIDL,,Small,,,7600014177,,Revenue Grant To Be Paid,NG1 7AB,"9,584.23",Yes
Communities & Local Government,DCLG,05/11/2015,Work In Progress Pre-Cert 40373 Spend,Decentralisation and Local Growth,CHESTERFIELD BOROUGH COUNCIL,,Large,,,7600014184,,Revenue Grant To Be Paid,S40 1LP,"7,558.83",Yes
Communities & Local Government,DCLG,05/11/2015,Work In Progress Pre-Cert 40373 Spend,Decentralisation and Local Growth,EAST MIDLANDS INCUBATION NETWORK (E,,Small,,,7600014183,,Revenue Grant Clawback Offset,DE65 5GJ,-636.22,Yes
Communities & Local Government,DCLG,05/11/2015,Work In Progress Pre-Cert 40373 Spend,Decentralisation and Local Growth,EAST MIDLANDS INCUBATION NETWORK (E,,Small,,,7600014183,,Revenue Grant To Be Paid,DE65 5GJ,"57,826.74",Yes
Communities & Local Government,DCLG,05/11/2015,Work In Progress Pre-Cert 40373 Spend,Decentralisation and Local Growth,MANSFIELD DISTRICT COUNCIL,,Large,,,7600014173,,Revenue Grant To Be Paid,NG19 7BH,"3,432.20",Yes
Communities & Local Government,DCLG,05/11/2015,Work In Progress Pre-Cert 40373 Spend,Decentralisation and Local Growth,NOTTINGHAM UNIVERSITY,,Large,,,7600014172,,Revenue Grant Clawback Offset,NG7 2RD,"-1,518.76",Yes
Communities & Local Government,DCLG,05/11/2015,Work In Progress Pre-Cert 40373 Spend,Decentralisation and Local Growth,NOTTINGHAM UNIVERSITY,,Large,,,7600014172,,Revenue Grant To Be Paid,NG7 2RD,"38,485.39",Yes
Communities & Local Government,DCLG,05/11/2015,Work In Progress Pre-Cert 40373 Spend,Decentralisation and Local Growth,NOTTINGHAM UNIVERSITY,,Large,,,7600014182,,Revenue Grant To Be Paid,NG7 2RD,"29,297.88",Yes
Communities & Local Government,DCLG,05/11/2015,Work In Progress Pre-Cert 40373 Spend,Decentralisation and Local Growth,SERCO REGIONAL SERVICES LTD,,,,,7600014174,,Revenue Grant To Be Paid,PL6 8LU,"35,986.88",Yes
Communities & Local Government,DCLG,05/11/2015,Work In Progress Pre-Cert 40373 Spend,Decentralisation and Local Growth,UNIVERSITY COLLEGE FALMOUTH,,,,,7600014178,,Revenue Grant To Be Paid,TR11 4RH,209.83,Yes
Communities & Local Government,DCLG,05/11/2015,Work In Progress Pre-Cert 40373 Spend,Decentralisation and Local Growth,UNIVERSITY OF WOLVERHAMPTON,,Large,,,7600014180,,Revenue Grant To Be Paid,WV1 1SB,"187,531.89",Yes
Communities & Local Government,DCLG,05/11/2015,Work In Progress Pre-Cert 40467 Spend,Decentralisation and Local Growth,BIRMINGHAM CITY COUNCIL (NOT RATES),,Large,,,7600014176,,Capital Grant To Be Paid,B1 1BB,"1,201,719.30",Yes
Communities & Local Government,DCLG,05/11/2015,Work In Progress Pre-Cert 40467 Spend,Decentralisation and Local Growth,CORNWALL COUNCIL,,,,,7600014179,,Capital Grant To Be Paid,TR1 3AY,"729,009.83",Yes
Communities & Local Government,DCLG,05/11/2015,Work In Progress Pre-Cert 40467 Spend,Decentralisation and Local Growth,CTP (WAKEFIELD) LTD,,,,,7600014175,,Capital Grant Clawback Offset,M15 4PY,"-254,896.20",Yes
Communities & Local Government,DCLG,05/11/2015,Work In Progress Pre-Cert 40467 Spend,Decentralisation and Local Growth,CTP (WAKEFIELD) LTD,,,,,7600014175,,Capital Grant To Be Paid,M15 4PY,"880,648.46",Yes
Communities & Local Government,DCLG,05/11/2015,Work In Progress Pre-Cert 40467 Spend,Decentralisation and Local Growth,KEY FUND INVESTMENTS LTD,,Small,,,2300002340,,Recovery of payment,S9 3TY,"-1,159.27",Yes
Communities & Local Government,DCLG,05/11/2015,Work In Progress Pre-Cert 40467 Spend,Decentralisation and Local Growth,MANSFIELD DISTRICT COUNCIL,,Large,,,7600014173,,Capital Grant To Be Paid,NG19 7BH,"15,249.20",Yes
Communities & Local Government,DCLG,05/11/2015,Work In Progress Pre-Cert 40467 Spend,Decentralisation and Local Growth,NOTTINGHAM UNIVERSITY,,Large,,,7600014172,,Capital Grant Clawback Offset,NG7 2RD,"-38,112.91",Yes
Communities & Local Government,DCLG,05/11/2015,Work In Progress Pre-Cert 40467 Spend,Decentralisation and Local Growth,NOTTINGHAM UNIVERSITY,,Large,,,7600014172,,Capital Grant To Be Paid,NG7 2RD,"396,806.10",Yes
Communities & Local Government,DCLG,05/11/2015,Work In Progress Pre-Cert 40467 Spend,Decentralisation and Local Growth,UNIVERSITY COLLEGE FALMOUTH,,,,,7600014178,,Capital Grant To Be Paid,TR11 4RH,"1,116.63",Yes
Communities & Local Government,DCLG,06/11/2015,Advertising,"Strategy, Communications and Private Office",CARAT LTD,,Large,,211589882,5106216835,Advertising,Fire Kills Media Buying,NW1 3BF,"-1,390.12",
Communities & Local Government,DCLG,06/11/2015,Advertising,"Strategy, Communications and Private Office",CARAT LTD,,Large,,211589882,5106216835,Advertising,Fire Kills Media Buying - asbof,NW1 3BF,-1.08,
Communities & Local Government,DCLG,06/11/2015,Advertising,"Strategy, Communications and Private Office",CARAT LTD,,Large,,211589882,5106216841,Advertising,RtB Out of Home Media Booking: Carat,NW1 3BF,"23,392.90",
Communities & Local Government,DCLG,06/11/2015,Agency Staff,Decentralisation and Local Growth,CAPITA BUS. SERV. LTD (CON LAB),,Large,,,5106216820,Contingent Labour,Interim Manager,DL1 9HB,"2,266.14",
Communities & Local Government,DCLG,06/11/2015,Agency Staff,Decentralisation and Local Growth,CAPITA BUS. SERV. LTD (CON LAB),,Large,,,5106216821,Contingent Labour,Interim Manager,DL1 9HB,"1,028.02",
Communities & Local Government,DCLG,06/11/2015,Agency Staff,Decentralisation and Local Growth,CAPITA BUS. SERV. LTD (CON LAB),,Large,,,5106216822,Contingent Labour,Interim Manager,DL1 9HB,"3,560.74",
Communities & Local Government,DCLG,06/11/2015,Agency Staff,Decentralisation and Local Growth,CAPITA BUS. SERV. LTD (CON LAB),,Large,,,5106216824,Contingent Labour,Interim Manager,DL1 9HB,"2,030.64",
Communities & Local Government,DCLG,06/11/2015,Agency Staff,Decentralisation and Local Growth,CAPITA BUS. SERV. LTD (CON LAB),,Large,,,5106216825,Contingent Labour,Interim Manager,DL1 9HB,"1,877.04",
Communities & Local Government,DCLG,06/11/2015,Agency Staff,Decentralisation and Local Growth,CAPITA BUS. SERV. LTD (CON LAB),,Large,,,5106216828,Contingent Labour,Interim Manager,DL1 9HB,"1,951.92",
Communities & Local Government,DCLG,06/11/2015,Agency Staff,Decentralisation and Local Growth,CAPITA BUS. SERV. LTD (CON LAB),,Large,,,5106216829,Contingent Labour,Interim Manager,DL1 9HB,"1,331.82",
Communities & Local Government,DCLG,06/11/2015,Agency Staff,Decentralisation and Local Growth,CAPITA BUS. SERV. LTD (CON LAB),,Large,,,5106216830,Contingent Labour,Interim Manager,DL1 9HB,"2,670.55",
Communities & Local Government,DCLG,06/11/2015,Agency Staff,Decentralisation and Local Growth,CAPITA BUS. SERV. LTD (CON LAB),,Large,,,5106216831,Contingent Labour,Interim Manager,DL1 9HB,"1,780.37",
Communities & Local Government,DCLG,06/11/2015,Agency Staff,Decentralisation and Local Growth,CAPITA BUS. SERV. LTD (CON LAB),,Large,,,5106216833,Contingent Labour,Official Travel and Subsistence,DL1 9HB,241.3,
Communities & Local Government,DCLG,06/11/2015,Agency Staff,Decentralisation and Local Growth,CAPITA BUS. SERV. LTD (CON LAB),,Large,,,5106216833,Contingent Labour,Interim Manager,DL1 9HB,"2,266.14",
Communities & Local Government,DCLG,06/11/2015,Agency Staff,Finance & Corporate Services,BROOK STREET UK LTD,,Large,,364940028,5106216840,Contingent Labour,Interim Admin support,AL1 4JB,606.4,
Communities & Local Government,DCLG,06/11/2015,Agency Staff,Finance & Corporate Services,BROOK STREET UK LTD,,Large,,364940028,5106216843,Contingent Labour,Interim Admin support,AL1 4JB,380.52,
Communities & Local Government,DCLG,06/11/2015,Agency Staff,Finance & Corporate Services,BROOK STREET UK LTD,,Large,,364940028,5106216845,Contingent Labour,Interim Admin support,AL1 4JB,580.44,
Communities & Local Government,DCLG,06/11/2015,Agency Staff,Finance & Corporate Services,BROOK STREET UK LTD,,Large,,364940028,5106216846,Contingent Labour,Support worker for staff interim measure,AL1 4JB,345.49,
Communities & Local Government,DCLG,06/11/2015,Agency Staff,Finance & Corporate Services,BROOK STREET UK LTD,,Large,,364940028,5106216851,Contingent Labour,Interim Admin support,AL1 4JB,580.44,
Communities & Local Government,DCLG,06/11/2015,Agency Staff,Finance & Corporate Services,BROOK STREET UK LTD,,Large,,364940028,5106216852,Contingent Labour,Interim Admin support,AL1 4JB,638.48,
Communities & Local Government,DCLG,06/11/2015,Agency Staff,Finance & Corporate Services,CAPITA BUS. SERV. LTD (CON LAB),,Large,,,5106216827,Contingent Labour,Interim Manager,DL1 9HB,"3,115.26",
Communities & Local Government,DCLG,06/11/2015,Agency Staff,Neighbourhoods,BROOK STREET UK LTD,,Large,,364940028,5106216837,Contingent Labour,Initial 9 Months Interim Admin Support,AL1 4JB,707.21,
Communities & Local Government,DCLG,06/11/2015,Agency Staff,"Strategy, Communications and Private Office",BROOK STREET UK LTD,,Large,,364940028,5106216842,Contingent Labour,Interim Correspondance staff,AL1 4JB,310.21,
Communities & Local Government,DCLG,06/11/2015,Capital Grants to People Non Profit,Decentralisation and Local Growth,BIG LOTTERY FUND,,Public Bodies,,648124972,2100258805,,Coastal Communities Fund,B15 1TR,"1,565,519.00",Yes
Communities & Local Government,DCLG,06/11/2015,Current Grants to Non Profit Bodies,Decentralisation and Local Growth,BIG LOTTERY FUND,,Public Bodies,,648124972,2100258805,,Coastal Communities Fund,B15 1TR,"553,348.00",Yes
Communities & Local Government,DCLG,06/11/2015,Current Grants to Non Profit Bodies,Neighbourhoods,PPCR ASSOCIATES,,Micro,,,5000311841,,Right to Manage,SE1 4PU,"5,000.00",Yes
Communities & Local Government,DCLG,06/11/2015,Grant in Aid to NDPBs (non budget),Finance & Corporate Services,VALUATION TRIBUNAL SERVICE,,,,211218366,2100258938,,Non Domestic Rates Appeals - November 2015,E1 8EU,"403,080.00",Yes
Communities & Local Government,DCLG,06/11/2015,IT - Service Contracts,Finance & Corporate Services,DAISY CORPORATE SERVICES LTD,,Large,,221481042,5106216848,IT Managed / Outsourced Services,Telephony New Requirements,BB9 5SR,608.26,
Communities & Local Government,DCLG,06/11/2015,IT - Service Contracts,Finance & Corporate Services,DAISY CORPORATE SERVICES LTD,,Large,,221481042,5106216849,IT Managed / Outsourced Services,Telephony New Requirements,BB9 5SR,505.91,
Communities & Local Government,DCLG,06/11/2015,IT - Service Contracts,Neighbourhoods,DEXTROUS WEB LTD,,Micro,,211267270,5106216855,IT Managed / Outsourced Services,Hosting services,N1 7NG,868.8,
Communities & Local Government,DCLG,06/11/2015,Medals,Localism,ROYAL MINT,,Public Bodies,,211722976,5106216761,Learning and Development Materials,FireFighter Medals for LS  Good Conduct,CF72 8YT,252,
Communities & Local Government,DCLG,06/11/2015,Publicity,"Strategy, Communications and Private Office",GUARDIAN NEWS & MEDIA,,Large,,,5106216832,Advertising,GNM Placement of Head of C&M Job advert,N1 9GU,"1,080.00",
Communities & Local Government,DCLG,06/11/2015,Software Licences,Neighbourhoods,BYTES SOFTWARE SERVICES LTD,,Medium,,225273754,5106216836,Software,Microsoft PrjctSvrCAL 2013 SNGL MVL DvcC,KT22 7TW,336.38,
Communities & Local Government,DCLG,06/11/2015,Software Licences,Neighbourhoods,BYTES SOFTWARE SERVICES LTD,,Medium,,225273754,5106216836,Software,Microsoft VisioStd 2016 SNGL MVL,KT22 7TW,497.34,
Communities & Local Government,DCLG,06/11/2015,Software Licences,"Strategy, Communications and Private Office",FENIX MEDIA LTD T/A FACE,,Medium,,,5106216747,Software,Pulsar - Social Media Monitoring Tool,W1T 5BG,"7,200.00",
Communities & Local Government,DCLG,06/11/2015,Work In Progress Pre-Cert 40373 Spend,Decentralisation and Local Growth,BASSETLAW DISTRICT COUNCIL,,Large,,,7600014189,,Revenue Grant To Be Paid,S81 2AH,"39,114.13",Yes
Communities & Local Government,DCLG,06/11/2015,Work In Progress Pre-Cert 40373 Spend,Decentralisation and Local Growth,INTERNATIONAL SYNERGIES LTD,,Small,,,7600014190,,Revenue Grant To Be Paid,B30 3ES,"87,667.10",Yes
Communities & Local Government,DCLG,06/11/2015,Work In Progress Pre-Cert 40373 Spend,Decentralisation and Local Growth,NOTTINGHAM UNIVERSITY,,Large,,,7600014185,,Revenue Grant Clawback Offset,NG7 2RD,"-2,744.02",Yes
Communities & Local Government,DCLG,06/11/2015,Work In Progress Pre-Cert 40373 Spend,Decentralisation and Local Growth,NOTTINGHAM UNIVERSITY,,Large,,,7600014185,,Revenue Grant To Be Paid,NG7 2RD,"39,883.32",Yes
Communities & Local Government,DCLG,06/11/2015,Work In Progress Pre-Cert 40373 Spend,Decentralisation and Local Growth,NOTTINGHAM UNIVERSITY,,Large,,,7600014186,,Revenue Grant To Be Paid,NG7 2RD,"32,811.39",Yes
Communities & Local Government,DCLG,06/11/2015,Work In Progress Pre-Cert 40373 Spend,Decentralisation and Local Growth,SOUTH HOLLAND DISTRICT COUNCIL,,Large,,,7600014187,,Revenue Grant To Be Paid,PE11 2XE,"31,179.36",Yes
Communities & Local Government,DCLG,06/11/2015,Work In Progress Pre-Cert 40467 Spend,Decentralisation and Local Growth,SOUTH HOLLAND DISTRICT COUNCIL,,Large,,,7600014187,,Capital Grant To Be Paid,PE11 2XE,"124,679.60",Yes
Communities & Local Government,DCLG,06/11/2015,Work In Progress Pre-Cert 40467 Spend,Decentralisation and Local Growth,STONEFERRY MARFLEET LTD,,Small,,,7600014188,,Capital Grant To Be Paid,YO43 4RW,"231,700.70",Yes
Communities & Local Government,DCLG,09/11/2015,Advertising,"Strategy, Communications and Private Office",CARAT LTD,,Large,,211589882,5106215102,Advertising,Fire Kills Media Buying,NW1 3BF,"12,233.12",
Communities & Local Government,DCLG,09/11/2015,Advertising,"Strategy, Communications and Private Office",CARAT LTD,,Large,,211589882,5106215102,Advertising,Fire Kills Media Buying - asbof,NW1 3BF,9.48,
Communities & Local Government,DCLG,09/11/2015,Agency Staff,Decentralisation and Local Growth,CAPITA BUS. SERV. LTD (CON LAB),,Large,,,5106216894,Contingent Labour,Official Travel and Subsistence,DL1 9HB,576.61,
Communities & Local Government,DCLG,09/11/2015,Agency Staff,Decentralisation and Local Growth,CAPITA BUS. SERV. LTD (CON LAB),,Large,,,5106216894,Contingent Labour,Interim Manager,DL1 9HB,"3,005.71",
Communities & Local Government,DCLG,09/11/2015,Agency Staff,Decentralisation and Local Growth,CAPITA BUS. SERV. LTD (CON LAB),,Large,,,5106216895,Contingent Labour,Interim Manager,DL1 9HB,"1,879.74",
Communities & Local Government,DCLG,09/11/2015,Agency Staff,Decentralisation and Local Growth,CAPITA BUS. SERV. LTD (CON LAB),,Large,,,5106216895,Contingent Labour,Interim Manager,DL1 9HB,"3,797.04",
Communities & Local Government,DCLG,09/11/2015,Agency Staff,Decentralisation and Local Growth,CAPITA BUS. SERV. LTD (CON LAB),,Large,,,5106216896,Contingent Labour,Interim Manager,DL1 9HB,"3,566.38",
Communities & Local Government,DCLG,09/11/2015,Current (non AEF) Grants to Local Authorities,Decentralisation and Local Growth,SUFFOLK COASTAL DISTRICT COUNCIl,,,,239933203,2100257759,,Coastal Community Teams,IP12 1AU,"10,000.00",Yes
Communities & Local Government,DCLG,09/11/2015,Electricity,Finance & Corporate Services,EDF ENERGY 1 LIMITED,,Large,,230840469,5106216891,Energy,EoE Waterbeach Electricity 2015-16,PL3 5XQ,"2,787.42",
Communities & Local Government,DCLG,09/11/2015,Grant in Aid to NDPBs (non budget),Finance & Corporate Services,COMMISSION LOCAL ADMINISTRATION,,,,215271508,2100258868,,CLAE GID Payment Nov 15-Managing Public Mone,SW1P 4QP,"772,000.00",Yes
Communities & Local Government,DCLG,09/11/2015,IT - Service Contracts,Finance & Corporate Services,DAISY CORPORATE SERVICES LTD,,Large,,221481042,5106216867,IT Managed / Outsourced Services,PAMU Office Moves Project Q4 14/15,BB9 5SR,"2,703.60",
Communities & Local Government,DCLG,09/11/2015,IT - Service Contracts,Neighbourhoods,APTO SOLUTIONS LTD,,Small,,739026040,5106216900,IT Managed / Outsourced Services,Planning Portal 1 APP forms contract,BS8 3BA,"3,784.00",
Communities & Local Government,DCLG,09/11/2015,Legal Fees,Neighbourhoods,IVY LEGAL LIMITED,,Micro,,219262084,5106216713,Legal,Legal Advice,EC1Y 4TW,360,
Communities & Local Government,DCLG,09/11/2015,Physical Storage,Finance & Corporate Services,IRON MOUNTAIN (UK) LIMITED,,Large,,501338354,5106216868,Warehousing and Storage,Offsite Storage -Tapes 2015,EH54 7DF,432.28,
Communities & Local Government,DCLG,09/11/2015,Physical Storage,Finance & Corporate Services,IRON MOUNTAIN (UK) LIMITED,,Large,,501338354,5106216868,Warehousing and Storage,Offsite storage - tapes 2014-15,EH54 7DF,9.63,
Communities & Local Government,DCLG,09/11/2015,Printing,"Strategy, Communications and Private Office",STATIONERY OFFICE LTD,,Large,,779375633,5106216871,Printing Services,Statutory Instruments Print: Non-Vatable,NR3 1PD,165,
Communities & Local Government,DCLG,09/11/2015,Printing,"Strategy, Communications and Private Office",STATIONERY OFFICE LTD,,Large,,779375633,5106216871,Printing Services,Statutory Instruments Print: Vatable,NR3 1PD,130,
Communities & Local Government,DCLG,09/11/2015,Professional services,Finance & Corporate Services,DAWES & FRASER CONSULTING LTD,,Small,,,5106216881,Financial,Contract and Technical Support (Jun-Dec),SE20 7BS,"5,688.00",
Communities & Local Government,DCLG,09/11/2015,Professional services,Finance & Corporate Services,DAWES & FRASER CONSULTING LTD,,Small,,,5106216881,Financial,Official Travel and Subsistence,SE20 7BS,106.05,
Communities & Local Government,DCLG,09/11/2015,Professional services,Localism,VALUATION OFFICE AGENCY,,Public Bodies,,215253886,2100258977,Environmental Services,Work on NNDR & Council Tax - November 2015,W1B 5BU,"13,308,333.00",
Communities & Local Government,DCLG,09/11/2015,Professional services,Troubled Families,DCLG GOVERNMENT PROCUREMENT CARD,,,,,1000004068,Environmental Services,Pay for attendance at LGA conference.,TN37 7GA,540,
Communities & Local Government,DCLG,09/11/2015,Publications,Finance & Corporate Services,JONES YARRELL LEADENHALL LTD,,Large,,505670265,5106216893,Learning and Development Materials,Journal and Newspaper supply 2015-16,E3 3JH,312.34,
Communities & Local Government,DCLG,09/11/2015,Publicity,"Strategy, Communications and Private Office",JONES YARRELL LEADENHALL LTD,,Large,,505670265,5106216882,Advertising,Newspapers & Magazines for Press monitor,E3 3JH,492.67,
Communities & Local Government,DCLG,09/11/2015,Publicity,"Strategy, Communications and Private Office",JONES YARRELL LEADENHALL LTD,,Large,,505670265,5106216883,Advertising,Newspapers & Magazines for Press monitor,E3 3JH,496.25,
Communities & Local Government,DCLG,09/11/2015,Steady State Service Provision,Finance & Corporate Services,ALLPAY LIMITED,,Medium,,738359918,5106216887,Business Process Outsourcing Services,DC/DC Transaction Charges,HR1 3SE,429.5,
Communities & Local Government,DCLG,09/11/2015,Steady State Service Provision,Finance & Corporate Services,ALLPAY LIMITED,,Medium,,738359918,5106216887,Business Process Outsourcing Services,Monthly Management Fee Payments,HR1 3SE,500,
Communities & Local Government,DCLG,09/11/2015,Steady State Service Provision,Localism,LOCALITY,,Medium,,347998312,5106216800,Business Process Outsourcing Services,Lot 1 Advice Service and Network,N1 6DR,"46,125.61",
Communities & Local Government,DCLG,09/11/2015,Steady State Service Provision,Localism,LOCALITY,,Medium,,347998312,5106216803,Business Process Outsourcing Services,Lot 5: Community Assets,N1 6DR,"16,583.98",
Communities & Local Government,DCLG,09/11/2015,Steady State Service Provision,Localism,LOCALITY,,Medium,,347998312,5106216870,Business Process Outsourcing Services,Lot 3 Our Place and First Steps,N1 6DR,"35,794.56",
Communities & Local Government,DCLG,09/11/2015,Training,Finance & Corporate Services,WHITEHALL & INDUSTRY GROUP,,Small,,385853957,5106216808,Development and Training,Enhancing Personal Impact and Presence,SW1H 9EX,450,
Communities & Local Government,DCLG,09/11/2015,Vehicle hire,Finance & Corporate Services,CYCLESCHEME LTD,,Large,,345537935,5106216901,Vehicle Hire and Lease,Salaried Cycle to work scheme,BA1 2LN,538.45,
Communities & Local Government,DCLG,09/11/2015,Work In Progress Pre-Cert 40373 Spend,Decentralisation and Local Growth,ACCORD HOUSING ASSOCIATION LTD,,Large,,,7600014194,,Revenue Grant Clawback Offset,B70 6QG,"-37,947.84",Yes
Communities & Local Government,DCLG,09/11/2015,Work In Progress Pre-Cert 40373 Spend,Decentralisation and Local Growth,ACCORD HOUSING ASSOCIATION LTD,,Large,,,7600014194,,Revenue Grant To Be Paid,B70 6QG,"11,909.97",Yes
Communities & Local Government,DCLG,09/11/2015,Work In Progress Pre-Cert 40373 Spend,Decentralisation and Local Growth,ASTON UNIVERSITY,,Large,,,7600014195,,Revenue Grant To Be Paid,B4 7ET,"62,404.11",Yes
Communities & Local Government,DCLG,09/11/2015,Work In Progress Pre-Cert 40373 Spend,Decentralisation and Local Growth,COVENTRY CITY COUNCIL,,Large,,,7600014191,,Revenue Grant Clawback Offset,CV1 5RR,-948.77,Yes
Communities & Local Government,DCLG,09/11/2015,Work In Progress Pre-Cert 40373 Spend,Decentralisation and Local Growth,COVENTRY CITY COUNCIL,,Large,,,7600014191,,Revenue Grant To Be Paid,CV1 5RR,"109,653.33",Yes
Communities & Local Government,DCLG,09/11/2015,Work In Progress Pre-Cert 40373 Spend,Decentralisation and Local Growth,STOKE-ON-TRENT CITY COUNCIL,,Large,,,7600014193,,Revenue Grant To Be Paid,ST4 1HP,"18,219.37",Yes
Communities & Local Government,DCLG,09/11/2015,Work In Progress Pre-Cert 40467 Spend,Decentralisation and Local Growth,ACCORD HOUSING ASSOCIATION LTD,,Large,,,7600014194,,Capital Grant To Be Paid,B70 6QG,"51,693.38",Yes
Communities & Local Government,DCLG,09/11/2015,Work In Progress Pre-Cert 40467 Spend,Decentralisation and Local Growth,COVENTRY CITY COUNCIL,,Large,,,7600014191,,Capital Grant Clawback Offset,CV1 5RR,-23.79,Yes
Communities & Local Government,DCLG,09/11/2015,Work In Progress Pre-Cert 40467 Spend,Decentralisation and Local Growth,COVENTRY CITY COUNCIL,,Large,,,7600014191,,Capital Grant To Be Paid,CV1 5RR,"134,741.39",Yes
Communities & Local Government,DCLG,09/11/2015,Work In Progress Pre-Cert 40467 Spend,Decentralisation and Local Growth,NOTTINGHAM CITY COUNCIL,,Large,,,7600014192,,Capital Grant Clawback Offset,NG2 3NG,"-1,190.81",Yes
Communities & Local Government,DCLG,09/11/2015,Work In Progress Pre-Cert 40467 Spend,Decentralisation and Local Growth,NOTTINGHAM CITY COUNCIL,,Large,,,7600014192,,Capital Grant To Be Paid,NG2 3NG,"203,110.11",Yes
Communities & Local Government,DCLG,10/11/2015,Advertising,"Strategy, Communications and Private Office",ENGINE PARTNERS UK LLP,,Large,,,5106216960,Advertising,Advertising Agency services,W1W 7RT,"22,025.50",
Communities & Local Government,DCLG,10/11/2015,Advertising,"Strategy, Communications and Private Office",ENGINE PARTNERS UK LLP,,Large,,,5106216962,Advertising,Advertising Agency services,W1W 7RT,"13,915.65",
Communities & Local Government,DCLG,10/11/2015,Advertising,"Strategy, Communications and Private Office",ENGINE PARTNERS UK LLP,,Large,,,5106216965,Advertising,Advertising Agency services,W1W 7RT,"16,179.10",
Communities & Local Government,DCLG,10/11/2015,Advertising,"Strategy, Communications and Private Office",TULLO MARSHALL WARREN LTD,,Medium,,,5106216757,Advertising,Right to Buy Marketing Contrsct 15/16,W1F 9NB,"5,576.00",
Communities & Local Government,DCLG,10/11/2015,Advertising,"Strategy, Communications and Private Office",TULLO MARSHALL WARREN LTD,,Medium,,,5106216759,Advertising,Right to Buy Marketing Contrsct 15/16,W1F 9NB,"4,990.00",
Communities & Local Government,DCLG,10/11/2015,Advertising,"Strategy, Communications and Private Office",TULLO MARSHALL WARREN LTD,,Medium,,,5106216760,Advertising,Right to Buy Marketing Contrsct 15/16,W1F 9NB,"5,541.00",
Communities & Local Government,DCLG,10/11/2015,Advertising,"Strategy, Communications and Private Office",TULLO MARSHALL WARREN LTD,,Medium,,,5106216927,Advertising,Right to Buy Marketing Contrsct 15/16,W1F 9NB,"6,000.30",
Communities & Local Government,DCLG,10/11/2015,Advertising,"Strategy, Communications and Private Office",TULLO MARSHALL WARREN LTD,,Medium,,,5106216930,Advertising,Right to Buy Marketing Contrsct 15/16,W1F 9NB,"8,779.00",
Communities & Local Government,DCLG,10/11/2015,Advertising,"Strategy, Communications and Private Office",TULLO MARSHALL WARREN LTD,,Medium,,,5106216953,Advertising,Right to Buy Marketing Contrsct 15/16,W1F 9NB,"8,052.00",
Communities & Local Government,DCLG,10/11/2015,Agency Staff,Finance & Corporate Services,INTERQUEST GROUP UK LIMITED,,Large,,423935241,5106216932,Contingent Labour,Increase in funds to April 2016,EC1N 8UA,"2,659.50",
Communities & Local Government,DCLG,10/11/2015,Agency Staff,"Strategy, Communications and Private Office",BROOK STREET UK LTD,,Large,,364940028,5106216933,Contingent Labour,Interim Correspondance staff,AL1 4JB,295.44,
Communities & Local Government,DCLG,10/11/2015,Agency Staff,"Strategy, Communications and Private Office",BROOK STREET UK LTD,,Large,,364940028,5106216938,Contingent Labour,Interim Correspondance staff,AL1 4JB,310.21,
Communities & Local Government,DCLG,10/11/2015,Conferences and Meeting Facilities,Troubled Families,LEICESTERSHIRE COUNTY COUNCIL,,Large,,236419693,5106216964,Promotion,50% costs Emergency Services Show,LE3 8RB,466.24,
Communities & Local Government,DCLG,10/11/2015,Courier Services,Finance & Corporate Services,INTERSERVE (FACILITIES MANAGEMENT),,Large,,364834825,5106216919,Office Solutions,DfECC/0028 Franking Machine Citygate,BS32 4NH,372.02,
Communities & Local Government,DCLG,10/11/2015,Courier Services,Finance & Corporate Services,INTERSERVE (FACILITIES MANAGEMENT),,Large,,364834825,5106216919,Office Solutions,DfECC/0005 Pitney Bowes 5 SPP,BS32 4NH,371.95,
Communities & Local Government,DCLG,10/11/2015,Domestic Services,Finance & Corporate Services,INTERSERVE (FACILITIES MANAGEMENT),,Large,,364834825,5106216919,Building Operation,DfECC/0116 Addtn Cleaning Req Rivergate,BS32 4NH,927.74,
Communities & Local Government,DCLG,10/11/2015,Domestic Services,Finance & Corporate Services,INTERSERVE (FACILITIES MANAGEMENT),,Large,,364834825,5106216919,Building Operation,DfECC/0128 Cleaning Requirements 5SPP,BS32 4NH,"1,798.35",
Communities & Local Government,DCLG,10/11/2015,Electricity,Finance & Corporate Services,EDF ENERGY 1 LIMITED,,Large,,230840469,5106216903,Energy,EM Castle Don Electricity 2015-16,PL3 5XQ,"2,662.28",
Communities & Local Government,DCLG,10/11/2015,Electricity,Finance & Corporate Services,EDF ENERGY 1 LIMITED,,Large,,230840469,5106216903,Energy,EM Castle Don Electricity 2015-16 0% VAT,PL3 5XQ,9.83,
Communities & Local Government,DCLG,10/11/2015,Electricity,Finance & Corporate Services,EDF ENERGY 1 LIMITED,,Large,,230840469,5106216924,Energy,EM Castle Don Electricity 2015-16,PL3 5XQ,"3,201.49",
Communities & Local Government,DCLG,10/11/2015,Facilities Management (ISD use only),Finance & Corporate Services,INTERSERVE (FACILITIES MANAGEMENT),,Large,,364834825,5106216919,Property Occupation,DfECC/0045 IB TUPE Citygate,BS32 4NH,911.66,
Communities & Local Government,DCLG,10/11/2015,Facilities Management (ISD use only),Finance & Corporate Services,INTERSERVE (FACILITIES MANAGEMENT),,Large,,364834825,5106216919,Property Occupation,DfECC/006,BS32 4NH,"2,066.93",
Communities & Local Government,DCLG,10/11/2015,Facilities Management (ISD use only),Finance & Corporate Services,INTERSERVE (FACILITIES MANAGEMENT),,Large,,364834825,5106216919,Property Occupation,DfECC/0104 Project Manager,BS32 4NH,"2,759.59",
Communities & Local Government,DCLG,10/11/2015,Facilities Management (ISD use only),Finance & Corporate Services,INTERSERVE (FACILITIES MANAGEMENT),,Large,,364834825,5106216919,Property Occupation,DfCC/0074 YR2 Contract Inflation TQH,BS32 4NH,251.85,
Communities & Local Government,DCLG,10/11/2015,Facilities Management (ISD use only),Finance & Corporate Services,INTERSERVE (FACILITIES MANAGEMENT),,Large,,364834825,5106216919,Property Occupation,DfECC/0042 Customer Services Manager TQH,BS32 4NH,"1,776.38",
Communities & Local Government,DCLG,10/11/2015,Facilities Management (ISD use only),Finance & Corporate Services,INTERSERVE (FACILITIES MANAGEMENT),,Large,,364834825,5106216919,Property Occupation,DfECC/0058 Auto Enrol Pensions TQH,BS32 4NH,143.24,
Communities & Local Government,DCLG,10/11/2015,Facilities Management (ISD use only),Finance & Corporate Services,INTERSERVE (FACILITIES MANAGEMENT),,Large,,364834825,5106216919,Property Occupation,DfECC/0066 Exceptions TQH,BS32 4NH,"30,710.61",
Communities & Local Government,DCLG,10/11/2015,Facilities Management (ISD use only),Finance & Corporate Services,INTERSERVE (FACILITIES MANAGEMENT),,Large,,364834825,5106216919,Property Occupation,DfECC/0097 FHS Structure TQH,BS32 4NH,416.85,
Communities & Local Government,DCLG,10/11/2015,Facilities Management (ISD use only),Finance & Corporate Services,INTERSERVE (FACILITIES MANAGEMENT),,Large,,364834825,5106216919,Property Occupation,DfECC/0108 YR3 Indexation TQH,BS32 4NH,"1,023.07",
Communities & Local Government,DCLG,10/11/2015,Facilities Management (ISD use only),Finance & Corporate Services,INTERSERVE (FACILITIES MANAGEMENT),,Large,,364834825,5106216919,Property Occupation,DfECC/0126 FTL Application TQH,BS32 4NH,864.74,
Communities & Local Government,DCLG,10/11/2015,Facilities Management (ISD use only),Finance & Corporate Services,INTERSERVE (FACILITIES MANAGEMENT),,Large,,364834825,5106216919,Property Occupation,DfECC/0042 Customer Services Manager 2RG,BS32 4NH,"1,776.38",
Communities & Local Government,DCLG,10/11/2015,Facilities Management (ISD use only),Finance & Corporate Services,INTERSERVE (FACILITIES MANAGEMENT),,Large,,364834825,5106216919,Property Occupation,DfECC/0058 Auto Enrol Pensions Rivergate,BS32 4NH,494.46,
Communities & Local Government,DCLG,10/11/2015,Facilities Management (ISD use only),Finance & Corporate Services,INTERSERVE (FACILITIES MANAGEMENT),,Large,,364834825,5106216919,Property Occupation,DfECC/0066 Exceptions Rivergate,BS32 4NH,"13,327.80",
Communities & Local Government,DCLG,10/11/2015,Facilities Management (ISD use only),Finance & Corporate Services,INTERSERVE (FACILITIES MANAGEMENT),,Large,,364834825,5106216919,Property Occupation,DfECC/0097 FHS Structure Rivergate,BS32 4NH,206.42,
Communities & Local Government,DCLG,10/11/2015,Facilities Management (ISD use only),Finance & Corporate Services,INTERSERVE (FACILITIES MANAGEMENT),,Large,,364834825,5106216919,Property Occupation,DfECC/0108 YR3 Indexation Rivergate,BS32 4NH,534.3,
Communities & Local Government,DCLG,10/11/2015,Facilities Management (ISD use only),Finance & Corporate Services,INTERSERVE (FACILITIES MANAGEMENT),,Large,,364834825,5106216919,Property Occupation,DfECC/0126 FTL Application Rivergate,BS32 4NH,551,
Communities & Local Government,DCLG,10/11/2015,Facilities Management (ISD use only),Finance & Corporate Services,INTERSERVE (FACILITIES MANAGEMENT),,Large,,364834825,5106216919,Property Occupation,DfCC/0074 YR2 Contract Inflatn Citygate,BS32 4NH,12.89,
Communities & Local Government,DCLG,10/11/2015,Facilities Management (ISD use only),Finance & Corporate Services,INTERSERVE (FACILITIES MANAGEMENT),,Large,,364834825,5106216919,Property Occupation,DfECC/0035 Min Wage Impact Citygate,BS32 4NH,25.09,
Communities & Local Government,DCLG,10/11/2015,Facilities Management (ISD use only),Finance & Corporate Services,INTERSERVE (FACILITIES MANAGEMENT),,Large,,364834825,5106216919,Property Occupation,DfECC/0058 Auto Enrol Pensions Citygate,BS32 4NH,105.37,
Communities & Local Government,DCLG,10/11/2015,Facilities Management (ISD use only),Finance & Corporate Services,INTERSERVE (FACILITIES MANAGEMENT),,Large,,364834825,5106216919,Property Occupation,DfECC/0097 FHS Structure Citygate,BS32 4NH,193.05,
Communities & Local Government,DCLG,10/11/2015,Facilities Management (ISD use only),Finance & Corporate Services,INTERSERVE (FACILITIES MANAGEMENT),,Large,,364834825,5106216919,Property Occupation,DfECC/0108 YR3 Indexation Citygate,BS32 4NH,388.27,
Communities & Local Government,DCLG,10/11/2015,Facilities Management (ISD use only),Finance & Corporate Services,INTERSERVE (FACILITIES MANAGEMENT),,Large,,364834825,5106216919,Property Occupation,DfCC/0074 YR2 Contract Inflation 5 SPP,BS32 4NH,17.13,
Communities & Local Government,DCLG,10/11/2015,Facilities Management (ISD use only),Finance & Corporate Services,INTERSERVE (FACILITIES MANAGEMENT),,Large,,364834825,5106216919,Property Occupation,DfECC/0058 Auto Enrol Pensions 5 SPP,BS32 4NH,183.25,
Communities & Local Government,DCLG,10/11/2015,Facilities Management (ISD use only),Finance & Corporate Services,INTERSERVE (FACILITIES MANAGEMENT),,Large,,364834825,5106216919,Property Occupation,DfECC/0106 Reception & MR Staff 5 SPP,BS32 4NH,"5,510.35",
Communities & Local Government,DCLG,10/11/2015,Facilities Management (ISD use only),Finance & Corporate Services,INTERSERVE (FACILITIES MANAGEMENT),,Large,,364834825,5106216919,Property Occupation,DfECC/0108 YR3 Indexation 5SPP,BS32 4NH,734.71,
Communities & Local Government,DCLG,10/11/2015,Facilities Management (ISD use only),Finance & Corporate Services,INTERSERVE (FACILITIES MANAGEMENT),,Large,,364834825,5106216921,Property Occupation,DfECC/0045 IB TUPE Citygate,BS32 4NH,"4,869.53",
Communities & Local Government,DCLG,10/11/2015,Fixed Maintenance,Finance & Corporate Services,INTERSERVE (FACILITIES MANAGEMENT),,Large,,364834825,5106216919,Property Occupation,DfECC/0011 Semi Comp Main Citygate,BS32 4NH,132.47,
Communities & Local Government,DCLG,10/11/2015,Fixed Maintenance,Finance & Corporate Services,INTERSERVE (FACILITIES MANAGEMENT),,Large,,364834825,5106216919,Property Occupation,DfECC/0011 Semi Comp Main 5SPP,BS32 4NH,444.09,
Communities & Local Government,DCLG,10/11/2015,IT - Service Contracts,Finance & Corporate Services,FUJITSU SERVICES LTD,,Large,,423375062,5106216926,IT Managed / Outsourced Services,FY 15/16 NR New Requirements,WA3 6GD,"1,453.50",
Communities & Local Government,DCLG,10/11/2015,IT - Service Contracts,Localism,INFORMED SOLUTIONS LTD,,Small,,346179542,5106216772,IT Managed / Outsourced Services,Service Management to Jan 16 - Var 13,WA14 4PA,"15,505.70",
Communities & Local Government,DCLG,10/11/2015,IT - Software Maintenance,Finance & Corporate Services,LOCKHEED MARTIN BUSINESS TECH SOLUT,,Large,,399909910,5106216872,IT Managed / Outsourced Services,MCIS/TESA support services FY15/16,PA4 9LH,"48,108.00",
Communities & Local Government,DCLG,10/11/2015,Office Supplies,Finance & Corporate Services,BANNER BUSINESS SUPPLIES LTD,,Large,,236638362,5106216009,Office Supplies,DELWEEKLY A4 Plastic Pockets Multi Punch,S9 1XU,23.52,
Communities & Local Government,DCLG,10/11/2015,Office Supplies,Finance & Corporate Services,BANNER BUSINESS SUPPLIES LTD,,Large,,236638362,5106216009,Office Supplies,DELWEEKLY ABS Stapler Half Strip Black,S9 1XU,2.59,
Communities & Local Government,DCLG,10/11/2015,Office Supplies,Finance & Corporate Services,BANNER BUSINESS SUPPLIES LTD,,Large,,236638362,5106216009,Office Supplies,DELWEEKLY BANNER A4 SPIRAL SIDEBOUND NOT,S9 1XU,21.56,
Communities & Local Government,DCLG,10/11/2015,Office Supplies,Finance & Corporate Services,BANNER BUSINESS SUPPLIES LTD,,Large,,236638362,5106216009,Office Supplies,DELWEEKLY BANNER ABS FULL STRIP STAPLER,S9 1XU,1,
Communities & Local Government,DCLG,10/11/2015,Office Supplies,Finance & Corporate Services,BANNER BUSINESS SUPPLIES LTD,,Large,,236638362,5106216009,Office Supplies,DELWEEKLY Banner A1 Plain Recycled Flipc,S9 1XU,21.85,
Communities & Local Government,DCLG,10/11/2015,Office Supplies,Finance & Corporate Services,BANNER BUSINESS SUPPLIES LTD,,Large,,236638362,5106216009,Office Supplies,DELWEEKLY Banner A4 Cut Flush Polypropyl,S9 1XU,12.06,
Communities & Local Government,DCLG,10/11/2015,Office Supplies,Finance & Corporate Services,BANNER BUSINESS SUPPLIES LTD,,Large,,236638362,5106216009,Office Supplies,DELWEEKLY Banner A4 L/Arch File 70Mm Spi,S9 1XU,7.39,
Communities & Local Government,DCLG,10/11/2015,Office Supplies,Finance & Corporate Services,BANNER BUSINESS SUPPLIES LTD,,Large,,236638362,5106216009,Office Supplies,DELWEEKLY Banner A4 Report File Blue,S9 1XU,9.41,
Communities & Local Government,DCLG,10/11/2015,Office Supplies,Finance & Corporate Services,BANNER BUSINESS SUPPLIES LTD,,Large,,236638362,5106216009,Office Supplies,DELWEEKLY Banner A5 Recycled Notebook,S9 1XU,63.84,
Communities & Local Government,DCLG,10/11/2015,Office Supplies,Finance & Corporate Services,BANNER BUSINESS SUPPLIES LTD,,Large,,236638362,5106216009,Office Supplies,DELWEEKLY Banner A5 Ruled Memo Pad 60gsm,S9 1XU,4.22,
Communities & Local Government,DCLG,10/11/2015,Office Supplies,Finance & Corporate Services,BANNER BUSINESS SUPPLIES LTD,,Large,,236638362,5106216009,Office Supplies,DELWEEKLY Banner Adhesive Putty 70g,S9 1XU,1.8,
Communities & Local Government,DCLG,10/11/2015,Office Supplies,Finance & Corporate Services,BANNER BUSINESS SUPPLIES LTD,,Large,,236638362,5106216009,Office Supplies,DELWEEKLY Banner Brilliant Page Marker 3,S9 1XU,0.67,
Communities & Local Government,DCLG,10/11/2015,Office Supplies,Finance & Corporate Services,BANNER BUSINESS SUPPLIES LTD,,Large,,236638362,5106216009,Office Supplies,DELWEEKLY Banner Flipchart Marker Assort,S9 1XU,3.74,
Communities & Local Government,DCLG,10/11/2015,Office Supplies,Finance & Corporate Services,BANNER BUSINESS SUPPLIES LTD,,Large,,236638362,5106216009,Office Supplies,DELWEEKLY Banner Large Plain Paperclip,S9 1XU,0.12,
Communities & Local Government,DCLG,10/11/2015,Office Supplies,Finance & Corporate Services,BANNER BUSINESS SUPPLIES LTD,,Large,,236638362,5106216009,Office Supplies,DELWEEKLY Banner Manilla A-Z A4 Divider,S9 1XU,3.11,
Communities & Local Government,DCLG,10/11/2015,Office Supplies,Finance & Corporate Services,BANNER BUSINESS SUPPLIES LTD,,Large,,236638362,5106216009,Office Supplies,DELWEEKLY Banner Medium Glue Stick 20g,S9 1XU,1.15,
Communities & Local Government,DCLG,10/11/2015,Office Supplies,Finance & Corporate Services,BANNER BUSINESS SUPPLIES LTD,,Large,,236638362,5106216009,Office Supplies,DELWEEKLY Banner Paper On Board A4 2 Rin,S9 1XU,6.05,
Communities & Local Government,DCLG,10/11/2015,Office Supplies,Finance & Corporate Services,BANNER BUSINESS SUPPLIES LTD,,Large,,236638362,5106216009,Office Supplies,DELWEEKLY Banner Rubber Bands Assorted 1,S9 1XU,0.85,
Communities & Local Government,DCLG,10/11/2015,Office Supplies,Finance & Corporate Services,BANNER BUSINESS SUPPLIES LTD,,Large,,236638362,5106216009,Office Supplies,DELWEEKLY Banner Staples 24/6,S9 1XU,0.79,
Communities & Local Government,DCLG,10/11/2015,Office Supplies,Finance & Corporate Services,BANNER BUSINESS SUPPLIES LTD,,Large,,236638362,5106216009,Office Supplies,DELWEEKLY Clensa Whiteboard Eraser,S9 1XU,4.13,
Communities & Local Government,DCLG,10/11/2015,Office Supplies,Finance & Corporate Services,BANNER BUSINESS SUPPLIES LTD,,Large,,236638362,5106216009,Office Supplies,DELWEEKLY Himark Dry Wipe Bullet Tip Mar,S9 1XU,3.44,
Communities & Local Government,DCLG,10/11/2015,Office Supplies,Finance & Corporate Services,BANNER BUSINESS SUPPLIES LTD,,Large,,236638362,5106216009,Office Supplies,DELWEEKLY Himark Highlighter Assorted,S9 1XU,3.31,
Communities & Local Government,DCLG,10/11/2015,Office Supplies,Finance & Corporate Services,BANNER BUSINESS SUPPLIES LTD,,Large,,236638362,5106216009,Office Supplies,DELWEEKLY Magnetic Whiteboard 1800 x 120,S9 1XU,37.51,
Communities & Local Government,DCLG,10/11/2015,Office Supplies,Finance & Corporate Services,BANNER BUSINESS SUPPLIES LTD,,Large,,236638362,5106216009,Office Supplies,DELWEEKLY Magnetic Whiteboard 900 x 600m,S9 1XU,51.72,
Communities & Local Government,DCLG,10/11/2015,Office Supplies,Finance & Corporate Services,BANNER BUSINESS SUPPLIES LTD,,Large,,236638362,5106216009,Office Supplies,DELWEEKLY Non-Magnetic Whiteboard 1200 x,S9 1XU,15.24,
Communities & Local Government,DCLG,10/11/2015,Office Supplies,Finance & Corporate Services,BANNER BUSINESS SUPPLIES LTD,,Large,,236638362,5106216009,Office Supplies,DELWEEKLY Post Safe Extra Strong Envelop,S9 1XU,18.28,
Communities & Local Government,DCLG,10/11/2015,Office Supplies,Finance & Corporate Services,BANNER BUSINESS SUPPLIES LTD,,Large,,236638362,5106216009,Office Supplies,DELWEEKLY SELF-STICK NOTES 76 X 127MM PA,S9 1XU,7.78,
Communities & Local Government,DCLG,10/11/2015,Office Supplies,Finance & Corporate Services,BANNER BUSINESS SUPPLIES LTD,,Large,,236638362,5106216009,Office Supplies,DELWEEKLY SELF-STICK NOTES 76 X 76MM PAL,S9 1XU,5.04,
Communities & Local Government,DCLG,10/11/2015,Office Supplies,Finance & Corporate Services,BANNER BUSINESS SUPPLIES LTD,,Large,,236638362,5106216009,Office Supplies,DELWEEKLY STYLO STIK2 BALLPOINT PEN BLAC,S9 1XU,7.92,
Communities & Local Government,DCLG,10/11/2015,Office Supplies,Finance & Corporate Services,BANNER BUSINESS SUPPLIES LTD,,Large,,236638362,5106216009,Office Supplies,DELWEEKLY STYLO STIK2 BALLPOINT PEN BLUE,S9 1XU,3.96,
Communities & Local Government,DCLG,10/11/2015,Office Supplies,Finance & Corporate Services,BANNER BUSINESS SUPPLIES LTD,,Large,,236638362,5106216009,Office Supplies,DELWEEKLY STYLO STIK2 BALLPOINT PEN GREE,S9 1XU,1.98,
Communities & Local Government,DCLG,10/11/2015,Office Supplies,Finance & Corporate Services,BANNER BUSINESS SUPPLIES LTD,,Large,,236638362,5106216009,Office Supplies,DELWEEKLY STYLO STIK2 BALLPOINT PEN RED,S9 1XU,1.98,
Communities & Local Government,DCLG,10/11/2015,Office Supplies,Finance & Corporate Services,BANNER BUSINESS SUPPLIES LTD,,Large,,236638362,5106216009,Office Supplies,DELWEEKLY Translucent Wallet Clear Fools,S9 1XU,2.57,
Communities & Local Government,DCLG,10/11/2015,Photocopying,Finance & Corporate Services,INTERSERVE (FACILITIES MANAGEMENT),,Large,,364834825,5106216919,Business Support,DfECC/0041 Prov of Repro Equip TQH,BS32 4NH,"4,520.08",
Communities & Local Government,DCLG,10/11/2015,Photocopying,Finance & Corporate Services,INTERSERVE (FACILITIES MANAGEMENT),,Large,,364834825,5106216919,Business Support,DfECC/0041 Prov of Repro Equip Rivergate,BS32 4NH,"4,520.09",
Communities & Local Government,DCLG,10/11/2015,Photocopying,Finance & Corporate Services,INTERSERVE (FACILITIES MANAGEMENT),,Large,,364834825,5106216919,Business Support,DfECC/0097 FHS Structure 5 SPP,BS32 4NH,190.8,
Communities & Local Government,DCLG,10/11/2015,Printing,"Strategy, Communications and Private Office",WILLIAMS LEA LIMITED,,Large,,393456413,5106216961,Printing Services,Year 3 Print services,NR3 1PD,"25,153.31",
Communities & Local Government,DCLG,10/11/2015,Printing,"Strategy, Communications and Private Office",WILLIAMS LEA LIMITED,,Large,,393456413,5106216961,Printing Services,Year 3 Print services (0% VAT),NR3 1PD,"13,760.83",
Communities & Local Government,DCLG,10/11/2015,Publications,"Strategy, Communications and Private Office",JONES YARRELL LEADENHALL LTD,,Large,,505670265,5106216957,Learning and Development Materials,Newspapers magazines for Private Office,E3 3JH,286.51,
Communities & Local Government,DCLG,10/11/2015,Publicity,"Strategy, Communications and Private Office",JONES YARRELL LEADENHALL LTD,,Large,,505670265,5106216969,Advertising,Newspapers & Magazines for Press monitor,E3 3JH,542.62,
Communities & Local Government,DCLG,10/11/2015,Publicity,"Strategy, Communications and Private Office",PRESS ASSOCIATION,,Large,,217191704,5106216628,Advertising,PRESS ASSOCIATION (PA) 2014-17,DN14 7YH,"1,325.74",
Communities & Local Government,DCLG,10/11/2015,Steady State Service Provision,Localism,CO-OPERATIVES UK,,Small,,,5106216956,Business Process Outsourcing Services,Lot 4 Community Economic Development,M60 0AS,"52,046.62",
Communities & Local Government,DCLG,10/11/2015,Steady State Service Provision,Localism,MOTT MACDONALD LTD,,Large,,423676980,5106216905,Business Process Outsourcing Services,Core Service Period 2 (Jun 15-May 16),BN1 4FY,"55,872.92",
Communities & Local Government,DCLG,10/11/2015,Training,Finance & Corporate Services,CAPITA BUS. SERV. LTD (CSL),,Large,,215580993,5106216908,Development and Training,APM Introductory Certificate,DL1 9HB,303,
Communities & Local Government,DCLG,10/11/2015,Training,Finance & Corporate Services,CAPITA BUS. SERV. LTD (CSL),,Large,,215580993,5106216909,Development and Training,Change Leaders for Senior Managers works,DL1 9HB,"4,432.00",
Communities & Local Government,DCLG,10/11/2015,Training,Finance & Corporate Services,CAPITA BUS. SERV. LTD (CSL),,Large,,215580993,5106216911,Development and Training,SCS Change Leaders Programme workshop,DL1 9HB,"4,432.00",
Communities & Local Government,DCLG,10/11/2015,Training,Finance & Corporate Services,CAPITA BUS. SERV. LTD (CSL),,Large,,215580993,5106216912,Development and Training,Association for Project Management- APMP,DL1 9HB,614,
Communities & Local Government,DCLG,10/11/2015,Training,Finance & Corporate Services,CAPITA BUS. SERV. LTD (CSL),,Large,,215580993,5106216913,Development and Training,APM Introductory Certificate,DL1 9HB,303,
Communities & Local Government,DCLG,10/11/2015,Training,Finance & Corporate Services,CAPITA BUS. SERV. LTD (CSL),,Large,,215580993,5106216915,Development and Training,APM Introductory Certificate,DL1 9HB,303,
Communities & Local Government,DCLG,10/11/2015,Training,Finance & Corporate Services,CAPITA BUS. SERV. LTD (CSL),,Large,,215580993,5106216920,Development and Training,Briefings and Submissions Workshop,DL1 9HB,"2,170.00",
Communities & Local Government,DCLG,10/11/2015,Training,Finance & Corporate Services,LSR TRAINING AND DEVELOPMENT,,Micro,,,5106216914,Development and Training,Essential Skills for Government Social R,S44 6UQ,700,
Communities & Local Government,DCLG,10/11/2015,Variable Maintenance < 15k,Finance & Corporate Services,INTERSERVE (FACILITIES MANAGEMENT),,Large,,364834825,5106216907,Property Occupation,TQH Variable Maintenance 2015-16,BS32 4NH,"30,800.60",
Communities & Local Government,DCLG,10/11/2015,Variable Maintenance < 15k,Finance & Corporate Services,INTERSERVE (FACILITIES MANAGEMENT),,Large,,364834825,5106216907,Property Occupation,Citygate Variable Maintenance 2015-16,BS32 4NH,"6,040.09",
Communities & Local Government,DCLG,10/11/2015,Variable Maintenance < 15k,Finance & Corporate Services,INTERSERVE (FACILITIES MANAGEMENT),,Large,,364834825,5106216907,Property Occupation,5 SPP Variable Maintenance 2015-16,BS32 4NH,"29,856.00",
Communities & Local Government,DCLG,10/11/2015,Vehicle hire,"Strategy, Communications and Private Office",GOVERNMENT CAR & DESPATCH AGENCY,,Public Bodies,,,5106216954,Vehicle Hire and Lease,Ministerial Duty Car 2(LT206) 2015-16,SW8 5AX,"7,273.67",
Communities & Local Government,DCLG,10/11/2015,Vehicle hire,"Strategy, Communications and Private Office",GOVERNMENT CAR & DESPATCH AGENCY,,Public Bodies,,,5106216963,Vehicle Hire and Lease,Ministerial Duty Car 1 (LT118) 2015-16,SW8 5AX,"7,023.67",
Communities & Local Government,DCLG,10/11/2015,Vehicle Maintenance,Localism,BABCOCK CRITICAL SERVICES LTD,,Large,,215597451,5106216968,Fleet Management,Fixed costs 15/16,NG15 0DR,"550,247.08",
Communities & Local Government,DCLG,10/11/2015,Web Services,"Strategy, Communications and Private Office",PULSION TECHNOLOGY LTD,,Small,,,5106216859,ICT Services,Hosting and maintenance  RtB website,G4 9XA,"1,458.00",
Communities & Local Government,DCLG,10/11/2015,Work In Progress Pre-Cert 40373 Spend,Decentralisation and Local Growth,COVENTRY & WARKS CO-OP DEVEL AGENCY,,Small,,,7600014198,,Revenue Grant To Be Paid,CV1 5EA,"27,479.30",Yes
Communities & Local Government,DCLG,10/11/2015,Work In Progress Pre-Cert 40373 Spend,Decentralisation and Local Growth,UNIVERSITY OF WOLVERHAMPTON,,Large,,,7600014196,,Revenue Grant To Be Paid,WV1 1SB,"52,823.36",Yes
Communities & Local Government,DCLG,10/11/2015,Work In Progress Pre-Cert 40373 Spend,Decentralisation and Local Growth,UNIVERSITY OF WOLVERHAMPTON,,Large,,,7600014197,,Revenue Grant To Be Paid,WV1 1SB,"54,546.85",Yes
Communities & Local Government,DCLG,11/11/2015,Advertising,"Strategy, Communications and Private Office",TULLO MARSHALL WARREN LTD,,Medium,,,5106216973,Advertising,Right to Buy Marketing Contrsct 15/16,W1F 9NB,"12,486.00",
Communities & Local Government,DCLG,11/11/2015,Electricity,Finance & Corporate Services,EDF ENERGY 1 LIMITED,,Large,,230840469,5106216866,Energy,Y&H Wakefield Electricity 2015-16,PL3 5XQ,"3,507.06",
Communities & Local Government,DCLG,11/11/2015,Grant in Aid to NDPBs (non budget),Neighbourhoods,HOMES & COMMUNITIES AGENCY,,Public Bodies,,215576860,2100259077,,Monthly HCA Grant in Aid Claim - November 2015,NE11 0NA,"148,445,488.00",Yes
Communities & Local Government,DCLG,11/11/2015,Legal Fees,Finance & Corporate Services,DAVITT JONES BOULD LTD (OFFICE ACC),,Medium,,,5106216975,Legal,Legal Advice,TA1 4EB,"1,560.00",
Communities & Local Government,DCLG,11/11/2015,Legal Fees,Localism,FIELD FISHER WATERHOUSE LLP,,Large,,349487996,5106216980,Legal,Legal Advice,EC3N 2AA,954.43,
Communities & Local Government,DCLG,11/11/2015,Publicity,"Strategy, Communications and Private Office",JONES YARRELL LEADENHALL LTD,,Large,,505670265,5106216974,Advertising,Newspapers & Magazines for Press monitor,E3 3JH,718.89,
Communities & Local Government,DCLG,11/11/2015,Recruitment,Neighbourhoods,VEREDUS,,Large,,,5106216727,Business Process Outsourcing Services,Advertising Costs,DL1 9HN,72,
Communities & Local Government,DCLG,11/11/2015,Recruitment,Neighbourhoods,VEREDUS,,Large,,,5106216727,Business Process Outsourcing Services,Executive Search Services,DL1 9HN,"1,560.00",
Communities & Local Government,DCLG,11/11/2015,Recruitment,Neighbourhoods,VEREDUS,,Large,,,5106216990,Business Process Outsourcing Services,Executive Search Services,DL1 9HN,"7,752.00",
Communities & Local Government,DCLG,11/11/2015,Repayments of LA Grant (Cap),Decentralisation and Local Growth,LEEDS CITY COUNCIL,,Large,,211170311,2300002333,,Recovery of payment,LS1 1UR,"-944,045.80",
Communities & Local Government,DCLG,11/11/2015,Research,Localism,NATURAL ENV RESEARCH COUNCIL,,Large,,,5106216971,Research,Research - Seismic Monitoring and Information,NG12 5GG,"9,044.52",
Communities & Local Government,DCLG,11/11/2015,Research,Localism,NATURAL ENV RESEARCH COUNCIL,,Large,,,5106216971,Research,Research - Seismic Monitoring and Information,NG12 5GG,"45,930.12",
Communities & Local Government,DCLG,11/11/2015,Research,Localism,NATURAL ENV RESEARCH COUNCIL,,Large,,,5106216972,Research,Research - Seismic Monitoring and Information,NG12 5GG,"9,044.52",
Communities & Local Government,DCLG,11/11/2015,Research,Localism,NATURAL ENV RESEARCH COUNCIL,,Large,,,5106216972,Research,Research - Seismic Monitoring and Information,NG12 5GG,"45,930.12",
Communities & Local Government,DCLG,11/11/2015,Research,Localism,RAND EUROPE CAMBRIDGE LTD,,Medium,,,5106216991,Research,Research - Assessing the Impct of Changes to the Local Audit,CB4 1YG,"29,788.75",
Communities & Local Government,DCLG,11/11/2015,Research,Neighbourhoods,BUILDING RESEARCH ESTABLISHMENT,,Large,,896495033,5106216979,Research,Milestone 3: Quarterly Progress Report,WD25 9XX,"21,252.00",
Communities & Local Government,DCLG,11/11/2015,Web Services,"Strategy, Communications and Private Office",MEMSET,,Small,,641014779,5106216993,ICT Services,Mini server hosting Feb 2015 to Feb 2016,GU2 7YD,437.4,
Communities & Local Government,DCLG,11/11/2015,Web Services,"Strategy, Communications and Private Office",MEMSET,,Small,,641014779,5106216993,ICT Services,Miniserver hosting,GU2 7YD,21.6,
Communities & Local Government,DCLG,11/11/2015,Work In Progress Pre-Cert 40373 Spend,Decentralisation and Local Growth,DERBYSHIRE COUNTY COUNCIL,,Large,,,7600014213,,Revenue Grant To Be Paid,DE4 3AG,0.8,Yes
Communities & Local Government,DCLG,11/11/2015,Work In Progress Pre-Cert 40373 Spend,Decentralisation and Local Growth,NGAGE SOLUTIONS LTD,,Medium,,,7600014206,,Revenue Grant To Be Paid,HP14 4BF,"42,040.02",Yes
Communities & Local Government,DCLG,11/11/2015,Work In Progress Pre-Cert 40373 Spend,Decentralisation and Local Growth,NORTH EAST FINANCE (HOLDCO),,,,,7600014211,,Revenue Grant To Be Paid,NE1 4AD,"137,135.30",Yes
Communities & Local Government,DCLG,11/11/2015,Work In Progress Pre-Cert 40373 Spend,Decentralisation and Local Growth,NORTHERN FILM & MEDIA,,Micro,,,7600014203,,Revenue Grant To Be Paid,NE8 3BA,"11,958.29",Yes
Communities & Local Government,DCLG,11/11/2015,Work In Progress Pre-Cert 40373 Spend,Decentralisation and Local Growth,RTC NORTH LTD,,,,,7600014201,,Revenue Grant To Be Paid,SR5 3HD,"90,893.29",Yes
Communities & Local Government,DCLG,11/11/2015,Work In Progress Pre-Cert 40373 Spend,Decentralisation and Local Growth,SOUTHAMPTON CITY COUNCIL,,Public Bodies,,,7600014207,,Revenue Grant To Be Paid,SO14 7LR,"7,114.80",Yes
Communities & Local Government,DCLG,11/11/2015,Work In Progress Pre-Cert 40373 Spend,Decentralisation and Local Growth,SOUTHAMPTON CITY COUNCIL,,Public Bodies,,,7600014210,,Revenue Grant To Be Paid,SO14 7LR,"4,662.04",Yes
Communities & Local Government,DCLG,11/11/2015,Work In Progress Pre-Cert 40373 Spend,Decentralisation and Local Growth,UNIVERSITY OF TEESIDE,,,,,7600014205,,Revenue Grant To Be Paid,TS1 3BA,"170,709.82",Yes
Communities & Local Government,DCLG,11/11/2015,Work In Progress Pre-Cert 40467 Spend,Decentralisation and Local Growth,CORNWALL COUNCIL,,,,,7600014199,,Capital Grant To Be Paid,TR1 3AY,"5,191.95",Yes
Communities & Local Government,DCLG,11/11/2015,Work In Progress Pre-Cert 40467 Spend,Decentralisation and Local Growth,CORNWALL COUNCIL,,,,,7600014200,,Capital Grant To Be Paid,TR1 3AY,"102,535.82",Yes
Communities & Local Government,DCLG,11/11/2015,Work In Progress Pre-Cert 40467 Spend,Decentralisation and Local Growth,CORNWALL COUNCIL,,,,,7600014202,,Capital Grant To Be Paid,TR1 3AY,"51,889.07",Yes
Communities & Local Government,DCLG,11/11/2015,Work In Progress Pre-Cert 40467 Spend,Decentralisation and Local Growth,DERBYSHIRE COUNTY COUNCIL,,Large,,,7600014213,,Capital Grant To Be Paid,DE4 3AG,"818,785.11",Yes
Communities & Local Government,DCLG,11/11/2015,Work In Progress Pre-Cert 40467 Spend,Decentralisation and Local Growth,NORTH TYNESIDE COUNCIL,,,,,7600014208,,Capital Grant To Be Paid,NE27 0BY,"999,176.61",Yes
Communities & Local Government,DCLG,11/11/2015,Work In Progress Pre-Cert 40467 Spend,Decentralisation and Local Growth,NOTTINGHAMSHIRE COUNTY COUNCIL,,Large,,,7600014212,,Capital Grant To Be Paid,NG2 7QP,"512,509.08",Yes
Communities & Local Government,DCLG,11/11/2015,Work In Progress Pre-Cert 40467 Spend,Decentralisation and Local Growth,RAVENSWORTH PROPERTY DEVELOPMENTS L,,Small,,,7600014209,,Capital Grant To Be Paid,DH1 2RS,"135,621.08",Yes
Communities & Local Government,DCLG,11/11/2015,Work In Progress Pre-Cert 40467 Spend,Decentralisation and Local Growth,SECOND AVENUE RESOURCE CENTRE LTD,,Small,,,7600014204,,Capital Grant To Be Paid,DN33 1NU,"99,166.06",Yes
Communities & Local Government,DCLG,12/11/2015,Agency Staff,"Strategy, Communications and Private Office",BROOK STREET UK LTD,,Large,,364940028,5106217012,Contingent Labour,Interim Correspondance staff,AL1 4JB,498.55,
Communities & Local Government,DCLG,12/11/2015,Courier Services,Finance & Corporate Services,SWISS POST SOLUTIONS,,Large,,,5106217011,Office Solutions,Offsite Mail Screening Screening Service,TW10 6TP,"11,952.00",
Communities & Local Government,DCLG,12/11/2015,Current (non AEF) Grants to Local Authorities,Localism,HER MAJESTYS COURTS SERVICE,,Public Bodies,,212437904,2100259124,,Community Right to bid - Appeals Cost,NP20 9FN,"43,615.00",Yes
Communities & Local Government,DCLG,12/11/2015,Current Grants to Non Profit Bodies,Neighbourhoods,NAT COMMUNITIES RESOURCE CENTRE,,Small,,,2100259123,,Regional Growth Fund 2015/16,CH2 4JP,"11,323.00",Yes
Communities & Local Government,DCLG,12/11/2015,Fixed Maintenance,Finance & Corporate Services,AMEY COMMUNITY LTD,,Large,,,5106217000,Property Occupation,2015-16 Lateral Variable Maintenance,OX4 4DQ,"17,730.07",
Communities & Local Government,DCLG,12/11/2015,IT - Service Contracts,Finance & Corporate Services,ARCUS GLOBAL LIMITED,,Medium,,,5106216940,IT Managed / Outsourced Services,FY15-16 DataMart HostingSer.Chgs.Jul-Mar,CB4 2HY,"-13,402.03",
Communities & Local Government,DCLG,12/11/2015,IT - Service Contracts,Finance & Corporate Services,ARCUS GLOBAL LIMITED,,Medium,,,5106216982,IT Managed / Outsourced Services,FY15-16 DataMart HostingSer.Chgs.Jul-Mar,CB4 2HY,"-12,834.90",
Communities & Local Government,DCLG,12/11/2015,IT - Service Contracts,Finance & Corporate Services,ARCUS GLOBAL LIMITED,,Medium,,,5106216983,IT Managed / Outsourced Services,MCIS/TESA Cloud Hosting Support 2015/16,CB4 2HY,"5,775.25",
Communities & Local Government,DCLG,12/11/2015,IT - Service Contracts,Finance & Corporate Services,ARCUS GLOBAL LIMITED,,Medium,,,5106216984,IT Managed / Outsourced Services,MCIS/TESA Cloud Hosting Support 2015/16,CB4 2HY,"6,539.20",
Communities & Local Government,DCLG,12/11/2015,IT - Service Contracts,Finance & Corporate Services,ARCUS GLOBAL LIMITED,,Medium,,,5106217008,IT Managed / Outsourced Services,FY15-16 DataMart HostingSer.Chgs.Jul-Mar,CB4 2HY,"6,540.83",
Communities & Local Government,DCLG,12/11/2015,IT - Service Contracts,Finance & Corporate Services,ARCUS GLOBAL LIMITED,,Medium,,,5106217009,IT Managed / Outsourced Services,FY15-16 DataMart HostingSer.Chgs.Jul-Mar,CB4 2HY,"10,603.49",
Communities & Local Government,DCLG,12/11/2015,IT - Service Contracts,Finance & Corporate Services,FUJITSU SERVICES LTD,,Large,,423375062,5106217010,IT Managed / Outsourced Services,FY 15/16 NR New Requirements,WA3 6GD,506.25,
Communities & Local Government,DCLG,12/11/2015,IT - Service Contracts,Finance & Corporate Services,INFO-ASSURE LTD,,Small,,,5106216996,Consultancy,Capped expenses for line 40,GU14 0LX,28.08,
Communities & Local Government,DCLG,12/11/2015,IT - Service Contracts,Localism,GROUNDWORK UK,Yes,,,739193758,5106216876,IT Managed / Outsourced Services,Lot 2 Grant Administration,B1 2RR,"13,556.40",
Communities & Local Government,DCLG,12/11/2015,IT Consultancy,Finance & Corporate Services,INFO-ASSURE LTD,,Small,,,5106216996,Consultancy,LOGASnet Data Mart Security Accreditatio,GU14 0LX,"4,587.00",
Communities & Local Government,DCLG,12/11/2015,Legal Fees,Neighbourhoods,FOOT ANSTEY SARGENT,,Medium,,213356657,5106217001,Legal,Legal Advice,PL1 2SW,360,
Communities & Local Government,DCLG,12/11/2015,Legal Fees,Neighbourhoods,FOOT ANSTEY SARGENT,,Medium,,213356657,5106217001,Legal,Legal Advice,PL1 2SW,390,
Communities & Local Government,DCLG,12/11/2015,Professional services,Finance & Corporate Services,GVA GRIMLEY LTD,,Large,,210158990,5106216997,Business Support,Com 006 Snr Surveyor Resource (JL),B1 2JB,"3,600.00",
Communities & Local Government,DCLG,12/11/2015,Professional services,Finance & Corporate Services,GVA GRIMLEY LTD,,Large,,210158990,5106217006,Business Support,Com 007 Snr Surveyor Resource (SD),B1 2JB,"6,600.00",
Communities & Local Government,DCLG,12/11/2015,Professional services,Neighbourhoods,BUILDING RESEARCH ESTABLISHMENT,,Large,,896495033,5106217005,Technical Services,Additional Ad-Hoc Work,WD25 9XX,"5,491.20",
Communities & Local Government,DCLG,12/11/2015,Professional services,Neighbourhoods,BUILDING RESEARCH ESTABLISHMENT,,Large,,896495033,5106217005,Technical Services,Briefing for Meetings of Standing Committee for Construction,WD25 9XX,"4,184.40",
Communities & Local Government,DCLG,12/11/2015,Professional services,Neighbourhoods,BUILDING RESEARCH ESTABLISHMENT,,Large,,896495033,5106217005,Technical Services,Checking 98/34 Notification - Core Tasks,WD25 9XX,"1,550.40",
Communities & Local Government,DCLG,12/11/2015,Professional services,Neighbourhoods,BUILDING RESEARCH ESTABLISHMENT,,Large,,896495033,5106217005,Technical Services,Contract Management,WD25 9XX,747.6,
Communities & Local Government,DCLG,12/11/2015,Professional services,Neighbourhoods,BUILDING RESEARCH ESTABLISHMENT,,Large,,896495033,5106217005,Technical Services,Post Meeting Support for Standing Committee for Construction,WD25 9XX,"2,185.20",
Communities & Local Government,DCLG,12/11/2015,Professional services,Neighbourhoods,BUILDING RESEARCH ESTABLISHMENT,,Large,,896495033,5106217005,Technical Services,Support in Meetings of Standing Committee for Construction,WD25 9XX,"3,150.00",
Communities & Local Government,DCLG,12/11/2015,Professional services,Neighbourhoods,BUILDING RESEARCH ESTABLISHMENT,,Large,,896495033,5106217005,Technical Services,Official Travel and Subsistence,WD25 9XX,789.1,
Communities & Local Government,DCLG,12/11/2015,Research,Localism,UNIVERSITY OF YORK,,Large,,213292944,5106215176,Research,Research� - Directly Commissioning of House building,YO10 5DG,"43,420.00",
Communities & Local Government,DCLG,12/11/2015,Software Licences,Finance & Corporate Services,SPECIALIST COMPUTER CENTRES PLC,,Large,,227720521,5106217003,Software,McAfee Endpoint Protect. Adv1YrGL(p+),B11 2LE,277.86,
Communities & Local Government,DCLG,12/11/2015,Steady State Service Provision,Decentralisation and Local Growth,BIG LOTTERY FUND,,Public Bodies,,648124972,5106217002,Business Process Outsourcing Services,Coastal Communities Fund,B15 1TR,"200,372.00",
Communities & Local Government,DCLG,12/11/2015,Training,Finance & Corporate Services,*OCEAN MEDIA GROUP LTD,,Medium,,213581205,5106217013,Development and Training,Social Housing Annual Conference (NA),CV1 2EW,470,
Communities & Local Government,DCLG,12/11/2015,Training,Finance & Corporate Services,*OCEAN MEDIA GROUP LTD,,Medium,,213581205,5106217013,Development and Training,Social Housing Annual Conference (RS),CV1 2EW,470,
Communities & Local Government,DCLG,12/11/2015,Vehicle Maintenance,Localism,BABCOCK CRITICAL SERVICES LTD,,Large,,215597451,5106217014,Fleet Management,"Mobile Airtime (EE, formally Orange)",NG15 0DR,744.47,
Communities & Local Government,DCLG,12/11/2015,Water,Finance & Corporate Services,SEVERN TRENT WATER LTD,,Large,,234404465,5106217004,Operation of Water Supplies and Distribution,2015/16 St Philips B ham Annual Water,CV3 9FJ,684.85,
Communities & Local Government,DCLG,12/11/2015,Work In Progress Pre-Cert 40373 Spend,Decentralisation and Local Growth,CORNWALL COLLEGE,,,,,7600014225,,Revenue Grant Clawback Offset,TR15 3RD,"-1,011.94",Yes
Communities & Local Government,DCLG,12/11/2015,Work In Progress Pre-Cert 40373 Spend,Decentralisation and Local Growth,CORNWALL COLLEGE,,,,,7600014225,,Revenue Grant To Be Paid,TR15 3RD,"71,174.85",Yes
Communities & Local Government,DCLG,12/11/2015,Work In Progress Pre-Cert 40373 Spend,Decentralisation and Local Growth,EAST RIDING COLLEGE,,Large,,,7600014214,,Revenue Grant To Be Paid,HU17 7DT,"2,424.52",Yes
Communities & Local Government,DCLG,12/11/2015,Work In Progress Pre-Cert 40373 Spend,Decentralisation and Local Growth,EAST RIDING COLLEGE,,Large,,,7600014215,,Revenue Grant To Be Paid,HU17 7DT,"2,158.58",Yes
Communities & Local Government,DCLG,12/11/2015,Work In Progress Pre-Cert 40373 Spend,Decentralisation and Local Growth,SERCO REGIONAL SERVICES LTD,,,,,7600014217,,Revenue Grant To Be Paid,PL6 8LU,"101,162.53",Yes
Communities & Local Government,DCLG,12/11/2015,Work In Progress Pre-Cert 40467 Spend,Decentralisation and Local Growth,EAST RIDING COLLEGE,,Large,,,7600014214,,Capital Grant Clawback Offset,HU17 7DT,"-34,576.09",Yes
Communities & Local Government,DCLG,12/11/2015,Work In Progress Pre-Cert 40467 Spend,Decentralisation and Local Growth,EAST RIDING COLLEGE,,Large,,,7600014214,,Capital Grant To Be Paid,HU17 7DT,"81,659.00",Yes
Communities & Local Government,DCLG,12/11/2015,Work In Progress Pre-Cert 40467 Spend,Decentralisation and Local Growth,EAST RIDING COLLEGE,,Large,,,7600014215,,Capital Grant Clawback Offset,HU17 7DT,"-16,122.74",Yes
Communities & Local Government,DCLG,12/11/2015,Work In Progress Pre-Cert 40467 Spend,Decentralisation and Local Growth,EAST RIDING COLLEGE,,Large,,,7600014215,,Capital Grant To Be Paid,HU17 7DT,"64,711.38",Yes
Communities & Local Government,DCLG,12/11/2015,Work In Progress Pre-Cert 40467 Spend,Decentralisation and Local Growth,HENRY BOOT DEVELOPMENTS LIMITED,,Large,,,7600014216,,Capital Grant To Be Paid,S11 9PD,"262,076.68",Yes
Communities & Local Government,DCLG,12/11/2015,Work In Progress Pre-Cert 40467 Spend,Decentralisation and Local Growth,SERCO REGIONAL SERVICES LTD,,,,,7600014217,,Capital Grant To Be Paid,PL6 8LU,"10,936.24",Yes
Communities & Local Government,DCLG,12/11/2015,Work In Progress Pre-Cert 40467 Spend,Decentralisation and Local Growth,WYKELAND PROPERTIES LTD,,,,,7600014222,,Capital Grant Clawback Offset,HU1 1UU,"-28,022.67",Yes
Communities & Local Government,DCLG,12/11/2015,Work In Progress Pre-Cert 40467 Spend,Decentralisation and Local Growth,WYKELAND PROPERTIES LTD,,,,,7600014222,,Capital Grant To Be Paid,HU1 1UU,"124,253.07",Yes
Communities & Local Government,DCLG,12/11/2015,Work In Progress Pre-Cert 40467 Spend,Decentralisation and Local Growth,WYKELAND PROPERTIES LTD,,,,,7600014226,,Capital Grant To Be Paid,HU1 1UU,"128,417.75",Yes
Communities & Local Government,DCLG,12/11/2015,Work In Progress Pre-Cert 40467 Spend,Decentralisation and Local Growth,WYKELAND PROPERTIES LTD,,,,,7600014227,,Capital Grant Clawback Offset,HU1 1UU,"-50,319.27",Yes
Communities & Local Government,DCLG,12/11/2015,Work In Progress Pre-Cert 40467 Spend,Decentralisation and Local Growth,WYKELAND PROPERTIES LTD,,,,,7600014227,,Capital Grant To Be Paid,HU1 1UU,"156,558.63",Yes
Communities & Local Government,DCLG,13/11/2015,Agency Staff,Decentralisation and Local Growth,CAPITA BUS. SERV. LTD (CON LAB),,Large,,,5106217015,Contingent Labour,Interim Manager,DL1 9HB,"3,115.64",
Communities & Local Government,DCLG,13/11/2015,Agency Staff,Decentralisation and Local Growth,CAPITA BUS. SERV. LTD (CON LAB),,Large,,,5106217020,Contingent Labour,Interim Manager,DL1 9HB,"2,266.14",
Communities & Local Government,DCLG,13/11/2015,Agency Staff,Decentralisation and Local Growth,CAPITA BUS. SERV. LTD (CON LAB),,Large,,,5106217021,Contingent Labour,Official Travel and Subsistence,DL1 9HB,444.38,
Communities & Local Government,DCLG,13/11/2015,Agency Staff,Decentralisation and Local Growth,CAPITA BUS. SERV. LTD (CON LAB),,Large,,,5106217021,Contingent Labour,Interim Manager,DL1 9HB,"3,006.82",
Communities & Local Government,DCLG,13/11/2015,Agency Staff,Decentralisation and Local Growth,CAPITA BUS. SERV. LTD (CON LAB),,Large,,,5106217022,Contingent Labour,Official Travel and Subsistence,DL1 9HB,971.52,
Communities & Local Government,DCLG,13/11/2015,Agency Staff,Decentralisation and Local Growth,CAPITA BUS. SERV. LTD (CON LAB),,Large,,,5106217022,Contingent Labour,Interim Manager,DL1 9HB,"4,980.04",
Communities & Local Government,DCLG,13/11/2015,Agency Staff,Decentralisation and Local Growth,CAPITA BUS. SERV. LTD (CON LAB),,Large,,,5106217023,Contingent Labour,Official Travel and Subsistence,DL1 9HB,113.32,
Communities & Local Government,DCLG,13/11/2015,Agency Staff,Decentralisation and Local Growth,CAPITA BUS. SERV. LTD (CON LAB),,Large,,,5106217023,Contingent Labour,Interim Manager,DL1 9HB,"1,780.36",
Communities & Local Government,DCLG,13/11/2015,Agency Staff,Decentralisation and Local Growth,CAPITA BUS. SERV. LTD (CON LAB),,Large,,,5106217026,Contingent Labour,Interim Manager,DL1 9HB,"2,225.46",
Communities & Local Government,DCLG,13/11/2015,Agency Staff,Decentralisation and Local Growth,CAPITA BUS. SERV. LTD (CON LAB),,Large,,,5106217027,Contingent Labour,Interim Manager,DL1 9HB,"1,218.38",
Communities & Local Government,DCLG,13/11/2015,Agency Staff,Decentralisation and Local Growth,CAPITA BUS. SERV. LTD (CON LAB),,Large,,,5106217028,Contingent Labour,Interim Manager,DL1 9HB,"1,626.54",
Communities & Local Government,DCLG,13/11/2015,Agency Staff,Decentralisation and Local Growth,CAPITA BUS. SERV. LTD (CON LAB),,Large,,,5106217031,Contingent Labour,Interim Manager,DL1 9HB,"1,951.92",
Communities & Local Government,DCLG,13/11/2015,Agency Staff,Decentralisation and Local Growth,CAPITA BUS. SERV. LTD (CON LAB),,Large,,,5106217035,Contingent Labour,Interim Manager,DL1 9HB,"1,370.69",
Communities & Local Government,DCLG,13/11/2015,Agency Staff,Finance & Corporate Services,CAPITA BUS. SERV. LTD (CON LAB),,Large,,,5106217017,Contingent Labour,Interim Manager,DL1 9HB,"3,115.26",
Communities & Local Government,DCLG,13/11/2015,Agency Staff,Finance & Corporate Services,CAPITA BUS. SERV. LTD (CON LAB),,Large,,,5106217024,Contingent Labour,Interim Manager,DL1 9HB,"5,890.84",
Communities & Local Government,DCLG,13/11/2015,Agency Staff,Finance & Corporate Services,CAPITA BUS. SERV. LTD (CON LAB),,Large,,,5106217029,Contingent Labour,Interim Manager,DL1 9HB,"9,064.56",
Communities & Local Government,DCLG,13/11/2015,Agency Staff,Finance & Corporate Services,CAPITA BUS. SERV. LTD (CON LAB),,Large,,,5106217034,Contingent Labour,Interim Manager,DL1 9HB,"6,009.72",
Communities & Local Government,DCLG,13/11/2015,Agency Staff,Localism,CAPITA BUS. SERV. LTD (CON LAB),,Large,,,5106217030,Contingent Labour,Interim Manager,DL1 9HB,"4,799.88",
Communities & Local Government,DCLG,13/11/2015,Agency Staff,Neighbourhoods,CAPITA BUS. SERV. LTD (CON LAB),,Large,,,5106217025,Contingent Labour,Interim Manager,DL1 9HB,"9,273.31",
Communities & Local Government,DCLG,13/11/2015,Current Grants to Non Profit Bodies,Localism,MITZVAH DAY UK,Yes,Micro,,736902557,2100259138,,Mitvah Day 365,NW6 1SD,"20,000.00",Yes
Communities & Local Government,DCLG,13/11/2015,Domestic Services,Finance & Corporate Services,AMEY COMMUNITY LTD,,Large,,,5106217043,Building Operation,2015-16 Lateral Additional Cleaning EA,OX4 4DQ,"1,202.84",
Communities & Local Government,DCLG,13/11/2015,Domestic Services,Finance & Corporate Services,AMEY COMMUNITY LTD,,Large,,,5106217043,Building Operation,2015-16 Lateral Cleaning,OX4 4DQ,"4,552.59",
Communities & Local Government,DCLG,13/11/2015,Electricity,Finance & Corporate Services,BRITISH GAS BUSINESS,,,,,5106217037,Energy,Hempstead House Electricity 2014/15,GU95 1AW,"4,473.59",
Communities & Local Government,DCLG,13/11/2015,Electricity,Finance & Corporate Services,BRITISH GAS BUSINESS,,,,,5106217046,Energy,Hempstead House Electricity 2014/15,GU95 1AW,"27,910.63",
Communities & Local Government,DCLG,13/11/2015,Electricity,Finance & Corporate Services,BRITISH GAS BUSINESS,,,,,5106217048,Energy,Hempstead House Electricity 2014/15,GU95 1AW,"2,714.05",
Communities & Local Government,DCLG,13/11/2015,Electricity,Finance & Corporate Services,BRITISH GAS BUSINESS,,,,,5106217049,Energy,Hempstead House Electricity 2014/15,GU95 1AW,"10,218.90",
Communities & Local Government,DCLG,13/11/2015,Facilities Management (ISD use only),Finance & Corporate Services,AMEY COMMUNITY LTD,,Large,,,5106217043,Property Occupation,2015-16 Lateral Estate Service,OX4 4DQ,"1,867.44",
Communities & Local Government,DCLG,13/11/2015,Facilities Management (ISD use only),Finance & Corporate Services,AMEY COMMUNITY LTD,,Large,,,5106217043,Property Occupation,2015-16 Lateral General Requirements,OX4 4DQ,"3,969.80",
Communities & Local Government,DCLG,13/11/2015,Facilities Management (ISD use only),Finance & Corporate Services,AMEY COMMUNITY LTD,,Large,,,5106217043,Property Occupation,2015-16 Lateral Helpdesk Service,OX4 4DQ,368.59,
Communities & Local Government,DCLG,13/11/2015,Facilities Management (ISD use only),Finance & Corporate Services,AMEY COMMUNITY LTD,,Large,,,5106217043,Property Occupation,2015-16 Lateral Porterage,OX4 4DQ,18.33,
Communities & Local Government,DCLG,13/11/2015,Facilities Management (ISD use only),Finance & Corporate Services,AMEY COMMUNITY LTD,,Large,,,5106217043,Property Occupation,2015-16 Lateral X-Ray Services,OX4 4DQ,51.11,
Communities & Local Government,DCLG,13/11/2015,Fixed Maintenance,Finance & Corporate Services,AMEY COMMUNITY LTD,,Large,,,5106217043,Business Support,2015-16 Lateral Grounds & Gardens,OX4 4DQ,169.08,
Communities & Local Government,DCLG,13/11/2015,IT - Service Contracts,Finance & Corporate Services,DAISY CORPORATE SERVICES LTD,,Large,,221481042,5106217054,IT Managed / Outsourced Services,PAMU Office Moves Project Q4 14/15,BB9 5SR,"1,025.60",
Communities & Local Government,DCLG,13/11/2015,Online Database Information Retrieval,Finance & Corporate Services,DOW JONES REUTERS BUS INTERACT,,Large,,221036630,5106217038,ICT Services,Factiva DJX 2015-16,E1W 1AZ,976.5,
Communities & Local Government,DCLG,13/11/2015,Physical Storage,Finance & Corporate Services,TNT UK LIMITED,,Large,,,5106217055,Warehousing and Storage,Offsite Records Storage FYR 15/16,BL10 9GR,"3,982.01",
Communities & Local Government,DCLG,13/11/2015,Physical Storage,Finance & Corporate Services,TNT UK LIMITED,,Large,,,5106217058,Warehousing and Storage,Offsite Records Storage FYR 15/16,BL10 9GR,"1,577.32",
Communities & Local Government,DCLG,13/11/2015,Physical Storage,Finance & Corporate Services,TNT UK LIMITED,,Large,,,5106217059,Warehousing and Storage,Offsite Records Storage FYR 15/16,BL10 9GR,876.93,
Communities & Local Government,DCLG,13/11/2015,Professional services,Finance & Corporate Services,OXFORD ARCHITECTS LLP,,Small,,,5106217019,Construction Service Providers,VOA Meeting Rm Stage A Design & Tender,BS10 5EN,"3,693.00",
Communities & Local Government,DCLG,13/11/2015,Professional services,Localism,LOCALITY,,Medium,,347998312,5106217036,Financial,Peer to Peer website,N1 6DR,"5,400.00",
Communities & Local Government,DCLG,13/11/2015,Recruitment,Finance & Corporate Services,DISCLOSURE SCOTLAND,,Micro,,210312811,5106217044,Business Process Outsourcing Services,Security Checks 15/16,G51 1YU,425,
Communities & Local Government,DCLG,13/11/2015,Recruitment,Finance & Corporate Services,HM REVENUE & CUSTOMS,,Public Bodies,,365117972,5106217051,Business Process Outsourcing Services,CS E-Recruitment (until 2018.19),BN12 4XH,"5,510.33",
Communities & Local Government,DCLG,13/11/2015,Recruitment,Finance & Corporate Services,HM REVENUE & CUSTOMS,,Public Bodies,,365117972,5106217051,Business Process Outsourcing Services,Cs Recruitment e Recruitment & Jobs Port,BN12 4XH,"1,132.15",
Communities & Local Government,DCLG,13/11/2015,Security,Finance & Corporate Services,AMEY COMMUNITY LTD,,Large,,,5106217043,Security,2015-16 Lateral Reception,OX4 4DQ,846.7,
Communities & Local Government,DCLG,13/11/2015,Security,Finance & Corporate Services,AMEY COMMUNITY LTD,,Large,,,5106217043,Security,2015-16 Lateral Waste Management,OX4 4DQ,"1,059.21",
Communities & Local Government,DCLG,13/11/2015,Telecoms equipment (non-capitalised),Finance & Corporate Services,DAISY CORPORATE SERVICES LTD,,Large,,221481042,5106217060,IT Managed / Outsourced Services,9 month extension to 31/3/2016,BB9 5SR,"108,172.93",
Communities & Local Government,DCLG,13/11/2015,Waste Disposal and pest control,Finance & Corporate Services,AMEY COMMUNITY LTD,,Large,,,5106217043,Environmental Services,2015-16 Lateral Pest Control,OX4 4DQ,42.76,
Communities & Local Government,DCLG,13/11/2015,Work In Progress Pre-Cert 40373 Spend,Decentralisation and Local Growth,COMMUNITY FOUNDATION FOR LEEDS,Yes,Micro,,,7600014229,,Revenue Grant To Be Paid,LS1 2TE,"7,042.82",Yes
Communities & Local Government,DCLG,13/11/2015,Work In Progress Pre-Cert 40373 Spend,Decentralisation and Local Growth,COMMUNITY FOUNDATION FOR LEEDS,Yes,Micro,,,7600014230,,Revenue Grant To Be Paid,LS1 2TE,548.01,Yes
Communities & Local Government,DCLG,13/11/2015,Work In Progress Pre-Cert 40373 Spend,Decentralisation and Local Growth,COMMUNITY FOUNDATION FOR LEEDS,Yes,Micro,,,7600014233,,Revenue Grant To Be Paid,LS1 2TE,"37,104.14",Yes
Communities & Local Government,DCLG,13/11/2015,Work In Progress Pre-Cert 40373 Spend,Decentralisation and Local Growth,COMMUNITY FOUNDATION FOR LEEDS,Yes,Micro,,,7600014235,,Revenue Grant To Be Paid,LS1 2TE,"1,301.50",Yes
Communities & Local Government,DCLG,13/11/2015,Work In Progress Pre-Cert 40373 Spend,Decentralisation and Local Growth,COMMUNITY FOUNDATION FOR LEEDS,Yes,Micro,,,7600014236,,Revenue Grant To Be Paid,LS1 2TE,"20,574.30",Yes
Communities & Local Government,DCLG,13/11/2015,Work In Progress Pre-Cert 40373 Spend,Decentralisation and Local Growth,COVENTRY CITY COUNCIL,,Large,,,7600014234,,Revenue Grant To Be Paid,CV1 5RR,"38,254.07",Yes
Communities & Local Government,DCLG,13/11/2015,Work In Progress Pre-Cert 40467 Spend,Decentralisation and Local Growth,CALDERDALE METROPOLITAN BOROUGH COU,,Large,,,7600014228,,Capital Grant To Be Paid,HX1 1UN,"107,759.30",Yes
Communities & Local Government,DCLG,13/11/2015,Work In Progress Pre-Cert 40467 Spend,Decentralisation and Local Growth,CALDERDALE METROPOLITAN BOROUGH COU,,Large,,,7600014231,,Capital Grant To Be Paid,HX1 1UN,"255,387.14",Yes
Communities & Local Government,DCLG,13/11/2015,Work In Progress Pre-Cert 40467 Spend,Decentralisation and Local Growth,COVENTRY CITY COUNCIL,,Large,,,7600014234,,Capital Grant To Be Paid,CV1 5RR,"715,547.13",Yes
Communities & Local Government,DCLG,13/11/2015,Work In Progress Pre-Cert 40467 Spend,Decentralisation and Local Growth,SHEFFIELD  CC,,,,,7600014232,,Capital Grant To Be Paid,S1 2SH,"298,221.28",Yes
Communities & Local Government,DCLG,16/11/2015,Advertising,"Strategy, Communications and Private Office",CARAT LTD,,Large,,211589882,5106217064,Advertising,RTB Featurelink Advertising,NW1 3BF,"24,360.00",
Communities & Local Government,DCLG,16/11/2015,Advertising,"Strategy, Communications and Private Office",CARAT SCOTLAND,,Large,,519820302,5106216976,Advertising,Media Planning,EH1 3HU,"4,170.11",
Communities & Local Government,DCLG,16/11/2015,Agency Staff,Finance & Corporate Services,BROOK STREET UK LTD,,Large,,364940028,5106217066,Contingent Labour,Interim Admin support,AL1 4JB,575.4,
Communities & Local Government,DCLG,16/11/2015,Agency Staff,Finance & Corporate Services,BROOK STREET UK LTD,,Large,,364940028,5106217075,Contingent Labour,Interim Admin support,AL1 4JB,380.52,
Communities & Local Government,DCLG,16/11/2015,Agency Staff,Finance & Corporate Services,BROOK STREET UK LTD,,Large,,364940028,5106217077,Contingent Labour,Interim Admin support,AL1 4JB,580.44,
Communities & Local Government,DCLG,16/11/2015,Agency Staff,Finance & Corporate Services,BROOK STREET UK LTD,,Large,,364940028,5106217087,Contingent Labour,Support worker for staff interim measure,AL1 4JB,425.47,
Communities & Local Government,DCLG,16/11/2015,Agency Staff,Finance & Corporate Services,BROOK STREET UK LTD,,Large,,364940028,5106217092,Contingent Labour,Interim Admin support Rate Increase,AL1 4JB,580.44,
Communities & Local Government,DCLG,16/11/2015,Agency Staff,Localism,CAPITA BUS. SERV. LTD (CON LAB),,Large,,,5106217091,Contingent Labour,Interim Manager,DL1 9HB,"1,919.84",
Communities & Local Government,DCLG,16/11/2015,Agency Staff,Neighbourhoods,BROOK STREET UK LTD,,Large,,364940028,5106217067,Contingent Labour,Initial 9 Months Interim Admin Support,AL1 4JB,855.79,
Communities & Local Government,DCLG,16/11/2015,Cap Grants to Private Sector Companies,Decentralisation and Local Growth,DAVID BROWN WIND UK LTD,,,,,2100259118,,RGF 2015/16,HD4 5DD,"19,604.00",Yes
Communities & Local Government,DCLG,16/11/2015,Cap Grants to Private Sector Companies,Decentralisation and Local Growth,E2V TECHNOLOGIES (UK) LTD,,Large,,217053131,2100259119,,RGF 2015/16,CM1 2QU,"45,435.00",Yes
Communities & Local Government,DCLG,16/11/2015,Cap Grants to Private Sector Companies,Decentralisation and Local Growth,JAGUAR LAND ROVER,,,,,2100259122,,RGF 2015/16,CV35 0RR,"6,359,250.00",Yes
Communities & Local Government,DCLG,16/11/2015,Capital Grant to LA Replace Loan Nonbud,Decentralisation and Local Growth,KENT COUNTY COUNCIL,,Public Bodies,,210298405,2100259125,,RGF 2015/16,ME14 1RF,"473,462.87",Yes
Communities & Local Government,DCLG,16/11/2015,Capital Grant to LA Replace Loan Nonbud,Decentralisation and Local Growth,LEICESTER CITY COUNCIL,,Public Bodies,,228219960,2100259121,,RGF 2015/16,LE1 6ZG,"49,123.25",Yes
Communities & Local Government,DCLG,16/11/2015,Capital Grant to LA Replace Loan Nonbud,Decentralisation and Local Growth,SUNDERLAND CITY COUNCIL,,,,215599312,2100259120,,RGF 2015/16,SR2 7DN,"516,129.00",Yes
Communities & Local Government,DCLG,16/11/2015,Conferences and Meeting Facilities,Localism,M U ENTERPRISES LTD,,Small,,569582521,5106217089,Business Travel Accommodation,Partner Engagement Event - External Room,SW1P 3RB,300,
Communities & Local Government,DCLG,16/11/2015,Current (non AEF) Grants to Local Authorities,Localism,ADUR DC,,,,227472891,5000312584,,Council Tax Freeze,BN11 1HA,"6,323.00",Yes
Communities & Local Government,DCLG,16/11/2015,Current (non AEF) Grants to Local Authorities,Localism,ADUR DC,,,,227472891,5000313360,,Business Rates 2% Inflation Cap,BN11 1HA,"2,193.00",Yes
Communities & Local Government,DCLG,16/11/2015,Current (non AEF) Grants to Local Authorities,Localism,ADUR DC,,,,227472891,5000313363,,Doubling of Small Business Rates Relief,BN11 1HA,"21,291.00",Yes
Communities & Local Government,DCLG,16/11/2015,Current (non AEF) Grants to Local Authorities,Localism,ADUR DC,,,,227472891,5000313366,,Retail Relief,BN11 1HA,"9,308.00",Yes
Communities & Local Government,DCLG,16/11/2015,Current (non AEF) Grants to Local Authorities,Localism,ALLERDALE BOROUGH COUNCIL,,,,218146780,5000313369,,Doubling of Small Business Rates Relief,CA14 3YJ,"55,769.00",Yes
Communities & Local Government,DCLG,16/11/2015,Current (non AEF) Grants to Local Authorities,Localism,ALLERDALE BOROUGH COUNCIL,,,,218146780,5000313372,,Reoccupation Relief,CA14 3YJ,887,Yes
Communities & Local Government,DCLG,16/11/2015,Current (non AEF) Grants to Local Authorities,Localism,ALLERDALE BOROUGH COUNCIL,,,,218146780,5000313375,,Retail Relief,CA14 3YJ,"23,541.00",Yes
Communities & Local Government,DCLG,16/11/2015,Current (non AEF) Grants to Local Authorities,Localism,ALLERDALE BOROUGH COUNCIL,,,,218146780,5000313378,,Small Business Rates Relief on Second Properties,CA14 3YJ,338,Yes
Communities & Local Government,DCLG,16/11/2015,Current (non AEF) Grants to Local Authorities,Localism,ALLERDALE BOROUGH COUNCIL,,,,218146780,5000313381,,Business Rates 2% Inflation Cap,CA14 3YJ,"4,942.00",Yes
Communities & Local Government,DCLG,16/11/2015,Current (non AEF) Grants to Local Authorities,Localism,AMBER VALLEY BC,,,,,5000312585,,Council Tax Freeze,DE5 3BT,"6,405.00",Yes
Communities & Local Government,DCLG,16/11/2015,Current (non AEF) Grants to Local Authorities,Localism,AMBER VALLEY BC,,,,,5000313384,,Retail Relief,DE5 3BT,"23,503.00",Yes
Communities & Local Government,DCLG,16/11/2015,Current (non AEF) Grants to Local Authorities,Localism,AMBER VALLEY BC,,,,,5000313387,,Reoccupation Relief,DE5 3BT,406,Yes
Communities & Local Government,DCLG,16/11/2015,Current (non AEF) Grants to Local Authorities,Localism,AMBER VALLEY BC,,,,,5000313390,,Small Business Rates Relief on Second Properties,DE5 3BT,338,Yes
Communities & Local Government,DCLG,16/11/2015,Current (non AEF) Grants to Local Authorities,Localism,AMBER VALLEY BC,,,,,5000313393,,Business Rates 2% Inflation Cap,DE5 3BT,"3,421.00",Yes
Communities & Local Government,DCLG,16/11/2015,Current (non AEF) Grants to Local Authorities,Localism,AMBER VALLEY BC,,,,,5000313396,,Doubling of Small Business Rates Relief,DE5 3BT,"44,313.00",Yes
Communities & Local Government,DCLG,16/11/2015,Current (non AEF) Grants to Local Authorities,Localism,ARUN DC,,,,211217668,5000312478,,Council Tax Freeze,BN17 5LF,"10,351.00",Yes
Communities & Local Government,DCLG,16/11/2015,Current (non AEF) Grants to Local Authorities,Localism,ARUN DC,,,,211217668,5000314073,,Small Business Rates Relief on Second Properties,BN17 5LF,341,Yes
Communities & Local Government,DCLG,16/11/2015,Current (non AEF) Grants to Local Authorities,Localism,ARUN DC,,,,211217668,5000314074,,Retail Relief,BN17 5LF,"35,878.00",Yes
Communities & Local Government,DCLG,16/11/2015,Current (non AEF) Grants to Local Authorities,Localism,ARUN DC,,,,211217668,5000314075,,Business Rates 2% Inflation Cap,BN17 5LF,"5,864.00",Yes
Communities & Local Government,DCLG,16/11/2015,Current (non AEF) Grants to Local Authorities,Localism,ARUN DC,,,,211217668,5000314076,,Doubling of Small Business Rates Relief,BN17 5LF,"54,203.00",Yes
Communities & Local Government,DCLG,16/11/2015,Current (non AEF) Grants to Local Authorities,Localism,ARUN DC,,,,211217668,5000314078,,Reoccupation Relief,BN17 5LF,271,Yes
Communities & Local Government,DCLG,16/11/2015,Current (non AEF) Grants to Local Authorities,Localism,ASHFIELD DC,,,,235415296,5000312586,,Council Tax Freeze,NG17 8DA,"6,386.00",Yes
Communities & Local Government,DCLG,16/11/2015,Current (non AEF) Grants to Local Authorities,Localism,ASHFIELD DC,,,,235415296,5000313399,,Business Rates 2% Inflation Cap,NG17 8DA,"5,443.00",Yes
Communities & Local Government,DCLG,16/11/2015,Current (non AEF) Grants to Local Authorities,Localism,ASHFIELD DC,,,,235415296,5000313402,,Empty New Build Relief,NG17 8DA,"1,183.00",Yes
Communities & Local Government,DCLG,16/11/2015,Current (non AEF) Grants to Local Authorities,Localism,ASHFIELD DC,,,,235415296,5000313406,,Reoccupation Relief,NG17 8DA,508,Yes
Communities & Local Government,DCLG,16/11/2015,Current (non AEF) Grants to Local Authorities,Localism,ASHFIELD DC,,,,235415296,5000313410,,Retail Relief,NG17 8DA,"6,764.00",Yes
Communities & Local Government,DCLG,16/11/2015,Current (non AEF) Grants to Local Authorities,Localism,ASHFIELD DC,,,,235415296,5000313416,,Doubling of Small Business Rates Relief,NG17 8DA,"30,982.00",Yes
Communities & Local Government,DCLG,16/11/2015,Current (non AEF) Grants to Local Authorities,Localism,ASHFORD BC,,,,229467071,5000312479,,Council Tax Freeze,TN23 1PL,"6,882.00",Yes
Communities & Local Government,DCLG,16/11/2015,Current (non AEF) Grants to Local Authorities,Localism,ASHFORD BC,,,,229467071,5000314079,,Business Rates 2% Inflation Cap,TN23 1PL,"3,787.00",Yes
Communities & Local Government,DCLG,16/11/2015,Current (non AEF) Grants to Local Authorities,Localism,ASHFORD BC,,,,229467071,5000314080,,Doubling of Small Business Rates Relief,TN23 1PL,"42,519.00",Yes
Communities & Local Government,DCLG,16/11/2015,Current (non AEF) Grants to Local Authorities,Localism,ASHFORD BC,,,,229467071,5000314081,,Reoccupation Relief,TN23 1PL,846,Yes
Communities & Local Government,DCLG,16/11/2015,Current (non AEF) Grants to Local Authorities,Localism,ASHFORD BC,,,,229467071,5000314082,,Small Business Rates Relief on Second Properties,TN23 1PL,299,Yes
Communities & Local Government,DCLG,16/11/2015,Current (non AEF) Grants to Local Authorities,Localism,ASHFORD BC,,,,229467071,5000314084,,Retail Relief,TN23 1PL,"26,378.00",Yes
Communities & Local Government,DCLG,16/11/2015,Current (non AEF) Grants to Local Authorities,Localism,AVON FIRE AUTHORITY,,Large,,424872570,5000314007,,Doubling of Small Business Rates Relief,BS1 6EU,"7,157.00",Yes
Communities & Local Government,DCLG,16/11/2015,Current (non AEF) Grants to Local Authorities,Localism,AVON FIRE AUTHORITY,,Large,,424872570,5000314010,,Business Rates 2% Inflation Cap,BS1 6EU,"12,052.00",Yes
Communities & Local Government,DCLG,16/11/2015,Current (non AEF) Grants to Local Authorities,Localism,AVON FIRE AUTHORITY,,Large,,424872570,5000314016,,Reoccupation Relief,BS1 6EU,"1,116.00",Yes
Communities & Local Government,DCLG,16/11/2015,Current (non AEF) Grants to Local Authorities,Localism,AVON FIRE AUTHORITY,,Large,,424872570,5000314018,,Retail Relief,BS1 6EU,"2,793.00",Yes
Communities & Local Government,DCLG,16/11/2015,Current (non AEF) Grants to Local Authorities,Localism,AYLESBURY VALE DC(HSG),,,,396710709,5000312480,,Council Tax Freeze,HP19 8FF,"10,627.00",Yes
Communities & Local Government,DCLG,16/11/2015,Current (non AEF) Grants to Local Authorities,Localism,AYLESBURY VALE DC(HSG),,,,396710709,5000314085,,Empty New Build Relief,HP19 8FF,"2,816.00",Yes
Communities & Local Government,DCLG,16/11/2015,Current (non AEF) Grants to Local Authorities,Localism,AYLESBURY VALE DC(HSG),,,,396710709,5000314086,,Retail Relief,HP19 8FF,"27,766.00",Yes
Communities & Local Government,DCLG,16/11/2015,Current (non AEF) Grants to Local Authorities,Localism,AYLESBURY VALE DC(HSG),,,,396710709,5000314088,,Business Rates 2% Inflation Cap,HP19 8FF,"4,651.00",Yes
Communities & Local Government,DCLG,16/11/2015,Current (non AEF) Grants to Local Authorities,Localism,AYLESBURY VALE DC(HSG),,,,396710709,5000314089,,Doubling of Small Business Rates Relief,HP19 8FF,"56,215.00",Yes
Communities & Local Government,DCLG,16/11/2015,Current (non AEF) Grants to Local Authorities,Localism,BABERGH DC,,,,232618405,5000312481,,Council Tax Freeze,IP7 6SJ,"4,989.00",Yes
Communities & Local Government,DCLG,16/11/2015,Current (non AEF) Grants to Local Authorities,Localism,BABERGH DC,,,,232618405,5000314090,,Reoccupation Relief,IP7 6SJ,264,Yes
Communities & Local Government,DCLG,16/11/2015,Current (non AEF) Grants to Local Authorities,Localism,BABERGH DC,,,,232618405,5000314092,,Retail Relief,IP7 6SJ,"13,505.00",Yes
Communities & Local Government,DCLG,16/11/2015,Current (non AEF) Grants to Local Authorities,Localism,BABERGH DC,,,,232618405,5000314093,,Business Rates 2% Inflation Cap,IP7 6SJ,"2,476.00",Yes
Communities & Local Government,DCLG,16/11/2015,Current (non AEF) Grants to Local Authorities,Localism,BABERGH DC,,,,232618405,5000314094,,Doubling of Small Business Rates Relief,IP7 6SJ,"36,707.00",Yes
Communities & Local Government,DCLG,16/11/2015,Current (non AEF) Grants to Local Authorities,Localism,BARKING & DAGENHAM LB (HSG),,,,217142293,5000314095,,Retail Relief,RM10 7BY,"23,698.00",Yes
Communities & Local Government,DCLG,16/11/2015,Current (non AEF) Grants to Local Authorities,Localism,BARKING & DAGENHAM LB (HSG),,,,217142293,5000314096,,Reoccupation Relief,RM10 7BY,"2,475.00",Yes
Communities & Local Government,DCLG,16/11/2015,Current (non AEF) Grants to Local Authorities,Localism,BARKING & DAGENHAM LB (HSG),,,,217142293,5000314097,,Business Rates 2% Inflation Cap,RM10 7BY,"61,476.00",Yes
Communities & Local Government,DCLG,16/11/2015,Current (non AEF) Grants to Local Authorities,Localism,BARKING & DAGENHAM LB (HSG),,,,217142293,5000314098,,Doubling of Small Business Rates Relief,RM10 7BY,"31,664.00",Yes
Communities & Local Government,DCLG,16/11/2015,Current (non AEF) Grants to Local Authorities,Localism,BARKING & DAGENHAM LB (HSG),,,,217142293,5000314099,,Empty New Build Relief,RM10 7BY,"1,501.00",Yes
Communities & Local Government,DCLG,16/11/2015,Current (non AEF) Grants to Local Authorities,Localism,BARNSLEY MBC,,,,211178595,5000313433,,Doubling of Small Business Rates Relief,S70 2AQ,"100,211.00",Yes
Communities & Local Government,DCLG,16/11/2015,Current (non AEF) Grants to Local Authorities,Localism,BARNSLEY MBC,,,,211178595,5000313439,,Retail Relief,S70 2AQ,"43,645.00",Yes
Communities & Local Government,DCLG,16/11/2015,Current (non AEF) Grants to Local Authorities,Localism,BARNSLEY MBC,,,,211178595,5000313442,,Business Rates 2% Inflation Cap,S70 2AQ,"62,633.00",Yes
Communities & Local Government,DCLG,16/11/2015,Current (non AEF) Grants to Local Authorities,Localism,BARROW BC,,,,295632913,5000312588,,Council Tax Freeze,LA14 2LD,"4,714.00",Yes
Communities & Local Government,DCLG,16/11/2015,Current (non AEF) Grants to Local Authorities,Localism,BARROW BC,,,,295632913,5000313445,,Business Rates 2% Inflation Cap,LA14 2LD,"4,153.00",Yes
Communities & Local Government,DCLG,16/11/2015,Current (non AEF) Grants to Local Authorities,Localism,BARROW BC,,,,295632913,5000313451,,Reoccupation Relief,LA14 2LD,277,Yes
Communities & Local Government,DCLG,16/11/2015,Current (non AEF) Grants to Local Authorities,Localism,BARROW BC,,,,295632913,5000313454,,Retail Relief,LA14 2LD,"10,366.00",Yes
Communities & Local Government,DCLG,16/11/2015,Current (non AEF) Grants to Local Authorities,Localism,BARROW BC,,,,295632913,5000313460,,Doubling of Small Business Rates Relief,LA14 2LD,"22,616.00",Yes
Communities & Local Government,DCLG,16/11/2015,Current (non AEF) Grants to Local Authorities,Localism,BASILDON BOROUGH COUNCIL,,,,,5000312589,,Council Tax Freeze,SS14 0DF,"16,547.00",Yes
Communities & Local Government,DCLG,16/11/2015,Current (non AEF) Grants to Local Authorities,Localism,BASILDON BOROUGH COUNCIL,,,,,5000313463,,Business Rates 2% Inflation Cap,SS14 0DF,"7,963.00",Yes
Communities & Local Government,DCLG,16/11/2015,Current (non AEF) Grants to Local Authorities,Localism,BASILDON BOROUGH COUNCIL,,,,,5000313466,,Doubling of Small Business Rates Relief,SS14 0DF,"41,323.00",Yes
Communities & Local Government,DCLG,16/11/2015,Current (non AEF) Grants to Local Authorities,Localism,BASILDON BOROUGH COUNCIL,,,,,5000313469,,Retail Relief,SS14 0DF,"24,485.00",Yes
Communities & Local Government,DCLG,16/11/2015,Current (non AEF) Grants to Local Authorities,Localism,BASINGSTOKE & DEANE BC,,,,228328506,5000312590,,Council Tax Freeze,RG21 2AJ,"6,993.00",Yes
Communities & Local Government,DCLG,16/11/2015,Current (non AEF) Grants to Local Authorities,Localism,BASINGSTOKE & DEANE BC,,,,228328506,5000313472,,Reoccupation Relief,RG21 2AJ,839,Yes
Communities & Local Government,DCLG,16/11/2015,Current (non AEF) Grants to Local Authorities,Localism,BASINGSTOKE & DEANE BC,,,,228328506,5000313475,,Retail Relief,RG21 2AJ,"12,812.00",Yes
Communities & Local Government,DCLG,16/11/2015,Current (non AEF) Grants to Local Authorities,Localism,BASINGSTOKE & DEANE BC,,,,228328506,5000313478,,Business Rates 2% Inflation Cap,RG21 2AJ,"3,653.00",Yes
Communities & Local Government,DCLG,16/11/2015,Current (non AEF) Grants to Local Authorities,Localism,BASINGSTOKE & DEANE BC,,,,228328506,5000313481,,Doubling of Small Business Rates Relief,RG21 2AJ,"28,219.00",Yes
Communities & Local Government,DCLG,16/11/2015,Current (non AEF) Grants to Local Authorities,Localism,BASSETLAW DC (HSG),,,,,5000314100,,Doubling of Small Business Rates Relief,S80 2AH,"41,739.00",Yes
Communities & Local Government,DCLG,16/11/2015,Current (non AEF) Grants to Local Authorities,Localism,BASSETLAW DC (HSG),,,,,5000314101,,Empty New Build Relief,S80 2AH,"1,368.00",Yes
Communities & Local Government,DCLG,16/11/2015,Current (non AEF) Grants to Local Authorities,Localism,BASSETLAW DC (HSG),,,,,5000314102,,Business Rates 2% Inflation Cap,S80 2AH,"4,868.00",Yes
Communities & Local Government,DCLG,16/11/2015,Current (non AEF) Grants to Local Authorities,Localism,BASSETLAW DC (HSG),,,,,5000314103,,Reoccupation Relief,S80 2AH,812,Yes
Communities & Local Government,DCLG,16/11/2015,Current (non AEF) Grants to Local Authorities,Localism,BASSETLAW DC (HSG),,,,,5000314104,,Retail Relief,S80 2AH,"15,209.00",Yes
Communities & Local Government,DCLG,16/11/2015,Current (non AEF) Grants to Local Authorities,Localism,BASSETLAW DC (HSG),,,,,5000314105,,Small Business Rates Relief on Second Properties,S80 2AH,526,Yes
Communities & Local Government,DCLG,16/11/2015,Current (non AEF) Grants to Local Authorities,Localism,BATH & NE SOMERSET DC (HSG),,,,214502499,5000312482,,Council Tax Freeze,BA1 5AW,"81,337.00",Yes
Communities & Local Government,DCLG,16/11/2015,Current (non AEF) Grants to Local Authorities,Localism,BATH & NE SOMERSET DC (HSG),,,,214502499,5000314106,,Doubling of Small Business Rates Relief,BA1 5AW,"77,249.00",Yes
Communities & Local Government,DCLG,16/11/2015,Current (non AEF) Grants to Local Authorities,Localism,BATH & NE SOMERSET DC (HSG),,,,214502499,5000314107,,Business Rates 2% Inflation Cap,BA1 5AW,"27,356.00",Yes
Communities & Local Government,DCLG,16/11/2015,Current (non AEF) Grants to Local Authorities,Localism,BATH & NE SOMERSET DC (HSG),,,,214502499,5000314108,,Retail Relief,BA1 5AW,"54,006.00",Yes
Communities & Local Government,DCLG,16/11/2015,Current (non AEF) Grants to Local Authorities,Localism,BATH & NE SOMERSET DC (HSG),,,,214502499,5000314109,,Reoccupation Relief,BA1 5AW,427,Yes
Communities & Local Government,DCLG,16/11/2015,Current (non AEF) Grants to Local Authorities,Localism,BATH & NE SOMERSET DC (HSG),,,,214502499,5000314110,,Small Business Rates Relief on Second Properties,BA1 5AW,363,Yes
Communities & Local Government,DCLG,16/11/2015,Current (non AEF) Grants to Local Authorities,Localism,BEDFORD UNITARY AUTHORITY,,,,225682160,5000312712,,Council Tax Freeze,MK40 1SJ,"78,775.00",Yes
Communities & Local Government,DCLG,16/11/2015,Current (non AEF) Grants to Local Authorities,Localism,BEDFORD UNITARY AUTHORITY,,,,225682160,5000314540,,Empty New Build Relief,MK40 1SJ,414,Yes
Communities & Local Government,DCLG,16/11/2015,Current (non AEF) Grants to Local Authorities,Localism,BEDFORD UNITARY AUTHORITY,,,,225682160,5000314541,,Reoccupation Relief,MK40 1SJ,621,Yes
Communities & Local Government,DCLG,16/11/2015,Current (non AEF) Grants to Local Authorities,Localism,BEDFORD UNITARY AUTHORITY,,,,225682160,5000314542,,Retail Relief,MK40 1SJ,"29,165.00",Yes
Communities & Local Government,DCLG,16/11/2015,Current (non AEF) Grants to Local Authorities,Localism,BEDFORD UNITARY AUTHORITY,,,,225682160,5000314544,,Business Rates 2% Inflation Cap,MK40 1SJ,"36,005.00",Yes
